{"text_format":"1","workbook":"xlsx","n_sheets":84,"sheets":["البيانات ","حساب عميل","د.عاطف عبدالله","احمد ناصف","م.صلاح البرام","م.اشرف السعدني","الحاج محمود العطار","د.رضا علام","د.نبيل ندا","شركة المحمدية","أحمد عايد - ش المرعي","أسامة علام","محمد صبحي عبدالغني","شركة الاندلس","م.حسن باشا","د.علاء الرامي","شركة بيوفت - سموحة","م.محمد حجاج","د.محمود أبو سالم","د.سامر عبد الجواد","محمود عبد الكريم","صبري الجندي","محمد الصادق","رمضان السماوي","وليد بركات","رمضان سلامة","رمضان السقا","محمود الحنيزي","درويش خطاب","الحاج عبد الشفيع","حماده زنفل","هادي داود","م.مصطفي الكلاف","محمود النجار","د.محمود زبادي","حامد عكاشه","محمد عبداللاه","د.خالد الجالي","محمد الهنداوي","محمد جوده ابو يوسف","رشاد رياض","د.فايز عويس","د.هبه فارس","د.محمد عبده ","د.محمد زغلول","اسامه سالم","حسن ابو شوشه","د.اشرف زهران","هاني الصاوي","د.رانيا فوده","د.حماده فتحي","الهادي اسماعيل","احمد تركي","د.محمد فوزي المشد","رشا عيسي","علي الويزي","هاني صقر","د.هاشم ماضي","ربيع الوريني","أحمد السيد دسوقي","ش- الشحات عيد مصطفي","أحمد سلامه","أحمد داود","حمدي عبد الصانع","السيد مسلم","رفعت الحوفي","مصطفي الفخراني ","د.وليد شعت","د.محمد سعيد دياب","ناصر صلاح","باسم ضيا","علي القياد","رمضان زينه","عبد الرحمن كشك","اشرف عبدالله","د.محمود شكر","علي الشريف","د.علاء النجار","محمدعبد الجواد","رمضان مكي","خالد الرمالي","ا-فتحي مقلد","محمود السماوي","أحمد سعيد"],"not_rendered":{"charts":0,"images":0,"macros":1,"external_links":1,"defined_names":2,"comments":0,"pivot_tables":0},"unopened":[],"bounds":{"document_bytes":16777216,"sheet_cells":100000,"rows_first":2000,"rows_last":500,"rows_between":2000,"halvings":0,"cell_chars":16384,"cell_head_chars":4096},"cells_cut":0,"cells_raw":0,"read":"whole","date_system":"1900"}

{"sheet":"البيانات ","index":0,"n_rows":137,"n_cols":5,"rows_kept":137,"cut":false,"hidden":false,"merged":[]}
[]
["رقم العميل ","اسم العميل ","رقم الهاتف","العنوان ","اسم المندوب"]
[1,"د.عاطف عبدالله",null,"الشرقية - درب نجم","الكابتن - كامل"]
[2,"احمد ناصف",null,"شركة الزهراء","الكابتن - كامل"]
[3,"م.صلاح البرام",1095683252,"قنا","الكابتن - كامل"]
[4,"م.اشرف السعدني",1098283188,"طنوب - المنوفية","الكابتن - كامل"]
[5,"الحاج محمود العطار",null,"دمنهور - الطريق السريع","الكابتن - كامل"]
[6,"د.رضا علام",1026144373,"طنوب - المنوفية","الكابتن - كامل"]
[7,"شركة المحمدية",null,"كوم حمادة","الكابتن - كامل"]
[8,"الحاج عوض عكاشه",null,"الدلنجات","محمد عبدالشفيع"]
[9,"الحاج هادي داود",1067815645,"دمنهور-عزبة داود","محمد عبدالشفيع"]
[10,"محمد هنداوي",1026603578,"المسين - الدلنجات ","محمد عبدالشفيع"]
[11,"م.مصطفي الكلاف",null,"المنشية الابراهمية - دمنهور","محمد عبدالشفيع"]
[12,"د.نبيل ندا ",1015778218,"شركة مصر فارما - كوم حماده","الكابتن - كامل"]
[13,"اسامه علام",null,"منشية راضي","الكابتن - كامل"]
[14,"محمود النجار ",null,"الوفائيه","محمد عبدالشفيع"]
[15,"رشاد رياض ",1004338004,"صفط الحرية - مصر اسكندرية الزراعي -دمنهور","محمد عبدالشفيع"]
[16,"د.فايز عويس",null,"كوبري قمحة - الدلنجات","محمد عبدالشفيع"]
[17,"محمود عبدالكريم",1027822088,"السادات - المنطقة السادسه","الكابتن - كامل"]
[18,"م.خالد الجالي",null,"ابو المطامير","محمد عبدالشفيع"]
[19,"محمد جوده ابو يوسف",1001299166,"ابو حمص","محمد عبدالشفيع"]
[20,"د.محمد عبده",null,"دمنهور - كوبري فلاقه","محمد عبدالشفيع"]
[21,"د.محمد زغلول",1062815211,"ايتاي البارود","محمد عبدالشفيع"]
[22,"د.محمد عبداللاه",null,"الطيريه البلد - كوم حمادة","محمد عبدالشفيع"]
[23,"اسامه سالم",null,"كوبري قمحه - دمنهور","محمد عبدالشفيع"]
[24,"هاني الصاوي",null,"مركز بدر","محمد عبدالشفيع"]
[25,"داشرف زهران",null,"دمنهور - ش المعهد الديني ","محمد عبدالشفيع"]
[26,"حسن ابو شوشه",1000627769,"سكران - الدلنجات","محمد عبدالشفيع"]
[27,"د.رانيا فوده",1003579499,"اشمون","محمد عبدالشفيع"]
[28,"د.حماده فتحي",1067035255,"ابو المطامير","محمد عبدالشفيع"]
[29,"الهادي اسماعيل",1100281810,"اطليميس - الدلنجات - طريق المسين","محمد عبدالشفيع"]
[30,"احمد تركي ",1003221948,"الدلنجات - بعد البوابه طريق المسين","محمد عبدالشفيع"]
[31,"علي لويزي",1007401318,"زاوية ابوشوشه - الدلنجات ","محمد عبدالشفيع"]
[32,"د.رشا عيسي",1115829062,"خمارة","محمد عبدالشفيع"]
[33,"محمد فوزي المشد",1006880848,"طريق كفر داود الاقليمي","محمد عبدالشفيع"]
[34,"د.هاني صقر",1021758129,"اشمون","محمد عبدالشفيع"]
[35,"رمضان السماوي",1012340447,"طنوب - مركز2 - مركز بدر","احمد خفاجي"]
[36,"احمد عايد",1090333985,"مزلقان ديما - مصنع اعلاف المرعي","الكابتن - كامل"]
[37,"د.هاشم ماضي",100814340,"ابو حمص - الزراعي مباشرة - منزلة الكوبري","محمد عبدالشفيع"]
[38,"ربيع الورديني",null,"ايتاي البارود","محمد عبدالشفيع"]
[39,"حماده زنفل",1065464010,"كوم امبو - ابو المطامير - القرية الرئيسيه","محمد عبدالشفيع"]
[40,"م.احمد السيد الدسوقي",null,"كوبري المدير - ابو المطامير","محمد عبدالشفيع"]
[41,"د.هبه فارس",null,"اشمون - المستشفي العام","محمد عبدالشفيع"]
[42,"د.محمود زبادي",null,"شبراخيت - لقانه","محمد عبدالشفيع"]
[43,"محمد صبحي عبدالغني",null,"زفتي","الكابتن - كامل"]
[45,"شركة الاندلس",null,"النجاح","الكابتن - كامل"]
[46,"م.حسن الباشا",null,null,"الكابتن - كامل"]
[47,"د.علا الرامي",null,"كوم حماده","الكابتن - كامل"]
[48,"شركة بيوفيت",null,"سموحة - الاسكندرية","الكابتن - كامل"]
[49,"م.محمد حجاج",null,"النهضة - العامرية","الكابتن - كامل"]
[50,"احمد سلامه",null,"العشرة مدرسة","محمد عبدالشفيع"]
[51,"احمد داود",null,"شبراخيت - مستناد","محمد عبدالشفيع"]
[52,"ا.حمدي عبد الصانع",null,"ايتاي البارود","محمد عبدالشفيع"]
[53,"السيد مسلم",null,"العشرة الاف - ابو المطامير","محمد عبدالشفيع"]
[54,"رفعت الحوفي",null,"كوم امبو - ابو المطامير - القرية الرئيسيه","محمد عبدالشفيع"]
[55,"مصطفي الفخراني",null,"مركز بدر","محمد عبدالشفيع"]
[56,"د.وليد شعت",null,"كوم حمادة","محمد عبدالشفيع"]
[57,"د.محمد سعيد دياب",null,"كوبري عبد المجيد صالح","محمد عبدالشفيع"]
[58,"رمضان زينه",null,"تلبقه","محمد عبدالشفيع"]
[59,"م.اشرف عبدالله",null,"النهضة - العامرية","محمد عبدالشفيع"]
[60,"علي الشريف",null,"سيدي غازي","محمد عبدالشفيع"]
[61,"علاء النجار",null,"ايتاي البارود","محمد عبدالشفيع"]
[62,"ناصر صلاح",null,"ابو حمص","محمد عبدالشفيع"]
[63,"د.محمود شكر",null,"النجاح","محمد عبدالشفيع"]
[64,"عبد الرحمن كشك",null,"النجاح","محمد عبدالشفيع"]
[65,"م.علي القياد",null,"ابو المطامير","محمد عبدالشفيع"]
[66,"باسم ضيا",null,"قرية 19 لحوم - النوبارية - مجزر","محمد عبدالشفيع"]
[67,"الشيخ -الشحات عيد مصطفي",null,"ايتاي البارود","محمد عبدالشفيع"]
[68,"صبري الجندي",1027987089,"خربتا - كوم حماده","الكابتن - كامل"]
[69,"محمد الصادق",1008292563,"الزقازيق - برج القضاة","الكابتن - كامل"]
[70,"د.محمود ابوسالم",null,"خربتا - كوم حماده","الكابتن - كامل"]
[71,"د.سامر عبدالجواد",null,null,"الكابتن - كامل"]
[72,"وليد بركات",null,"طنوب - المنوفية","احمد خفاجي"]
[73,"رمضان سلامه",null,null,"احمد خفاجي"]
[74,"رمضان السقا",null,null,"احمد خفاجي"]
[75,"محمود الخنيزي",null,"طنوب - المنوفية - جامع عبد الواحد","احمد خفاجي"]
[76,"درويش خطاب",null,"طنوب - المنوفية","احمد خفاجي"]
[77,"الحاج عبد الشفيع",null,null,"احمد خفاجي"]
[78,"محمد عبد الجواد",null,"دمنهور","ا/فتحي مقلد"]
[79,"رمضان مكي",null,"ايتاي البارود","ا/فتحي مقلد"]
[80,"ا/فتحي مقلد",null,null,"الكابتن - كامل"]
[81,"خالد الرمالي",null,"خربتا","الكابتن - كامل"]
[82,"محمود السماوي",null,"طنوب 0 المنوفية","احمد خفاجي"]
[83,"أحمد سعيد"]
[84]
[85]
[86]
[87]
[88]
[89]
[90]
[91]
[92]
[93]
[94]
[95]
[96]
[97]
[98]
[99]
[100]
[101]
[102]
[103]
[104]
[105]
[106]
[107]
[108]
[109]
[110]
[111]
[112]
[113]
[114]
[115]
[116]
[117]
[118]
[119]
[120]
[121]
[122]
[123]
[124]
[125]
[126]
[127]
[128]
[129]
[130]
[131]
[132]
[133]
[134]
[135]
[136]

{"sheet":"حساب عميل","index":1,"n_rows":49,"n_cols":9,"rows_kept":49,"cut":false,"hidden":false,"merged":[[10,6,10,7],[44,1,44,3],[2,4,3,8],[2,1,3,3],[5,6,5,7],[6,6,6,7],[8,6,8,7],[9,6,9,7],[46,1,46,2],[46,4,46,8],[47,1,47,2],[47,4,47,8],[48,1,48,2],[48,4,48,8]]}
[]
[]
[null,"شركة بايوكيميكال ايجيبت",null,null,"Bio chemical egypt"]
[]
[]
[null,null,null,null,null,null,"كود العميل"]
[null,null,null,"حساب عميل",null,null,{"$f":"IFERROR(INDEX('البيانات '!$A$3:$A$1000,MATCH($C$9,'البيانات '!$B$3:$B$1000,0)),\"\")","v":1}]
[]
[null,"اسم العميل","د.عاطف عبدالله",null,"تليفون",null,{"$f":"IFERROR(VLOOKUP(G7,'البيانات '!A3:C78,3,0),\"\")","v":0}]
[null,"اسم المنشاة",null,null,"مدير مسئول"]
[null,"العنوان",{"$f":"IF(VLOOKUP(G7,'البيانات '!A3:D90,4,0)=\"\",\"\",VLOOKUP(G7,'البيانات '!A3:D90,4,0))","v":"الشرقية - درب نجم"},null,"مندوب مبيعات ",null,{"$f":"IFERROR(VLOOKUP(G7,'البيانات '!$A$3:$E$102,5,0),\"\")","v":"الكابتن - كامل"}]
[]
[]
[null,"م","التاريخ","رقم الفاتورة","قيمة الفاتورة","رصيد سابق","المدفوع","رصيد متبقي","ملاحظات"]
[null,1,"2018-04-29",null,21602,0,11000,10602,"وصل لحاتم من عاطف"]
[null,2,null,"نقدي",0,10602,4000,6602,"تم اضافه من حساب عاطف لحساب حاتم "]
[null,3,null,null,null,null,null,0]
[null,4,null,null,null,null,null,0]
[null,5,null,null,null,null,null,0]
[null,6,null,null,null,null,null,0]
[null,7,null,null,null,null,null,0]
[null,8,null,null,null,null,null,0]
[null,9,null,null,null,null,null,0]
[null,10,null,null,null,null,null,0]
[null,11,null,null,null,null,null,0]
[null,12,null,null,null,null,null,0]
[null,13,null,null,null,null,null,0]
[null,14,null,null,null,null,null,0]
[null,15,null,null,null,null,null,0]
[null,16,null,null,null,null,null,0]
[null,17,null,null,null,null,null,0]
[null,18,null,null,null,null,null,0]
[null,19,null,null,null,null,null,0]
[null,20,null,null,null,null,null,0]
[null,21,null,null,null,null,null,0]
[null,22,null,null,null,null,null,0]
[null,23,null,null,null,null,null,0]
[null,24,null,null,null,null,null,0]
[null,25,null,null,null,null,null,0]
[null,26,null,null,null,null,null,0]
[null,27,null,null,null,null,null,0]
[null,28,null,null,null,null,null,0]
[null,29,null,null,null,null,null,0]
[null,30,null,null,null,null,null,0]
[null,"الاجمالي",null,null,21602,null,15000]
[]
[null,"بايو كيميكال ايجيبت للمطهرات و اضافات الاعلاف .",null,null,"Bio chemical  Egypt for antiseptic &  feed additives ."]
[null,"المصنع : دست الاشراف  - كوم حماده – البحيرة  .",null,null,"address : dest el ashraf – kom Hamada – al behara"]
[null,"موبايل : 01009958821 – 01099548642    ",null,null,"                            mob : +2001009958821 - +2001099548642                                            "]

{"sheet":"د.عاطف عبدالله","index":2,"n_rows":49,"n_cols":9,"rows_kept":49,"cut":false,"hidden":false,"merged":[[48,1,48,2],[48,4,48,8],[2,1,3,3],[5,6,5,7],[6,6,6,7],[8,6,8,7],[9,6,9,7],[46,1,46,2],[46,4,46,8],[2,4,3,8],[10,6,10,7],[44,1,44,3],[47,1,47,2],[47,4,47,8]]}
[]
[]
[null,"شركة بايوكيميكال ايجيبت",null,null,"Bio chemical egypt"]
[]
[]
[null,null,null,null,null,null,"كود العميل"]
[null,null,null,"حساب عميل",null,null,1]
[]
[null,"اسم العميل",{"$f":"IFERROR(VLOOKUP(G7,'[1]البيانات '!$A$3:$B$102,2,0),\"\")","v":"د.عاطف عبدالله"},null,"تليفون",null,{"$f":"IFERROR(VLOOKUP(G7,'البيانات '!A3:C78,3,0),\"\")","v":0}]
[null,"اسم المنشاة",null,null,"مدير مسئول"]
[null,"العنوان",{"$f":"IFERROR(VLOOKUP(G7,'البيانات '!A3:D78,4,0),\"\")","v":"الشرقية - درب نجم"},null,"مندوب مبيعات ",null,{"$f":"IFERROR(VLOOKUP(G7,'[1]البيانات '!$A$3:$E$102,5,0),\"\")","v":"الكابتن - كامل"}]
[]
[]
[null,"م","التاريخ","رقم الفاتورة","قيمة الفاتورة","رصيد سابق","المدفوع","رصيد متبقي","ملاحظات"]
[null,1,"2018-04-29",null,21602,0,11000,{"$f":"E15+F15-G15","v":10602},"وصل لحاتم من عاطف"]
[null,2,null,"نقدي",0,10602,4000,{"$f":"E16+F16-G16","v":6602},"تم اضافه من حساب عاطف لحساب حاتم "]
[null,3,null,null,null,null,null,0]
[null,4,null,null,null,null,null,0]
[null,5,null,null,null,null,null,0]
[null,6,null,null,null,null,null,0]
[null,7,null,null,null,null,null,0]
[null,8,null,null,null,null,null,0]
[null,9,null,null,null,null,null,0]
[null,10,null,null,null,null,null,0]
[null,11,null,null,null,null,null,0]
[null,12,null,null,null,null,null,0]
[null,13,null,null,null,null,null,0]
[null,14,null,null,null,null,null,0]
[null,15,null,null,null,null,null,0]
[null,16,null,null,null,null,null,0]
[null,17,null,null,null,null,null,0]
[null,18,null,null,null,null,null,0]
[null,19,null,null,null,null,null,0]
[null,20,null,null,null,null,null,0]
[null,21,null,null,null,null,null,0]
[null,22,null,null,null,null,null,0]
[null,23,null,null,null,null,null,0]
[null,24,null,null,null,null,null,0]
[null,25,null,null,null,null,null,0]
[null,26,null,null,null,null,null,0]
[null,27,null,null,null,null,null,0]
[null,28,null,null,null,null,null,0]
[null,29,null,null,null,null,null,0]
[null,30,null,null,null,null,null,0]
[null,"الاجمالي",null,null,{"$f":"SUM(E15:E44)","v":21602},null,{"$f":"SUM(G15:G44)","v":15000}]
[]
[null,"بايو كيميكال ايجيبت للمطهرات و اضافات الاعلاف .",null,null,"Bio chemical  Egypt for antiseptic &  feed additives ."]
[null,"المصنع : دست الاشراف  - كوم حماده – البحيرة  .",null,null,"address : dest el ashraf – kom Hamada – al behara"]
[null,"موبايل : 01009958821 – 01099548642    ",null,null,"                            mob : +2001009958821 - +2001099548642                                            "]

{"sheet":"احمد ناصف","index":3,"n_rows":49,"n_cols":9,"rows_kept":49,"cut":false,"hidden":false,"merged":[[48,1,48,2],[48,4,48,8],[2,1,3,3],[5,6,5,7],[6,6,6,7],[8,6,8,7],[9,6,9,7],[46,1,46,2],[46,4,46,8],[2,4,3,8],[10,6,10,7],[44,1,44,3],[47,1,47,2],[47,4,47,8],[14,3,14,6]]}
[]
[]
[null,"شركة بايوكيميكال ايجيبت",null,null,"Bio chemical egypt"]
[]
[]
[null,null,null,null,null,null,"كود العميل"]
[null,null,null,"حساب عميل",null,null,2]
[]
[null,"اسم العميل",{"$f":"IFERROR(VLOOKUP(G7,'[1]البيانات '!$A$3:$B$102,2,0),\"\")","v":"احمد ناصف"},null,"تليفون",null,{"$f":"IFERROR(VLOOKUP(G7,'البيانات '!A3:C78,3,0),\"\")","v":0}]
[null,"اسم المنشاة",null,null,"مدير مسئول"]
[null,"العنوان",{"$f":"IFERROR(VLOOKUP(G7,'البيانات '!A3:D78,4,0),\"\")","v":"شركة الزهراء"},null,"مندوب مبيعات ",null,{"$f":"IFERROR(VLOOKUP(G7,'[1]البيانات '!$A$3:$E$102,5,0),\"\")","v":"الكابتن - كامل"}]
[]
[]
[null,"م","التاريخ","رقم الفاتورة","قيمة الفاتورة","رصيد سابق","المدفوع","رصيد متبقي","ملاحظات"]
[null,1,"2018-04-29","حتي هذا التاريخ باقي",null,null,null,23305]
[null,2,null,"مرتجع",-11048,23305,null,{"$f":"E16+F16-G16","v":12257}]
[null,3,"2018-08-02","مرتجع",-8168,12257,null,4089]
[null,4,null,null,null,null,null,0]
[null,5,null,null,null,null,null,0]
[null,6,null,null,null,null,null,0]
[null,7,null,null,null,null,null,0]
[null,8,null,null,null,null,null,0]
[null,9,null,null,null,null,null,0]
[null,10,null,null,null,null,null,0]
[null,11,null,null,null,null,null,0]
[null,12,null,null,null,null,null,0]
[null,13,null,null,null,null,null,0]
[null,14,null,null,null,null,null,0]
[null,15,null,null,null,null,null,0]
[null,16,null,null,null,null,null,0]
[null,17,null,null,null,null,null,0]
[null,18,null,null,null,null,null,0]
[null,19,null,null,null,null,null,0]
[null,20,null,null,null,null,null,0]
[null,21,null,null,null,null,null,0]
[null,22,null,null,null,null,null,0]
[null,23,null,null,null,null,null,0]
[null,24,null,null,null,null,null,0]
[null,25,null,null,null,null,null,0]
[null,26,null,null,null,null,null,0]
[null,27,null,null,null,null,null,0]
[null,28,null,null,null,null,null,0]
[null,29,null,null,null,null,null,0]
[null,30,null,null,null,null,null,0]
[null,"الاجمالي",null,null,{"$f":"SUM(E15:E44)","v":-19216},null,{"$f":"SUM(G15:G44)","v":0}]
[]
[null,"بايو كيميكال ايجيبت للمطهرات و اضافات الاعلاف .",null,null,"Bio chemical  Egypt for antiseptic &  feed additives ."]
[null,"المصنع : دست الاشراف  - كوم حماده – البحيرة  .",null,null,"address : dest el ashraf – kom Hamada – al behara"]
[null,"موبايل : 01009958821 – 01099548642    ",null,null,"                            mob : +2001009958821 - +2001099548642                                            "]

{"sheet":"م.صلاح البرام","index":4,"n_rows":49,"n_cols":9,"rows_kept":49,"cut":false,"hidden":false,"merged":[[48,1,48,2],[48,4,48,8],[2,1,3,3],[5,6,5,7],[6,6,6,7],[8,6,8,7],[9,6,9,7],[46,1,46,2],[46,4,46,8],[2,4,3,8],[10,6,10,7],[44,1,44,3],[47,1,47,2],[47,4,47,8]]}
[]
[]
[null,"شركة بايوكيميكال ايجيبت",null,null,"Bio chemical egypt"]
[]
[]
[null,null,null,null,null,null,"كود العميل"]
[null,null,null,"حساب عميل",null,null,3]
[]
[null,"اسم العميل",{"$f":"IFERROR(VLOOKUP(G7,'[1]البيانات '!$A$3:$B$102,2,0),\"\")","v":"م.صلاح البرام"},null,"تليفون",null,{"$f":"IFERROR(VLOOKUP(G7,'البيانات '!A3:C78,3,0),\"\")","v":1095683252}]
[null,"اسم المنشاة",null,null,"مدير مسئول"]
[null,"العنوان",{"$f":"IFERROR(VLOOKUP(G7,'البيانات '!A3:D78,4,0),\"\")","v":"قنا"},null,"مندوب مبيعات ",null,{"$f":"IFERROR(VLOOKUP(G7,'[1]البيانات '!$A$3:$E$102,5,0),\"\")","v":"الكابتن - كامل"}]
[]
[]
[null,"م","التاريخ","رقم الفاتورة","قيمة الفاتورة","رصيد سابق","المدفوع","رصيد متبقي","ملاحظات"]
[null,1,"2018-04-29",null,21363,0,10000,{"$f":"E15+F15-G15","v":11363},"تحويل"]
[null,2,"2018-05-23","نقدي",0,11363,10000,{"$f":"E16+F16-G16","v":1363},"مع لسيارة"]
[null,3,"2018-05-23",null,4680,1363,0,6043]
[null,4,null,null,null,null,null,0]
[null,5,null,null,null,null,null,0]
[null,6,null,null,null,null,null,0]
[null,7,null,null,null,null,null,0]
[null,8,null,null,null,null,null,0]
[null,9,null,null,null,null,null,0]
[null,10,null,null,null,null,null,0]
[null,11,null,null,null,null,null,0]
[null,12,null,null,null,null,null,0]
[null,13,null,null,null,null,null,0]
[null,14,null,null,null,null,null,0]
[null,15,null,null,null,null,null,0]
[null,16,null,null,null,null,null,0]
[null,17,null,null,null,null,null,0]
[null,18,null,null,null,null,null,0]
[null,19,null,null,null,null,null,0]
[null,20,null,null,null,null,null,0]
[null,21,null,null,null,null,null,0]
[null,22,null,null,null,null,null,0]
[null,23,null,null,null,null,null,0]
[null,24,null,null,null,null,null,0]
[null,25,null,null,null,null,null,0]
[null,26,null,null,null,null,null,0]
[null,27,null,null,null,null,null,0]
[null,28,null,null,null,null,null,0]
[null,29,null,null,null,null,null,0]
[null,30,null,null,null,null,null,0]
[null,"الاجمالي",null,null,{"$f":"SUM(E15:E44)","v":26043},null,{"$f":"SUM(G15:G44)","v":20000}]
[]
[null,"بايو كيميكال ايجيبت للمطهرات و اضافات الاعلاف .",null,null,"Bio chemical  Egypt for antiseptic &  feed additives ."]
[null,"المصنع : دست الاشراف  - كوم حماده – البحيرة  .",null,null,"address : dest el ashraf – kom Hamada – al behara"]
[null,"موبايل : 01009958821 – 01099548642    ",null,null,"                            mob : +2001009958821 - +2001099548642                                            "]

{"sheet":"م.اشرف السعدني","index":5,"n_rows":49,"n_cols":9,"rows_kept":49,"cut":false,"hidden":false,"merged":[[48,1,48,2],[48,4,48,8],[2,1,3,3],[5,6,5,7],[6,6,6,7],[8,6,8,7],[9,6,9,7],[46,1,46,2],[46,4,46,8],[2,4,3,8],[10,6,10,7],[44,1,44,3],[47,1,47,2],[47,4,47,8],[34,3,34,5]]}
[]
[]
[null,"شركة بايوكيميكال ايجيبت",null,null,"Bio chemical egypt"]
[]
[]
[null,null,null,null,null,null,"كود العميل"]
[null,null,null,"حساب عميل",null,null,4]
[]
[null,"اسم العميل",{"$f":"IFERROR(VLOOKUP(G7,'[1]البيانات '!$A$3:$B$102,2,0),\"\")","v":"م.اشرف السعدني"},null,"تليفون",null,{"$f":"IFERROR(VLOOKUP(G7,'البيانات '!A3:C78,3,0),\"\")","v":1098283188}]
[null,"اسم المنشاة",null,null,"مدير مسئول"]
[null,"العنوان",{"$f":"IFERROR(VLOOKUP(G7,'البيانات '!A3:D78,4,0),\"\")","v":"طنوب - المنوفية"},null,"مندوب مبيعات ",null,{"$f":"IFERROR(VLOOKUP(G7,'[1]البيانات '!$A$3:$E$102,5,0),\"\")","v":"الكابتن - كامل"}]
[]
[]
[null,"م","التاريخ","رقم الفاتورة","قيمة الفاتورة","رصيد سابق","المدفوع","رصيد متبقي","ملاحظات"]
[null,1,".3/2/2018",5109,6300,32690,null,{"$f":"E15+F15-G15","v":38990}]
[null,2,"2018-02-10",5113,10062,38990,null,{"$f":"E16+F16-G16","v":49052}]
[null,3,"23/3./2018",5139,1800,44052,null,45852]
[null,4,"2018-04-29",null,null,null,null,42852]
[null,5,"2018-04-30",null,42852,null,20000,22852]
[null,6,"2018-05-19",null,22852,null,5000,17852]
[null,7,"2018-06-02",null,17852,null,2000,15852]
[null,8,"2018-06-06",null,15852,null,2000,13852]
[null,9,"2018-06-08",null,13852,null,3000,10852]
[null,10,null,null,null,null,null,0]
[null,11,null,null,null,null,null,0]
[null,12,null,null,null,null,null,0]
[null,13,null,null,null,null,null,0]
[null,14,null,null,null,null,null,0]
[null,15,null,null,null,null,null,0]
[null,16,null,null,null,null,null,0]
[null,17,null,null,null,null,null,0]
[null,18,null,null,null,null,null,0]
[null,19,null,null,null,null,null,0]
[null,20,null,null,null,null,null,0]
[null,21,null,"خالص",null,null,null,0]
[null,22,null,null,null,null,null,{"$f":"E36+F36-G36","v":0}]
[null,23,null,null,null,null,null,0]
[null,24,null,null,null,null,null,0]
[null,25,null,null,null,null,null,0]
[null,26,null,null,null,null,null,0]
[null,27,null,null,null,null,null,0]
[null,28,null,null,null,null,null,0]
[null,29,null,null,null,null,null,0]
[null,30,null,null,null,null,null,0]
[null,"الاجمالي",null,null,{"$f":"SUM(E15:E44)","v":131422},null,{"$f":"SUM(G15:G44)","v":32000}]
[]
[null,"بايو كيميكال ايجيبت للمطهرات و اضافات الاعلاف .",null,null,"Bio chemical  Egypt for antiseptic &  feed additives ."]
[null,"المصنع : دست الاشراف  - كوم حماده – البحيرة  .",null,null,"address : dest el ashraf – kom Hamada – al behara"]
[null,"موبايل : 01009958821 – 01099548642    ",null,null,"                            mob : +2001009958821 - +2001099548642                                            "]

{"sheet":"الحاج محمود العطار","index":6,"n_rows":49,"n_cols":9,"rows_kept":49,"cut":false,"hidden":false,"merged":[[48,1,48,2],[48,4,48,8],[2,1,3,3],[5,6,5,7],[6,6,6,7],[8,6,8,7],[9,6,9,7],[46,1,46,2],[46,4,46,8],[2,4,3,8],[10,6,10,7],[44,1,44,3],[47,1,47,2],[47,4,47,8]]}
[]
[]
[null,"شركة بايوكيميكال ايجيبت",null,null,"Bio chemical egypt"]
[]
[]
[null,null,null,null,null,null,"كود العميل"]
[null,null,null,"حساب عميل",null,null,5]
[]
[null,"اسم العميل",{"$f":"IFERROR(VLOOKUP(G7,'[1]البيانات '!$A$3:$B$102,2,0),\"\")","v":"الحاج محمود العطار"},null,"تليفون",null,{"$f":"IFERROR(VLOOKUP(G7,'البيانات '!A3:C78,3,0),\"\")","v":0}]
[null,"اسم المنشاة",null,null,"مدير مسئول"]
[null,"العنوان",{"$f":"IFERROR(VLOOKUP(G7,'البيانات '!A3:D78,4,0),\"\")","v":"دمنهور - الطريق السريع"},null,"مندوب مبيعات ",null,{"$f":"IFERROR(VLOOKUP(G7,'[1]البيانات '!$A$3:$E$102,5,0),\"\")","v":"الكابتن - كامل"}]
[]
[]
[null,"م","التاريخ","رقم الفاتورة","قيمة الفاتورة","رصيد سابق","المدفوع","رصيد متبقي","ملاحظات"]
[null,1,"2017-05-17",null,45264,0,36000,{"$f":"E15+F15-G15","v":9264}]
[null,2,"2017-08-01","نقدية",0,9246,5000,{"$f":"E16+F16-G16","v":4246}]
[null,3,"2017-08-05","نقدية",0,4246,3500,746]
[null,4,"2017-10-13",5016,24600,746,5000,20346]
[null,5,"2017-11-10","نقدية",0,20346,5000,15346]
[null,6,"2017-12-21","نقدية",0,15346,5000,10346]
[null,7,"2018-08-12",5,11316,5400,0,16716]
[null,8,null,null,0,16716,1968,14748]
[null,9,"2018-10-13","نقدية",0,14748,2000,12748]
[null,10,"2018-10-16",1369,20780,12748,0,33528]
[null,11,null,null,null,null,null,0]
[null,12,null,null,null,null,null,0]
[null,13,null,null,null,null,null,0]
[null,14,null,null,null,null,null,0]
[null,15,null,null,null,null,null,0]
[null,16,null,null,null,null,null,0]
[null,17,null,null,null,null,null,0]
[null,18,null,null,null,null,null,0]
[null,19,null,null,null,null,null,0]
[null,20,null,null,null,null,null,0]
[null,21,null,null,null,null,null,0]
[null,22,null,null,null,null,null,0]
[null,23,null,null,null,null,null,0]
[null,24,null,null,null,null,null,0]
[null,25,null,null,null,null,null,0]
[null,26,null,null,null,null,null,0]
[null,27,null,null,null,null,null,0]
[null,28,null,null,null,null,null,0]
[null,29,null,null,null,null,null,0]
[null,30,null,null,null,null,null,0]
[null,"الاجمالي",null,null,{"$f":"SUM(E15:E44)","v":101960},null,{"$f":"SUM(G15:G44)","v":63468}]
[]
[null,"بايو كيميكال ايجيبت للمطهرات و اضافات الاعلاف .",null,null,"Bio chemical  Egypt for antiseptic &  feed additives ."]
[null,"المصنع : دست الاشراف  - كوم حماده – البحيرة  .",null,null,"address : dest el ashraf – kom Hamada – al behara"]
[null,"موبايل : 01009958821 – 01099548642    ",null,null,"                            mob : +2001009958821 - +2001099548642                                            "]

{"sheet":"د.رضا علام","index":7,"n_rows":49,"n_cols":9,"rows_kept":49,"cut":false,"hidden":false,"merged":[[48,1,48,2],[48,4,48,8],[2,1,3,3],[5,6,5,7],[6,6,6,7],[8,6,8,7],[9,6,9,7],[46,1,46,2],[46,4,46,8],[2,4,3,8],[10,6,10,7],[44,1,44,3],[47,1,47,2],[47,4,47,8]]}
[]
[]
[null,"شركة بايوكيميكال ايجيبت",null,null,"Bio chemical egypt"]
[]
[]
[null,null,null,null,null,null,"كود العميل"]
[null,null,null,"حساب عميل",null,null,6]
[]
[null,"اسم العميل",{"$f":"IFERROR(VLOOKUP(G7,'[1]البيانات '!$A$3:$B$102,2,0),\"\")","v":"د.رضا علام"},null,"تليفون",null,{"$f":"IFERROR(VLOOKUP(G7,'البيانات '!A3:C78,3,0),\"\")","v":1026144373}]
[null,"اسم المنشاة",null,null,"مدير مسئول"]
[null,"العنوان",{"$f":"IFERROR(VLOOKUP(G7,'البيانات '!A3:D78,4,0),\"\")","v":"طنوب - المنوفية"},null,"مندوب مبيعات ",null,{"$f":"IFERROR(VLOOKUP(G7,'[1]البيانات '!$A$3:$E$102,5,0),\"\")","v":"الكابتن - كامل"}]
[]
[]
[null,"م","التاريخ","رقم الفاتورة","قيمة الفاتورة","رصيد سابق","المدفوع","رصيد متبقي","ملاحظات"]
[null,1,"2017-08-25","كومبيوتر",16246,null,5000,{"$f":"E15+F15-G15","v":11246}]
[null,2,"2017-10-06","نقدي",null,11246,3000,{"$f":"E16+F16-G16","v":8246}]
[null,3,"2017-10-15","نقدي",null,8246,5000,3246]
[null,4,"2017-10-18",5017,9450,3246,null,12696]
[null,5,"2017-10-28","نقدي",null,12696,3000,9696]
[null,6,"2017-11-06",5041,3360,9696,null,13056]
[null,7,"2017-11-23","نقدي",null,13006,3000,10006]
[null,8,"2018-04-29",null,null,null,null,4296]
[null,9,null,null,null,null,null,0]
[null,10,null,null,null,null,null,0]
[null,11,null,null,null,null,null,0]
[null,12,null,null,null,null,null,0]
[null,13,null,null,null,null,null,0]
[null,14,null,null,null,null,null,0]
[null,15,null,null,null,null,null,0]
[null,16,null,null,null,null,null,0]
[null,17,null,null,null,null,null,0]
[null,18,null,null,null,null,null,0]
[null,19,null,null,null,null,null,0]
[null,20,null,null,null,null,null,0]
[null,21,null,null,null,null,null,0]
[null,22,null,null,null,null,null,0]
[null,23,null,null,null,null,null,0]
[null,24,null,null,null,null,null,0]
[null,25,null,null,null,null,null,0]
[null,26,null,null,null,null,null,0]
[null,27,null,null,null,null,null,0]
[null,28,null,null,null,null,null,0]
[null,29,null,null,null,null,null,0]
[null,30,null,null,null,null,null,0]
[null,"الاجمالي",null,null,{"$f":"SUM(E15:E44)","v":29056},null,{"$f":"SUM(G15:G44)","v":19000}]
[]
[null,"بايو كيميكال ايجيبت للمطهرات و اضافات الاعلاف .",null,null,"Bio chemical  Egypt for antiseptic &  feed additives ."]
[null,"المصنع : دست الاشراف  - كوم حماده – البحيرة  .",null,null,"address : dest el ashraf – kom Hamada – al behara"]
[null,"موبايل : 01009958821 – 01099548642    ",null,null,"                            mob : +2001009958821 - +2001099548642                                            "]

{"sheet":"د.نبيل ندا","index":8,"n_rows":49,"n_cols":9,"rows_kept":49,"cut":false,"hidden":false,"merged":[[48,1,48,2],[48,4,48,8],[2,1,3,3],[5,6,5,7],[6,6,6,7],[8,6,8,7],[9,6,9,7],[46,1,46,2],[46,4,46,8],[2,4,3,8],[10,6,10,7],[44,1,44,3],[47,1,47,2],[47,4,47,8]]}
[]
[]
[null,"شركة بايوكيميكال ايجيبت",null,null,"Bio chemical egypt"]
[]
[]
[null,null,null,null,null,null,"كود العميل"]
[null,null,null,"حساب عميل",null,null,12]
[]
[null,"اسم العميل",{"$f":"IFERROR(VLOOKUP(G7,'[1]البيانات '!$A$3:$B$102,2,0),\"\")","v":"د.نبيل ندا "},null,"تليفون",null,{"$f":"IFERROR(VLOOKUP(G7,'البيانات '!A3:C78,3,0),\"\")","v":1015778218}]
[null,"اسم المنشاة",null,null,"مدير مسئول"]
[null,"العنوان",{"$f":"IFERROR(VLOOKUP(G7,'البيانات '!A3:D78,4,0),\"\")","v":"شركة مصر فارما - كوم حماده"},null,"مندوب مبيعات ",null,{"$f":"IFERROR(VLOOKUP(G7,'[1]البيانات '!$A$3:$E$102,5,0),\"\")","v":"الكابتن - كامل"}]
[]
[]
[null,"م","التاريخ","رقم الفاتورة","قيمة الفاتورة","رصيد سابق","المدفوع","رصيد متبقي","ملاحظات"]
[null,1,"2018-05-25",null,-25472,0,-7000,{"$f":"E15+F15-G15","v":-18472}]
[null,2,"2018-06-28",null,null,-18472,-4000,{"$f":"E16+F16-G16","v":-14472}]
[null,3,"2018-08-05",null,null,-14472,-4000,-10472]
[null,4,"2018-08-17",null,2650,-10472,0,-7822]
[null,5,null,null,null,null,null,0]
[null,6,null,null,null,null,null,0]
[null,7,null,null,null,null,null,0]
[null,8,null,null,null,null,null,0]
[null,9,null,null,null,null,null,0]
[null,10,null,null,null,null,null,0]
[null,11,null,null,null,null,null,0]
[null,12,null,null,null,null,null,0]
[null,13,null,null,null,null,null,0]
[null,14,null,null,null,null,null,0]
[null,15,null,null,null,null,null,0]
[null,16,null,null,null,null,null,0]
[null,17,null,null,null,null,null,0]
[null,18,null,null,null,null,null,0]
[null,19,null,null,null,null,null,0]
[null,20,null,null,null,null,null,0]
[null,21,null,null,null,null,null,0]
[null,22,null,null,null,null,null,0]
[null,23,null,null,null,null,null,0]
[null,24,null,null,null,null,null,0]
[null,25,null,null,null,null,null,0]
[null,26,null,null,null,null,null,0]
[null,27,null,null,null,null,null,0]
[null,28,null,null,null,null,null,0]
[null,29,null,null,null,null,null,0]
[null,30,null,null,null,null,null,0]
[null,"الاجمالي",null,null,{"$f":"SUM(E15:E44)","v":-22822},null,{"$f":"SUM(G15:G44)","v":-15000}]
[]
[null,"بايو كيميكال ايجيبت للمطهرات و اضافات الاعلاف .",null,null,"Bio chemical  Egypt for antiseptic &  feed additives ."]
[null,"المصنع : دست الاشراف  - كوم حماده – البحيرة  .",null,null,"address : dest el ashraf – kom Hamada – al behara"]
[null,"موبايل : 01009958821 – 01099548642    ",null,null,"                            mob : +2001009958821 - +2001099548642                                            "]

{"sheet":"شركة المحمدية","index":9,"n_rows":49,"n_cols":9,"rows_kept":49,"cut":false,"hidden":false,"merged":[[48,1,48,2],[48,4,48,8],[2,1,3,3],[5,6,5,7],[6,6,6,7],[8,6,8,7],[9,6,9,7],[46,1,46,2],[46,4,46,8],[2,4,3,8],[10,6,10,7],[44,1,44,3],[47,1,47,2],[47,4,47,8]]}
[]
[]
[null,"شركة بايوكيميكال ايجيبت",null,null,"Bio chemical egypt"]
[]
[]
[null,null,null,null,null,null,"كود العميل"]
[null,null,null,"حساب عميل",null,null,7]
[]
[null,"اسم العميل",{"$f":"IFERROR(VLOOKUP(G7,'[1]البيانات '!$A$3:$B$102,2,0),\"\")","v":"شركة المحمدية"},null,"تليفون",null,{"$f":"IFERROR(VLOOKUP(G7,'البيانات '!A3:C78,3,0),\"\")","v":0}]
[null,"اسم المنشاة",null,null,"مدير مسئول"]
[null,"العنوان",{"$f":"IFERROR(VLOOKUP(G7,'البيانات '!A3:D78,4,0),\"\")","v":"كوم حمادة"},null,"مندوب مبيعات ",null,{"$f":"IFERROR(VLOOKUP(G7,'[1]البيانات '!$A$3:$E$102,5,0),\"\")","v":"الكابتن - كامل"}]
[]
[]
[null,"م","التاريخ","رقم الفاتورة","قيمة الفاتورة","رصيد سابق","المدفوع","رصيد متبقي","ملاحظات"]
[null,1,"2018-06-14",5464,5775,5892,6000,{"$f":"E15+F15-G15","v":5667}]
[null,2,"2018-06-21",5468,1640,5667,null,{"$f":"E16+F16-G16","v":7307}]
[null,3,"2018-06-27",5475,5250,7300,4400,8150]
[null,4,"2018-07-06","نقدي",null,8150,3200,4950]
[null,5,"2018-07-10",5487,4600,4950,null,9550]
[null,6,"2018-07-15","نقدي",9550,null,3000,6550]
[null,7,"2018-07-17",5493,1640,6550,null,8190]
[null,8,"2018-07-17","مرتجع",null,8190,1840,6350]
[null,9,"2018-08-04",6,12440,6350,null,18790]
[null,10,"2018-08-05","نقدي",null,18790,9000,9790]
[null,11,"2018-08-10","نقدي",null,9790,3000,6790]
[null,12,"2018-08-14",12,8360,6790,null,15150]
[null,13,"2018-08-18",14,19150,15150,10000,24300]
[null,14,"2018-09-10",31,12440,24400,15000,21840]
[null,15,"2018-09-13","نقدي",null,21740,5000,{"$f":"E29+F29-G29","v":16740}]
[null,16,"2018-09-18","نقدي",null,16740,10000,{"$f":"E30+F30-G30","v":6740}]
[null,17,"2018-09-24",43,8262,6740,5000,{"$f":"E31+F31-G31","v":10002}]
[null,18,"2018-10-06",1354,10500,10002,null,{"$f":"E32+F32-G32","v":20502}]
[null,19,"2018-10-09",1355,1840,20502,null,{"$f":"E33+F33-G33","v":22342}]
[null,20,"2018-10-14","نقدي",0,22342,7000,{"$f":"E34+F34-G34","v":15342}]
[null,21,null,null,null,null,null,0]
[null,22,null,null,null,null,null,0]
[null,23,null,null,null,null,null,0]
[null,24,null,null,null,null,null,0]
[null,25,null,null,null,null,null,0]
[null,26,null,null,null,null,null,0]
[null,27,null,null,null,null,null,0]
[null,28,null,null,null,null,null,0]
[null,29,null,null,null,null,null,0]
[null,30,null,null,null,null,null,0]
[null,"الاجمالي",null,null,{"$f":"SUM(E15:E44)","v":101447},null,{"$f":"SUM(G15:G44)","v":82440}]
[]
[null,"بايو كيميكال ايجيبت للمطهرات و اضافات الاعلاف .",null,null,"Bio chemical  Egypt for antiseptic &  feed additives ."]
[null,"المصنع : دست الاشراف  - كوم حماده – البحيرة  .",null,null,"address : dest el ashraf – kom Hamada – al behara"]
[null,"موبايل : 01009958821 – 01099548642    ",null,null,"                            mob : +2001009958821 - +2001099548642                                            "]

{"sheet":"أحمد عايد - ش المرعي","index":10,"n_rows":49,"n_cols":9,"rows_kept":49,"cut":false,"hidden":false,"merged":[[48,1,48,2],[48,4,48,8],[2,1,3,3],[5,6,5,7],[6,6,6,7],[8,6,8,7],[9,6,9,7],[46,1,46,2],[46,4,46,8],[2,4,3,8],[10,6,10,7],[44,1,44,3],[47,1,47,2],[47,4,47,8]]}
[]
[]
[null,"شركة بايوكيميكال ايجيبت",null,null,"Bio chemical egypt"]
[]
[]
[null,null,null,null,null,null,"كود العميل"]
[null,null,null,"حساب عميل",null,null,36]
[]
[null,"اسم العميل",{"$f":"IFERROR(VLOOKUP(G7,'[1]البيانات '!$A$3:$B$102,2,0),\"\")","v":"احمد عايد"},"كاش","تليفون",null,{"$f":"IFERROR(VLOOKUP(G7,'البيانات '!A3:C78,3,0),\"\")","v":1090333985}]
[null,"اسم المنشاة",null,null,"مدير مسئول",null,"هاني مراد"]
[null,"العنوان",{"$f":"IFERROR(VLOOKUP(G7,'البيانات '!A3:D78,4,0),\"\")","v":"مزلقان ديما - مصنع اعلاف المرعي"},null,"مندوب مبيعات ",null,{"$f":"IFERROR(VLOOKUP(G7,'[1]البيانات '!$A$3:$E$102,5,0),\"\")","v":"الكابتن - كامل"}]
[]
[]
[null,"م","التاريخ","رقم الفاتورة","قيمة الفاتورة","رصيد سابق","المدفوع","رصيد متبقي","ملاحظات"]
[null,1,"2018-03-21",5138,10497,null,10497,{"$f":"E15+F15-G15","v":0}]
[null,2,"2018-07-01",5478,9700,null,9300,{"$f":"E16+F16-G16","v":400},"خصم 400"]
[null,3,"2018-08-30",22,16400,null,16400,0]
[null,4,"2018-09-26",44,10300,null,10300,0]
[null,5,"2018-09-26","مرتجع",null,-4800,-4800,0]
[null,6,null,null,null,null,null,0]
[null,7,null,null,null,null,null,0]
[null,8,null,null,null,null,null,0]
[null,9,null,null,null,null,null,0]
[null,10,null,null,null,null,null,0]
[null,11,null,null,null,null,null,0]
[null,12,null,null,null,null,null,0]
[null,13,null,null,null,null,null,0]
[null,14,null,null,null,null,null,0]
[null,15,null,null,null,null,null,0]
[null,16,null,null,null,null,null,0]
[null,17,null,null,null,null,null,0]
[null,18,null,null,null,null,null,0]
[null,19,null,null,null,null,null,0]
[null,20,null,null,null,null,null,0]
[null,21,null,null,null,null,null,0]
[null,22,null,null,null,null,null,0]
[null,23,null,null,null,null,null,0]
[null,24,null,null,null,null,null,0]
[null,25,null,null,null,null,null,0]
[null,26,null,null,null,null,null,0]
[null,27,null,null,null,null,null,0]
[null,28,null,null,null,null,null,0]
[null,29,null,null,null,null,null,0]
[null,30,null,null,null,null,null,0]
[null,"الاجمالي",null,null,{"$f":"SUM(E15:E44)","v":46897},null,{"$f":"SUM(G15:G44)","v":41697}]
[]
[null,"بايو كيميكال ايجيبت للمطهرات و اضافات الاعلاف .",null,null,"Bio chemical  Egypt for antiseptic &  feed additives ."]
[null,"المصنع : دست الاشراف  - كوم حماده – البحيرة  .",null,null,"address : dest el ashraf – kom Hamada – al behara"]
[null,"موبايل : 01009958821 – 01099548642    ",null,null,"                            mob : +2001009958821 - +2001099548642                                            "]

{"sheet":"أسامة علام","index":11,"n_rows":49,"n_cols":9,"rows_kept":49,"cut":false,"hidden":false,"merged":[[48,1,48,2],[48,4,48,8],[2,1,3,3],[5,6,5,7],[6,6,6,7],[8,6,8,7],[9,6,9,7],[46,1,46,2],[46,4,46,8],[2,4,3,8],[10,6,10,7],[44,1,44,3],[47,1,47,2],[47,4,47,8]]}
[]
[]
[null,"شركة بايوكيميكال ايجيبت",null,null,"Bio chemical egypt"]
[]
[]
[null,null,null,null,null,null,"كود العميل"]
[null,null,null,"حساب عميل",null,null,13]
[]
[null,"اسم العميل",{"$f":"IFERROR(VLOOKUP(G7,'[1]البيانات '!$A$3:$B$102,2,0),\"\")","v":"اسامه علام"},null,"تليفون",null,{"$f":"IFERROR(VLOOKUP(G7,'البيانات '!A3:C78,3,0),\"\")","v":0}]
[null,"اسم المنشاة",null,null,"مدير مسئول"]
[null,"العنوان",{"$f":"IFERROR(VLOOKUP(G7,'البيانات '!A3:D78,4,0),\"\")","v":"منشية راضي"},null,"مندوب مبيعات ",null,{"$f":"IFERROR(VLOOKUP(G7,'[1]البيانات '!$A$3:$E$102,5,0),\"\")","v":"الكابتن - كامل"}]
[]
[]
[null,"م","التاريخ","رقم الفاتورة","قيمة الفاتورة","رصيد سابق","المدفوع","رصيد متبقي","ملاحظات"]
[null,1,"رصيد سابق","نقدي",null,440,100,{"$f":"E15+F15-G15","v":340}]
[null,2,null,null,null,340,340,{"$f":"E16+F16-G16","v":0},"ارانب"]
[null,3,null,"فاتورة",440,0,0,440,"2يود*220"]
[null,4,null,null,null,null,null,0]
[null,5,null,null,null,null,null,0]
[null,6,null,null,null,null,null,0]
[null,7,null,null,null,null,null,0]
[null,8,null,null,null,null,null,0]
[null,9,null,null,null,null,null,0]
[null,10,null,null,null,null,null,0]
[null,11,null,null,null,null,null,0]
[null,12,null,null,null,null,null,0]
[null,13,null,null,null,null,null,0]
[null,14,null,null,null,null,null,0]
[null,15,null,null,null,null,null,0]
[null,16,null,null,null,null,null,0]
[null,17,null,null,null,null,null,0]
[null,18,null,null,null,null,null,0]
[null,19,null,null,null,null,null,0]
[null,20,null,null,null,null,null,0]
[null,21,null,null,null,null,null,0]
[null,22,null,null,null,null,null,0]
[null,23,null,null,null,null,null,0]
[null,24,null,null,null,null,null,0]
[null,25,null,null,null,null,null,0]
[null,26,null,null,null,null,null,0]
[null,27,null,null,null,null,null,0]
[null,28,null,null,null,null,null,0]
[null,29,null,null,null,null,null,0]
[null,30,null,null,null,null,null,0]
[null,"الاجمالي",null,null,{"$f":"SUM(E15:E44)","v":440},null,{"$f":"SUM(G15:G44)","v":440}]
[]
[null,"بايو كيميكال ايجيبت للمطهرات و اضافات الاعلاف .",null,null,"Bio chemical  Egypt for antiseptic &  feed additives ."]
[null,"المصنع : دست الاشراف  - كوم حماده – البحيرة  .",null,null,"address : dest el ashraf – kom Hamada – al behara"]
[null,"موبايل : 01009958821 – 01099548642    ",null,null,"                            mob : +2001009958821 - +2001099548642                                            "]

{"sheet":"محمد صبحي عبدالغني","index":12,"n_rows":49,"n_cols":9,"rows_kept":49,"cut":false,"hidden":false,"merged":[[48,1,48,2],[48,4,48,8],[2,1,3,3],[5,6,5,7],[6,6,6,7],[8,6,8,7],[9,6,9,7],[46,1,46,2],[46,4,46,8],[2,4,3,8],[10,6,10,7],[44,1,44,3],[47,1,47,2],[47,4,47,8]]}
[]
[]
[null,"شركة بايوكيميكال ايجيبت",null,null,"Bio chemical egypt"]
[]
[]
[null,null,null,null,null,null,"كود العميل"]
[null,null,null,"حساب عميل",null,null,43]
[]
[null,"اسم العميل",{"$f":"IFERROR(VLOOKUP(G7,'[1]البيانات '!$A$3:$B$102,2,0),\"\")","v":"محمد صبحي عبدالغني"},null,"تليفون",null,{"$f":"IFERROR(VLOOKUP(G7,'البيانات '!A3:C78,3,0),\"\")","v":0}]
[null,"اسم المنشاة",null,null,"مدير مسئول"]
[null,"العنوان",{"$f":"IFERROR(VLOOKUP(G7,'البيانات '!A3:D78,4,0),\"\")","v":"زفتي"},null,"مندوب مبيعات ",null,{"$f":"IFERROR(VLOOKUP(G7,'[1]البيانات '!$A$3:$E$102,5,0),\"\")","v":0}]
[]
[]
[null,"م","التاريخ","رقم الفاتورة","قيمة الفاتورة","رصيد سابق","المدفوع","رصيد متبقي","ملاحظات"]
[null,1,"2018-05-13",null,9450,0,5000,{"$f":"E15+F15-G15","v":4450}]
[null,2,"2018-06-22",null,9450,4450,11000,{"$f":"E16+F16-G16","v":2900}]
[null,3,"2018-08-04",null,10500,2900,0,13400]
[null,4,"2018-08-05","نقدي",-570,13400,10000,2830,"خصم 5ج علي الجركن"]
[null,5,"2018-09-23",null,14790,2830,0,17620]
[null,6,"2018-09-23","نقدي",0,17620,17350,270]
[null,7,null,null,null,null,null,0]
[null,8,null,null,null,null,null,0]
[null,9,null,null,null,null,null,0]
[null,10,null,null,null,null,null,0]
[null,11,null,null,null,null,null,0]
[null,12,null,null,null,null,null,0]
[null,13,null,null,null,null,null,0]
[null,14,null,null,null,null,null,0]
[null,15,null,null,null,null,null,0]
[null,16,null,null,null,null,null,0]
[null,17,null,null,null,null,null,0]
[null,18,null,null,null,null,null,0]
[null,19,null,null,null,null,null,0]
[null,20,null,null,null,null,null,0]
[null,21,null,null,null,null,null,0]
[null,22,null,null,null,null,null,0]
[null,23,null,null,null,null,null,0]
[null,24,null,null,null,null,null,0]
[null,25,null,null,null,null,null,0]
[null,26,null,null,null,null,null,0]
[null,27,null,null,null,null,null,0]
[null,28,null,null,null,null,null,0]
[null,29,null,null,null,null,null,0]
[null,30,null,null,null,null,null,0]
[null,"الاجمالي",null,null,{"$f":"SUM(E15:E44)","v":43620},null,{"$f":"SUM(G15:G44)","v":43350}]
[]
[null,"بايو كيميكال ايجيبت للمطهرات و اضافات الاعلاف .",null,null,"Bio chemical  Egypt for antiseptic &  feed additives ."]
[null,"المصنع : دست الاشراف  - كوم حماده – البحيرة  .",null,null,"address : dest el ashraf – kom Hamada – al behara"]
[null,"موبايل : 01009958821 – 01099548642    ",null,null,"                            mob : +2001009958821 - +2001099548642                                            "]

{"sheet":"شركة الاندلس","index":13,"n_rows":49,"n_cols":9,"rows_kept":49,"cut":false,"hidden":false,"merged":[[48,1,48,2],[48,4,48,8],[2,1,3,3],[5,6,5,7],[6,6,6,7],[8,6,8,7],[9,6,9,7],[46,1,46,2],[46,4,46,8],[2,4,3,8],[10,6,10,7],[44,1,44,3],[47,1,47,2],[47,4,47,8]]}
[]
[]
[null,"شركة بايوكيميكال ايجيبت",null,null,"Bio chemical egypt"]
[]
[]
[null,null,null,null,null,null,"كود العميل"]
[null,null,null,"حساب عميل",null,null,45]
[]
[null,"اسم العميل",{"$f":"IFERROR(VLOOKUP(G7,'[1]البيانات '!$A$3:$B$102,2,0),\"\")","v":"شركة الاندلس"},null,"تليفون",null,{"$f":"IFERROR(VLOOKUP(G7,'البيانات '!A3:C78,3,0),\"\")","v":0}]
[null,"اسم المنشاة",null,null,"مدير مسئول"]
[null,"العنوان",{"$f":"IFERROR(VLOOKUP(G7,'البيانات '!A3:D78,4,0),\"\")","v":"النجاح"},null,"مندوب مبيعات ",null,{"$f":"IFERROR(VLOOKUP(G7,'[1]البيانات '!$A$3:$E$102,5,0),\"\")","v":"الكابتن - كامل"}]
[]
[]
[null,"م","التاريخ","رقم الفاتورة","قيمة الفاتورة","رصيد سابق","المدفوع","رصيد متبقي","ملاحظات"]
[null,1,"2018-06-06",null,995,0,995,{"$f":"E15+F15-G15","v":0},"الشركة"]
[null,2,null,null,800,0,400,{"$f":"E16+F16-G16","v":400},"طلبات لعبده  745ج وجركن فورمالين ب55ج"]
[null,3,"2018-07-09",null,540,0,450,90,"باقي ع الشركة"]
[null,4,"2018-07-09",null,70,400,null,470,"اخذ عبده جركن كلور ب70ج "]
[null,5,null,null,null,null,null,0]
[null,6,null,null,null,null,null,0]
[null,7,null,null,null,null,null,0]
[null,8,null,null,null,null,null,0]
[null,9,null,null,null,null,null,0]
[null,10,null,null,null,null,null,0]
[null,11,null,null,null,null,null,0]
[null,12,null,null,null,null,null,0]
[null,13,null,null,null,null,null,0]
[null,14,null,null,null,null,null,0]
[null,15,null,null,null,null,null,0]
[null,16,null,null,null,null,null,0]
[null,17,null,null,null,null,null,0]
[null,18,null,null,null,null,null,0]
[null,19,null,null,null,null,null,0]
[null,20,null,null,null,null,null,0]
[null,21,null,null,null,null,null,0]
[null,22,null,null,null,null,null,0]
[null,23,null,null,null,null,null,0]
[null,24,null,null,null,null,null,0]
[null,25,null,null,null,null,null,0]
[null,26,null,null,null,null,null,0]
[null,27,null,null,null,null,null,0]
[null,28,null,null,null,null,null,0]
[null,29,null,null,null,null,null,0]
[null,30,null,null,null,null,null,0]
[null,"الاجمالي",null,null,{"$f":"SUM(E15:E44)","v":2405},null,{"$f":"SUM(G15:G44)","v":1845}]
[]
[null,"بايو كيميكال ايجيبت للمطهرات و اضافات الاعلاف .",null,null,"Bio chemical  Egypt for antiseptic &  feed additives ."]
[null,"المصنع : دست الاشراف  - كوم حماده – البحيرة  .",null,null,"address : dest el ashraf – kom Hamada – al behara"]
[null,"موبايل : 01009958821 – 01099548642    ",null,null,"                            mob : +2001009958821 - +2001099548642                                            "]

{"sheet":"م.حسن باشا","index":14,"n_rows":49,"n_cols":9,"rows_kept":49,"cut":false,"hidden":false,"merged":[[48,1,48,2],[48,4,48,8],[2,1,3,3],[5,6,5,7],[6,6,6,7],[8,6,8,7],[9,6,9,7],[46,1,46,2],[46,4,46,8],[2,4,3,8],[10,6,10,7],[44,1,44,3],[47,1,47,2],[47,4,47,8]]}
[]
[]
[null,"شركة بايوكيميكال ايجيبت",null,null,"Bio chemical egypt"]
[]
[]
[null,null,null,null,null,null,"كود العميل"]
[null,null,null,"حساب عميل",null,null,46]
[]
[null,"اسم العميل",{"$f":"IFERROR(VLOOKUP(G7,'[1]البيانات '!$A$3:$B$102,2,0),\"\")","v":"م.حسن الباشا"},null,"تليفون",null,{"$f":"IFERROR(VLOOKUP(G7,'البيانات '!A3:C78,3,0),\"\")","v":0}]
[null,"اسم المنشاة",null,null,"مدير مسئول"]
[null,"العنوان",{"$f":"IFERROR(VLOOKUP(G7,'البيانات '!A3:D78,4,0),\"\")","v":"00:00:00"},null,"مندوب مبيعات ",null,{"$f":"IFERROR(VLOOKUP(G7,'[1]البيانات '!$A$3:$E$102,5,0),\"\")","v":"الكابتن - كامل"}]
[]
[]
[null,"م","التاريخ","رقم الفاتورة","قيمة الفاتورة","رصيد سابق","المدفوع","رصيد متبقي","ملاحظات"]
[null,1,"2018-06-06",null,500,0,500,{"$f":"E15+F15-G15","v":0}]
[null,2,null,null,3645,0,2000,{"$f":"E16+F16-G16","v":1645},"تعبئة 1215 زجاجه ب3ج للوحده"]
[null,3,null,null,1750,1645,0,3395,"10يود1% *175"]
[null,4,null,null,null,null,null,0]
[null,5,null,null,null,null,null,0]
[null,6,null,null,null,null,null,0]
[null,7,null,null,null,null,null,0]
[null,8,null,null,null,null,null,0]
[null,9,null,null,null,null,null,0]
[null,10,null,null,null,null,null,0]
[null,11,null,null,null,null,null,0]
[null,12,null,null,null,null,null,0]
[null,13,null,null,null,null,null,0]
[null,14,null,null,null,null,null,0]
[null,15,null,null,null,null,null,0]
[null,16,null,null,null,null,null,0]
[null,17,null,null,null,null,null,0]
[null,18,null,null,null,null,null,0]
[null,19,null,null,null,null,null,0]
[null,20,null,null,null,null,null,0]
[null,21,null,null,null,null,null,0]
[null,22,null,null,null,null,null,0]
[null,23,null,null,null,null,null,0]
[null,24,null,null,null,null,null,0]
[null,25,null,null,null,null,null,0]
[null,26,null,null,null,null,null,0]
[null,27,null,null,null,null,null,0]
[null,28,null,null,null,null,null,0]
[null,29,null,null,null,null,null,0]
[null,30,null,null,null,null,null,0]
[null,"الاجمالي",null,null,{"$f":"SUM(E15:E44)","v":5895},null,{"$f":"SUM(G15:G44)","v":2500}]
[]
[null,"بايو كيميكال ايجيبت للمطهرات و اضافات الاعلاف .",null,null,"Bio chemical  Egypt for antiseptic &  feed additives ."]
[null,"المصنع : دست الاشراف  - كوم حماده – البحيرة  .",null,null,"address : dest el ashraf – kom Hamada – al behara"]
[null,"موبايل : 01009958821 – 01099548642    ",null,null,"                            mob : +2001009958821 - +2001099548642                                            "]

{"sheet":"د.علاء الرامي","index":15,"n_rows":49,"n_cols":9,"rows_kept":49,"cut":false,"hidden":false,"merged":[[48,1,48,2],[48,4,48,8],[2,1,3,3],[5,6,5,7],[6,6,6,7],[8,6,8,7],[9,6,9,7],[46,1,46,2],[46,4,46,8],[2,4,3,8],[10,6,10,7],[44,1,44,3],[47,1,47,2],[47,4,47,8]]}
[]
[]
[null,"شركة بايوكيميكال ايجيبت",null,null,"Bio chemical egypt"]
[]
[]
[null,null,null,null,null,null,"كود العميل"]
[null,null,null,"حساب عميل",null,null,47]
[]
[null,"اسم العميل",{"$f":"IFERROR(VLOOKUP(G7,'[1]البيانات '!$A$3:$B$102,2,0),\"\")","v":"د.علا الرامي"},null,"تليفون",null,{"$f":"IFERROR(VLOOKUP(G7,'البيانات '!A3:C78,3,0),\"\")","v":0}]
[null,"اسم المنشاة",null,null,"مدير مسئول"]
[null,"العنوان",{"$f":"IFERROR(VLOOKUP(G7,'البيانات '!A3:D78,4,0),\"\")","v":"كوم حماده"},null,"مندوب مبيعات ",null,{"$f":"IFERROR(VLOOKUP(G7,'[1]البيانات '!$A$3:$E$102,5,0),\"\")","v":"الكابتن - كامل"}]
[]
[]
[null,"م","التاريخ","رقم الفاتورة","قيمة الفاتورة","رصيد سابق","المدفوع","رصيد متبقي","ملاحظات"]
[null,1,"2018-10-14",1365,6900,0,0,{"$f":"E15+F15-G15","v":6900}]
[null,2,null,null,null,null,null,{"$f":"E16+F16-G16","v":0}]
[null,3,null,null,null,null,null,0]
[null,4,null,null,null,null,null,0]
[null,5,null,null,null,null,null,0]
[null,6,null,null,null,null,null,0]
[null,7,null,null,null,null,null,0]
[null,8,null,null,null,null,null,0]
[null,9,null,null,null,null,null,0]
[null,10,null,null,null,null,null,0]
[null,11,null,null,null,null,null,0]
[null,12,null,null,null,null,null,0]
[null,13,null,null,null,null,null,0]
[null,14,null,null,null,null,null,0]
[null,15,null,null,null,null,null,0]
[null,16,null,null,null,null,null,0]
[null,17,null,null,null,null,null,0]
[null,18,null,null,null,null,null,0]
[null,19,null,null,null,null,null,0]
[null,20,null,null,null,null,null,0]
[null,21,null,null,null,null,null,0]
[null,22,null,null,null,null,null,0]
[null,23,null,null,null,null,null,0]
[null,24,null,null,null,null,null,0]
[null,25,null,null,null,null,null,0]
[null,26,null,null,null,null,null,0]
[null,27,null,null,null,null,null,0]
[null,28,null,null,null,null,null,0]
[null,29,null,null,null,null,null,0]
[null,30,null,null,null,null,null,0]
[null,"الاجمالي",null,null,{"$f":"SUM(E15:E44)","v":6900},null,{"$f":"SUM(G15:G44)","v":0}]
[]
[null,"بايو كيميكال ايجيبت للمطهرات و اضافات الاعلاف .",null,null,"Bio chemical  Egypt for antiseptic &  feed additives ."]
[null,"المصنع : دست الاشراف  - كوم حماده – البحيرة  .",null,null,"address : dest el ashraf – kom Hamada – al behara"]
[null,"موبايل : 01009958821 – 01099548642    ",null,null,"                            mob : +2001009958821 - +2001099548642                                            "]

{"sheet":"شركة بيوفت - سموحة","index":16,"n_rows":49,"n_cols":9,"rows_kept":49,"cut":false,"hidden":false,"merged":[[48,1,48,2],[48,4,48,8],[2,1,3,3],[5,6,5,7],[6,6,6,7],[8,6,8,7],[9,6,9,7],[46,1,46,2],[46,4,46,8],[2,4,3,8],[10,6,10,7],[44,1,44,3],[47,1,47,2],[47,4,47,8]]}
[]
[]
[null,"شركة بايوكيميكال ايجيبت",null,null,"Bio chemical egypt"]
[]
[]
[null,null,null,null,null,null,"كود العميل"]
[null,null,null,"حساب عميل",null,null,48]
[]
[null,"اسم العميل",{"$f":"IFERROR(VLOOKUP(G7,'[1]البيانات '!$A$3:$B$102,2,0),\"\")","v":"شركة بيوفيت"},null,"تليفون",null,{"$f":"IFERROR(VLOOKUP(G7,'البيانات '!A3:C78,3,0),\"\")","v":0}]
[null,"اسم المنشاة",null,null,"مدير مسئول",null,"د.محمد جمال"]
[null,"العنوان",{"$f":"IFERROR(VLOOKUP(G7,'البيانات '!A3:D78,4,0),\"\")","v":"سموحة - الاسكندرية"},null,"مندوب مبيعات ",null,{"$f":"IFERROR(VLOOKUP(G7,'[1]البيانات '!$A$3:$E$102,5,0),\"\")","v":"الكابتن - كامل"}]
[]
[]
[null,"م","التاريخ","رقم الفاتورة","قيمة الفاتورة","رصيد سابق","المدفوع","رصيد متبقي","ملاحظات"]
[null,1,"2018-10-04",1352,5918,0,0,{"$f":"E15+F15-G15","v":5918}]
[null,2,"2018-10-17",1370,7625,5918,0,{"$f":"E16+F16-G16","v":13543}]
[null,3,null,null,null,null,null,0]
[null,4,null,null,null,null,null,0]
[null,5,null,null,null,null,null,0]
[null,6,null,null,null,null,null,0]
[null,7,null,null,null,null,null,0]
[null,8,null,null,null,null,null,0]
[null,9,null,null,null,null,null,0]
[null,10,null,null,null,null,null,0]
[null,11,null,null,null,null,null,0]
[null,12,null,null,null,null,null,0]
[null,13,null,null,null,null,null,0]
[null,14,null,null,null,null,null,0]
[null,15,null,null,null,null,null,0]
[null,16,null,null,null,null,null,0]
[null,17,null,null,null,null,null,0]
[null,18,null,null,null,null,null,0]
[null,19,null,null,null,null,null,0]
[null,20,null,null,null,null,null,0]
[null,21,null,null,null,null,null,0]
[null,22,null,null,null,null,null,0]
[null,23,null,null,null,null,null,0]
[null,24,null,null,null,null,null,0]
[null,25,null,null,null,null,null,0]
[null,26,null,null,null,null,null,0]
[null,27,null,null,null,null,null,0]
[null,28,null,null,null,null,null,0]
[null,29,null,null,null,null,null,0]
[null,30,null,null,null,null,null,0]
[null,"الاجمالي",null,null,{"$f":"SUM(E15:E44)","v":13543},null,{"$f":"SUM(G15:G44)","v":0}]
[]
[null,"بايو كيميكال ايجيبت للمطهرات و اضافات الاعلاف .",null,null,"Bio chemical  Egypt for antiseptic &  feed additives ."]
[null,"المصنع : دست الاشراف  - كوم حماده – البحيرة  .",null,null,"address : dest el ashraf – kom Hamada – al behara"]
[null,"موبايل : 01009958821 – 01099548642    ",null,null,"                            mob : +2001009958821 - +2001099548642                                            "]

{"sheet":"م.محمد حجاج","index":17,"n_rows":49,"n_cols":9,"rows_kept":49,"cut":false,"hidden":false,"merged":[[48,1,48,2],[48,4,48,8],[2,1,3,3],[5,6,5,7],[6,6,6,7],[8,6,8,7],[9,6,9,7],[46,1,46,2],[46,4,46,8],[2,4,3,8],[10,6,10,7],[44,1,44,3],[47,1,47,2],[47,4,47,8]]}
[]
[]
[null,"شركة بايوكيميكال ايجيبت",null,null,"Bio chemical egypt"]
[]
[]
[null,null,null,null,null,null,"كود العميل"]
[null,null,null,"حساب عميل",null,null,49]
[]
[null,"اسم العميل",{"$f":"IFERROR(VLOOKUP(G7,'[1]البيانات '!$A$3:$B$102,2,0),\"\")","v":"م.محمد حجاج"},null,"تليفون",null,{"$f":"IFERROR(VLOOKUP(G7,'البيانات '!A3:C78,3,0),\"\")","v":0}]
[null,"اسم المنشاة",null,null,"مدير مسئول"]
[null,"العنوان",{"$f":"IFERROR(VLOOKUP(G7,'البيانات '!A3:D78,4,0),\"\")","v":"النهضة - العامرية"},null,"مندوب مبيعات ",null,{"$f":"IFERROR(VLOOKUP(G7,'[1]البيانات '!$A$3:$E$102,5,0),\"\")","v":"الكابتن - كامل"}]
[]
[]
[null,"م","التاريخ","رقم الفاتورة","قيمة الفاتورة","رصيد سابق","المدفوع","رصيد متبقي","ملاحظات"]
[null,1,"2018-10-01",null,1840,0,1840,{"$f":"E15+F15-G15","v":0},"خالص"]
[null,2,null,null,null,null,null,{"$f":"E16+F16-G16","v":0}]
[null,3,null,null,null,null,null,0]
[null,4,null,null,null,null,null,0]
[null,5,null,null,null,null,null,0]
[null,6,null,null,null,null,null,0]
[null,7,null,null,null,null,null,0]
[null,8,null,null,null,null,null,0]
[null,9,null,null,null,null,null,0]
[null,10,null,null,null,null,null,0]
[null,11,null,null,null,null,null,0]
[null,12,null,null,null,null,null,0]
[null,13,null,null,null,null,null,0]
[null,14,null,null,null,null,null,0]
[null,15,null,null,null,null,null,0]
[null,16,null,null,null,null,null,0]
[null,17,null,null,null,null,null,0]
[null,18,null,null,null,null,null,0]
[null,19,null,null,null,null,null,0]
[null,20,null,null,null,null,null,0]
[null,21,null,null,null,null,null,0]
[null,22,null,null,null,null,null,0]
[null,23,null,null,null,null,null,0]
[null,24,null,null,null,null,null,0]
[null,25,null,null,null,null,null,0]
[null,26,null,null,null,null,null,0]
[null,27,null,null,null,null,null,0]
[null,28,null,null,null,null,null,0]
[null,29,null,null,null,null,null,0]
[null,30,null,null,null,null,null,0]
[null,"الاجمالي",null,null,{"$f":"SUM(E15:E44)","v":1840},null,{"$f":"SUM(G15:G44)","v":1840}]
[]
[null,"بايو كيميكال ايجيبت للمطهرات و اضافات الاعلاف .",null,null,"Bio chemical  Egypt for antiseptic &  feed additives ."]
[null,"المصنع : دست الاشراف  - كوم حماده – البحيرة  .",null,null,"address : dest el ashraf – kom Hamada – al behara"]
[null,"موبايل : 01009958821 – 01099548642    ",null,null,"                            mob : +2001009958821 - +2001099548642                                            "]

{"sheet":"د.محمود أبو سالم","index":18,"n_rows":49,"n_cols":9,"rows_kept":49,"cut":false,"hidden":false,"merged":[[48,1,48,2],[48,4,48,8],[2,1,3,3],[5,6,5,7],[6,6,6,7],[8,6,8,7],[9,6,9,7],[46,1,46,2],[46,4,46,8],[2,4,3,8],[10,6,10,7],[44,1,44,3],[47,1,47,2],[47,4,47,8]]}
[]
[]
[null,"شركة بايوكيميكال ايجيبت",null,null,"Bio chemical egypt"]
[]
[]
[null,null,null,null,null,null,"كود العميل"]
[null,null,null,"حساب عميل",null,null,70]
[]
[null,"اسم العميل",{"$f":"IFERROR(VLOOKUP(G7,'[1]البيانات '!$A$3:$B$102,2,0),\"\")","v":"د.محمود ابوسالم"},null,"تليفون",null,{"$f":"IFERROR(VLOOKUP(G7,'البيانات '!A3:C78,3,0),\"\")","v":0}]
[null,"اسم المنشاة",null,null,"مدير مسئول"]
[null,"العنوان",{"$f":"IFERROR(VLOOKUP(G7,'البيانات '!A3:D78,4,0),\"\")","v":"خربتا - كوم حماده"},null,"مندوب مبيعات ",null,{"$f":"IFERROR(VLOOKUP(G7,'[1]البيانات '!$A$3:$E$102,5,0),\"\")","v":"الكابتن - كامل"}]
[]
[]
[null,"م","التاريخ","رقم الفاتورة","قيمة الفاتورة","رصيد سابق","المدفوع","رصيد متبقي","ملاحظات"]
[null,1,"2018-09-25",null,2200,0,2200,{"$f":"E15+F15-G15","v":0},"خالص"]
[null,2,"2018-10-13","عينة",0,0,0,0,"5لتر يود بالجليسرين"]
[null,3,null,null,null,null,null,{"$f":"E17+F17-G17","v":0}]
[null,4,null,null,null,null,null,0]
[null,5,null,null,null,null,null,0]
[null,6,null,null,null,null,null,0]
[null,7,null,null,null,null,null,0]
[null,8,null,null,null,null,null,0]
[null,9,null,null,null,null,null,0]
[null,10,null,null,null,null,null,0]
[null,11,null,null,null,null,null,0]
[null,12,null,null,null,null,null,0]
[null,13,null,null,null,null,null,0]
[null,14,null,null,null,null,null,0]
[null,15,null,null,null,null,null,0]
[null,16,null,null,null,null,null,0]
[null,17,null,null,null,null,null,0]
[null,18,null,null,null,null,null,0]
[null,19,null,null,null,null,null,0]
[null,20,null,null,null,null,null,0]
[null,21,null,null,null,null,null,0]
[null,22,null,null,null,null,null,0]
[null,23,null,null,null,null,null,0]
[null,24,null,null,null,null,null,0]
[null,25,null,null,null,null,null,0]
[null,26,null,null,null,null,null,0]
[null,27,null,null,null,null,null,0]
[null,28,null,null,null,null,null,0]
[null,29,null,null,null,null,null,0]
[null,30,null,null,null,null,null,0]
[null,"الاجمالي",null,null,{"$f":"SUM(E15:E44)","v":2200},null,{"$f":"SUM(G15:G44)","v":2200}]
[]
[null,"بايو كيميكال ايجيبت للمطهرات و اضافات الاعلاف .",null,null,"Bio chemical  Egypt for antiseptic &  feed additives ."]
[null,"المصنع : دست الاشراف  - كوم حماده – البحيرة  .",null,null,"address : dest el ashraf – kom Hamada – al behara"]
[null,"موبايل : 01009958821 – 01099548642    ",null,null,"                            mob : +2001009958821 - +2001099548642                                            "]

{"sheet":"د.سامر عبد الجواد","index":19,"n_rows":49,"n_cols":9,"rows_kept":49,"cut":false,"hidden":false,"merged":[[48,1,48,2],[48,4,48,8],[2,1,3,3],[5,6,5,7],[6,6,6,7],[8,6,8,7],[9,6,9,7],[46,1,46,2],[46,4,46,8],[2,4,3,8],[10,6,10,7],[44,1,44,3],[47,1,47,2],[47,4,47,8]]}
[]
[]
[null,"شركة بايوكيميكال ايجيبت",null,null,"Bio chemical egypt"]
[]
[]
[null,null,null,null,null,null,"كود العميل"]
[null,null,null,"حساب عميل",null,null,71]
[]
[null,"اسم العميل",{"$f":"IFERROR(VLOOKUP(G7,'[1]البيانات '!$A$3:$B$102,2,0),\"\")","v":"د.سامر عبدالجواد"},null,"تليفون",null,{"$f":"IFERROR(VLOOKUP(G7,'البيانات '!A3:C78,3,0),\"\")","v":0}]
[null,"اسم المنشاة",null,null,"مدير مسئول"]
[null,"العنوان",{"$f":"IFERROR(VLOOKUP(G7,'البيانات '!A3:D78,4,0),\"\")","v":"00:00:00"},null,"مندوب مبيعات ",null,{"$f":"IFERROR(VLOOKUP(G7,'[1]البيانات '!$A$3:$E$102,5,0),\"\")","v":"الكابتن - كامل"}]
[]
[]
[null,"م","التاريخ","رقم الفاتورة","قيمة الفاتورة","رصيد سابق","المدفوع","رصيد متبقي","ملاحظات"]
[null,1,"2018-07-09",null,1115,0,1000,{"$f":"E15+F15-G15","v":115},"115جركن*3.5 60ك فورمالين 115 شغل 200نولون100ماء"]
[null,2,null,null,null,115,500,{"$f":"E16+F16-G16","v":-385},"عربون مقدم "]
[null,3,"2018-07-15",null,200,-385,0,-185,"نولون سيارة الكراتين"]
[null,4,null,null,2640,-185,0,2455]
[null,5,"2018-07-31","نقدي",0,2640,1600,1040]
[null,6,null,null,2500,1040,2000,1540,"اخذ25 ك جلوتر.....*100"]
[null,7,null,null,null,null,null,0]
[null,8,null,null,null,null,null,0]
[null,9,null,null,null,null,null,0]
[null,10,null,null,null,null,null,0]
[null,11,null,null,null,null,null,0]
[null,12,null,null,null,null,null,0]
[null,13,null,null,null,null,null,0]
[null,14,null,null,null,null,null,0]
[null,15,null,null,null,null,null,0]
[null,16,null,null,null,null,null,0]
[null,17,null,null,null,null,null,0]
[null,18,null,null,null,null,null,0]
[null,19,null,null,null,null,null,0]
[null,20,null,null,null,null,null,0]
[null,21,null,null,null,null,null,0]
[null,22,null,null,null,null,null,0]
[null,23,null,null,null,null,null,0]
[null,24,null,null,null,null,null,0]
[null,25,null,null,null,null,null,0]
[null,26,null,null,null,null,null,0]
[null,27,null,null,null,null,null,0]
[null,28,null,null,null,null,null,0]
[null,29,null,null,null,null,null,0]
[null,30,null,null,null,null,null,0]
[null,"الاجمالي",null,null,{"$f":"SUM(E15:E44)","v":6455},null,{"$f":"SUM(G15:G44)","v":5100}]
[]
[null,"بايو كيميكال ايجيبت للمطهرات و اضافات الاعلاف .",null,null,"Bio chemical  Egypt for antiseptic &  feed additives ."]
[null,"المصنع : دست الاشراف  - كوم حماده – البحيرة  .",null,null,"address : dest el ashraf – kom Hamada – al behara"]
[null,"موبايل : 01009958821 – 01099548642    ",null,null,"                            mob : +2001009958821 - +2001099548642                                            "]

{"sheet":"محمود عبد الكريم","index":20,"n_rows":49,"n_cols":9,"rows_kept":49,"cut":false,"hidden":false,"merged":[[48,1,48,2],[48,4,48,8],[2,1,3,3],[5,6,5,7],[6,6,6,7],[8,6,8,7],[9,6,9,7],[46,1,46,2],[46,4,46,8],[2,4,3,8],[10,6,10,7],[44,1,44,3],[47,1,47,2],[47,4,47,8]]}
[]
[]
[null,"شركة بايوكيميكال ايجيبت",null,null,"Bio chemical egypt"]
[]
[]
[null,null,null,null,null,null,"كود العميل"]
[null,null,null,"حساب عميل",null,null,17]
[null,null,null,"كاش"]
[null,"اسم العميل",{"$f":"IFERROR(VLOOKUP(G7,'[1]البيانات '!$A$3:$B$102,2,0),\"\")","v":"محمود عبدالكريم"},null,"تليفون",null,{"$f":"IFERROR(VLOOKUP(G7,'البيانات '!A3:C78,3,0),\"\")","v":1027822088}]
[null,"اسم المنشاة","ميديكال ستار",null,"مدير مسئول"]
[null,"العنوان",{"$f":"IFERROR(VLOOKUP(G7,'البيانات '!A3:D78,4,0),\"\")","v":"السادات - المنطقة السادسه"},null,"مندوب مبيعات ",null,{"$f":"IFERROR(VLOOKUP(G7,'[1]البيانات '!$A$3:$E$102,5,0),\"\")","v":"الكابتن - كامل"}]
[]
[]
[null,"م","التاريخ","رقم الفاتورة","قيمة الفاتورة","رصيد سابق","المدفوع","رصيد متبقي","ملاحظات"]
[null,1,"2018-01-02","بدون",2580,0,2580,{"$f":"E15+F15-G15","v":0},"كاش"]
[null,2,"2018-01-14",5102,4500,0,4500,{"$f":"E16+F16-G16","v":0},"كاش"]
[null,3,null,null,null,null,null,0]
[null,4,null,null,null,null,null,0]
[null,5,null,null,null,null,null,0]
[null,6,null,null,null,null,null,0]
[null,7,null,null,null,null,null,0]
[null,8,null,null,null,null,null,0]
[null,9,null,null,null,null,null,0]
[null,10,null,null,null,null,null,0]
[null,11,null,null,null,null,null,0]
[null,12,null,null,null,null,null,0]
[null,13,null,null,null,null,null,0]
[null,14,null,null,null,null,null,0]
[null,15,null,null,null,null,null,0]
[null,16,null,null,null,null,null,0]
[null,17,null,null,null,null,null,0]
[null,18,null,null,null,null,null,0]
[null,19,null,null,null,null,null,0]
[null,20,null,null,null,null,null,0]
[null,21,null,null,null,null,null,0]
[null,22,null,null,null,null,null,0]
[null,23,null,null,null,null,null,0]
[null,24,null,null,null,null,null,0]
[null,25,null,null,null,null,null,0]
[null,26,null,null,null,null,null,0]
[null,27,null,null,null,null,null,0]
[null,28,null,null,null,null,null,0]
[null,29,null,null,null,null,null,0]
[null,30,null,null,null,null,null,0]
[null,"الاجمالي",null,null,{"$f":"SUM(E15:E44)","v":7080},null,{"$f":"SUM(G15:G44)","v":7080}]
[]
[null,"بايو كيميكال ايجيبت للمطهرات و اضافات الاعلاف .",null,null,"Bio chemical  Egypt for antiseptic &  feed additives ."]
[null,"المصنع : دست الاشراف  - كوم حماده – البحيرة  .",null,null,"address : dest el ashraf – kom Hamada – al behara"]
[null,"موبايل : 01009958821 – 01099548642    ",null,null,"                            mob : +2001009958821 - +2001099548642                                            "]

{"sheet":"صبري الجندي","index":21,"n_rows":49,"n_cols":9,"rows_kept":49,"cut":false,"hidden":false,"merged":[[48,1,48,2],[48,4,48,8],[2,1,3,3],[5,6,5,7],[6,6,6,7],[8,6,8,7],[9,6,9,7],[46,1,46,2],[46,4,46,8],[2,4,3,8],[10,6,10,7],[44,1,44,3],[47,1,47,2],[47,4,47,8],[14,3,14,6]]}
[]
[]
[null,"شركة بايوكيميكال ايجيبت",null,null,"Bio chemical egypt"]
[]
[]
[null,null,null,null,null,null,"كود العميل"]
[null,null,null,"حساب عميل",null,null,68]
[]
[null,"اسم العميل",{"$f":"IFERROR(VLOOKUP(G7,'[1]البيانات '!$A$3:$B$102,2,0),\"\")","v":"صبري الجندي"},null,"تليفون",null,{"$f":"IFERROR(VLOOKUP(G7,'البيانات '!A3:C78,3,0),\"\")","v":1027987089}]
[null,"اسم المنشاة",null,null,"مدير مسئول"]
[null,"العنوان",{"$f":"IFERROR(VLOOKUP(G7,'البيانات '!A3:D78,4,0),\"\")","v":"خربتا - كوم حماده"},null,"مندوب مبيعات ",null,{"$f":"IFERROR(VLOOKUP(G7,'[1]البيانات '!$A$3:$E$102,5,0),\"\")","v":"الكابتن - كامل"}]
[]
[]
[null,"م","التاريخ","رقم الفاتورة","قيمة الفاتورة","رصيد سابق","المدفوع","رصيد متبقي","ملاحظات"]
[null,1,"2018-10-15","رصيد حتي هذا التاريخ",null,null,null,545]
[null,2,null,null,null,null,null,{"$f":"E16+F16-G16","v":0}]
[null,3,null,null,null,null,null,0]
[null,4,null,null,null,null,null,0]
[null,5,null,null,null,null,null,0]
[null,6,null,null,null,null,null,0]
[null,7,null,null,null,null,null,0]
[null,8,null,null,null,null,null,0]
[null,9,null,null,null,null,null,0]
[null,10,null,null,null,null,null,0]
[null,11,null,null,null,null,null,0]
[null,12,null,null,null,null,null,0]
[null,13,null,null,null,null,null,0]
[null,14,null,null,null,null,null,0]
[null,15,null,null,null,null,null,0]
[null,16,null,null,null,null,null,0]
[null,17,null,null,null,null,null,0]
[null,18,null,null,null,null,null,0]
[null,19,null,null,null,null,null,0]
[null,20,null,null,null,null,null,0]
[null,21,null,null,null,null,null,0]
[null,22,null,null,null,null,null,0]
[null,23,null,null,null,null,null,0]
[null,24,null,null,null,null,null,0]
[null,25,null,null,null,null,null,0]
[null,26,null,null,null,null,null,0]
[null,27,null,null,null,null,null,0]
[null,28,null,null,null,null,null,0]
[null,29,null,null,null,null,null,0]
[null,30,null,null,null,null,null,0]
[null,"الاجمالي",null,null,{"$f":"SUM(E15:E44)","v":0},null,{"$f":"SUM(G15:G44)","v":0}]
[]
[null,"بايو كيميكال ايجيبت للمطهرات و اضافات الاعلاف .",null,null,"Bio chemical  Egypt for antiseptic &  feed additives ."]
[null,"المصنع : دست الاشراف  - كوم حماده – البحيرة  .",null,null,"address : dest el ashraf – kom Hamada – al behara"]
[null,"موبايل : 01009958821 – 01099548642    ",null,null,"                            mob : +2001009958821 - +2001099548642                                            "]

{"sheet":"محمد الصادق","index":22,"n_rows":49,"n_cols":9,"rows_kept":49,"cut":false,"hidden":false,"merged":[[48,1,48,2],[48,4,48,8],[2,1,3,3],[5,6,5,7],[6,6,6,7],[8,6,8,7],[9,6,9,7],[46,1,46,2],[46,4,46,8],[2,4,3,8],[10,6,10,7],[44,1,44,3],[47,1,47,2],[47,4,47,8],[14,3,14,6]]}
[]
[]
[null,"شركة بايوكيميكال ايجيبت",null,null,"Bio chemical egypt"]
[]
[]
[null,null,null,null,null,null,"كود العميل"]
[null,null,null,"حساب عميل",null,null,69]
[]
[null,"اسم العميل",{"$f":"IFERROR(VLOOKUP(G7,'[1]البيانات '!$A$3:$B$102,2,0),\"\")","v":"محمد الصادق"},null,"تليفون",null,{"$f":"IFERROR(VLOOKUP(G7,'البيانات '!A3:C78,3,0),\"\")","v":1008292563}]
[null,"اسم المنشاة","موزع",null,"مدير مسئول"]
[null,"العنوان",{"$f":"IFERROR(VLOOKUP(G7,'البيانات '!A3:D78,4,0),\"\")","v":"الزقازيق - برج القضاة"},null,"مندوب مبيعات ",null,{"$f":"IFERROR(VLOOKUP(G7,'[1]البيانات '!$A$3:$E$102,5,0),\"\")","v":"الكابتن - كامل"}]
[]
[]
[null,"م","التاريخ","رقم الفاتورة","قيمة الفاتورة","رصيد سابق","المدفوع","رصيد متبقي","ملاحظات"]
[null,1,null,"المتبقي عليه",null,null,null,6870]
[null,2,null,null,null,null,null,0]
[null,3,null,null,null,null,null,{"$f":"E17+F17-G17","v":0}]
[null,4,null,null,null,null,null,0]
[null,5,null,null,null,null,null,0]
[null,6,null,null,null,null,null,0]
[null,7,null,null,null,null,null,0]
[null,8,null,null,null,null,null,0]
[null,9,null,null,null,null,null,0]
[null,10,null,null,null,null,null,0]
[null,11,null,null,null,null,null,0]
[null,12,null,null,null,null,null,0]
[null,13,null,null,null,null,null,0]
[null,14,null,null,null,null,null,0]
[null,15,null,null,null,null,null,0]
[null,16,null,null,null,null,null,0]
[null,17,null,null,null,null,null,0]
[null,18,null,null,null,null,null,0]
[null,19,null,null,null,null,null,0]
[null,20,null,null,null,null,null,0]
[null,21,null,null,null,null,null,0]
[null,22,null,null,null,null,null,0]
[null,23,null,null,null,null,null,0]
[null,24,null,null,null,null,null,0]
[null,25,null,null,null,null,null,0]
[null,26,null,null,null,null,null,0]
[null,27,null,null,null,null,null,0]
[null,28,null,null,null,null,null,0]
[null,29,null,null,null,null,null,0]
[null,30,null,null,null,null,null,0]
[null,"الاجمالي",null,null,{"$f":"SUM(E15:E44)","v":0},null,{"$f":"SUM(G15:G44)","v":0}]
[]
[null,"بايو كيميكال ايجيبت للمطهرات و اضافات الاعلاف .",null,null,"Bio chemical  Egypt for antiseptic &  feed additives ."]
[null,"المصنع : دست الاشراف  - كوم حماده – البحيرة  .",null,null,"address : dest el ashraf – kom Hamada – al behara"]
[null,"موبايل : 01009958821 – 01099548642    ",null,null,"                            mob : +2001009958821 - +2001099548642                                            "]

{"sheet":"رمضان السماوي","index":23,"n_rows":84,"n_cols":9,"rows_kept":84,"cut":false,"hidden":false,"merged":[[83,1,83,2],[83,4,83,8],[2,1,3,3],[5,6,5,7],[6,6,6,7],[8,6,8,7],[9,6,9,7],[81,1,81,2],[81,4,81,8],[2,4,3,8],[10,6,10,7],[79,1,79,3],[82,1,82,2],[82,4,82,8]]}
[]
[]
[null,"شركة بايوكيميكال ايجيبت",null,null,"Bio chemical egypt"]
[]
[]
[null,null,null,null,null,null,"كود العميل"]
[null,null,null,"حساب عميل",null,null,35]
[]
[null,"اسم العميل",{"$f":"IFERROR(VLOOKUP(G7,'[1]البيانات '!$A$3:$B$102,2,0),\"\")","v":"رمضان السماوي"},null,"تليفون",null,{"$f":"IFERROR(VLOOKUP(G7,'البيانات '!A3:C78,3,0),\"\")","v":1012340447}]
[null,"اسم المنشاة",null,null,"مدير مسئول"]
[null,"العنوان",{"$f":"IFERROR(VLOOKUP(G7,'البيانات '!A3:D78,4,0),\"\")","v":"طنوب - مركز2 - مركز بدر"},null,"مندوب مبيعات ",null,{"$f":"IFERROR(VLOOKUP(G7,'[1]البيانات '!$A$3:$E$102,5,0),\"\")","v":"احمد خفاجي"}]
[]
[]
[null,"م","التاريخ","رقم الفاتورة","قيمة الفاتورة","رصيد سابق","المدفوع","رصيد متبقي","ملاحظات"]
[null,1,"2018-03-14",5133,10200,null,null,{"$f":"E15+F15-G15","v":10200}]
[null,2,"2018-03-16",5143,4200,10200,null,{"$f":"E16+F16-G16","v":14400}]
[null,3,"2018-03-26",5146,9190,14400,null,23590]
[null,4,"2018-03-26",5147,500,23590,null,24090]
[null,5,"2018-05-11","نقدي",null,24090,14000,10090]
[null,6,"2018-05-12",5233,16450,10090,null,26540]
[null,7,"2018-05-24","نقدي",null,26540,10000,16540]
[null,8,"2018-05-28",5240,10600,16540,null,27140]
[null,9,"2018-05-30",5242,3800,27140,null,30940]
[null,10,"2018-06-12",5463,5880,30940,null,36820]
[null,11,"2018-07-02","نقدي",null,36820,20000,16820]
[null,12,"2018-07-03",5482,17550,16820,null,34370]
[null,13,"2018-07-26","نقدي",null,34370,16500,17870]
[null,14,"2018-07-29",5500,16900,17870,null,34770]
[null,15,"2018-07-29","بدون فاتورة",500,3470,null,3970]
[null,16,"2018-08-19",17,13350,35270,null,48620]
[null,17,"2018-08-19","نقدي",null,48620,20000,28620]
[null,18,"2018-08-19","اتفاق جديد",null,28620,2100,26520]
[null,19,"2018-08-24",18,3750,26520,null,30270]
[null,20,"2018-09-10",33,5825,30270,null,36095]
[null,21,"2018-09-29","نقدي",null,30520,20000,10520]
[null,22,"2018-10-03",49,7050,10520,null,17570]
[null,23,"2018-10-07","نقدي",null,17570,17000,570]
[null,24,"2018-10-09",1356,18810,570,null,19380]
[null,25,"2018-10-13","نقدي",0,19380,20000,-620]
[null,26,null,null,null,null,null,0]
[null,27,null,null,null,null,null,0]
[null,28,null,null,null,null,null,0]
[null,29,null,null,null,null,null,0]
[null,30,null,null,null,null,null,0]
[null,31,null,null,null,null,null,0]
[null,32,null,null,null,null,null,0]
[null,33,null,null,null,null,null,0]
[null,34,null,null,null,null,null,0]
[null,35,null,null,null,null,null,0]
[null,36,null,null,null,null,null,0]
[null,37,null,null,null,null,null,0]
[null,38,null,null,null,null,null,0]
[null,39,null,null,null,null,null,0]
[null,40,null,null,null,null,null,0]
[null,41,null,null,null,null,null,0]
[null,42,null,null,null,null,null,0]
[null,43,null,null,null,null,null,0]
[null,44,null,null,null,null,null,0]
[null,45,null,null,null,null,null,0]
[null,46,null,null,null,null,null,0]
[null,47,null,null,null,null,null,0]
[null,48,null,null,null,null,null,0]
[null,49,null,null,null,null,null,0]
[null,50,null,null,null,null,null,0]
[null,51,null,null,null,null,null,0]
[null,52,null,null,null,null,null,0]
[null,53,null,null,null,null,null,0]
[null,54,null,null,null,null,null,0]
[null,55,null,null,null,null,null,0]
[null,56,null,null,null,null,null,0]
[null,57,null,null,null,null,null,0]
[null,58,null,null,null,null,null,0]
[null,59,null,null,null,null,null,0]
[null,60,null,null,null,null,null,0]
[null,61,null,null,null,null,null,0]
[null,62,null,null,null,null,null,0]
[null,63,null,null,null,null,null,0]
[null,64,null,null,null,null,null,0]
[null,65,null,null,null,null,null,0]
[null,"الاجمالي",null,null,{"$f":"SUM(E15:E44)","v":144555},null,{"$f":"SUM(G15:G44)","v":139600}]
[]
[null,"بايو كيميكال ايجيبت للمطهرات و اضافات الاعلاف .",null,null,"Bio chemical  Egypt for antiseptic &  feed additives ."]
[null,"المصنع : دست الاشراف  - كوم حماده – البحيرة  .",null,null,"address : dest el ashraf – kom Hamada – al behara"]
[null,"موبايل : 01009958821 – 01099548642    ",null,null,"                            mob : +2001009958821 - +2001099548642                                            "]

{"sheet":"وليد بركات","index":24,"n_rows":49,"n_cols":9,"rows_kept":49,"cut":false,"hidden":false,"merged":[[48,1,48,2],[48,4,48,8],[2,1,3,3],[5,6,5,7],[6,6,6,7],[8,6,8,7],[9,6,9,7],[46,1,46,2],[46,4,46,8],[2,4,3,8],[10,6,10,7],[44,1,44,3],[47,1,47,2],[47,4,47,8]]}
[]
[]
[null,"شركة بايوكيميكال ايجيبت",null,null,"Bio chemical egypt"]
[]
[]
[null,null,null,null,null,null,"كود العميل"]
[null,null,null,"حساب عميل",null,null,72]
[]
[null,"اسم العميل",{"$f":"IFERROR(VLOOKUP(G7,'[1]البيانات '!$A$3:$B$102,2,0),\"\")","v":"وليد بركات"},null,"تليفون",null,{"$f":"IFERROR(VLOOKUP(G7,'البيانات '!A3:C78,3,0),\"\")","v":0}]
[null,"اسم المنشاة",null,null,"مدير مسئول"]
[null,"العنوان",{"$f":"IFERROR(VLOOKUP(G7,'البيانات '!A3:D78,4,0),\"\")","v":"طنوب - المنوفية"},null,"مندوب مبيعات ",null,{"$f":"IFERROR(VLOOKUP(G7,'[1]البيانات '!$A$3:$E$102,5,0),\"\")","v":"احمد خفاجي"}]
[]
[]
[null,"م","التاريخ","رقم الفاتورة","قيمة الفاتورة","رصيد سابق","المدفوع","رصيد متبقي","ملاحظات"]
[null,1,"2018-05-28",null,14040,0,0,{"$f":"E15+F15-G15","v":14040}]
[null,2,"2018-07-21",null,13650,14040,14000,{"$f":"E16+F16-G16","v":13690},"مرسلين"]
[null,3,"2018-09-30","نقدي",0,13690,11000,2690]
[null,4,null,"مرتجع",-1200,2690,null,1490]
[null,5,null,null,null,null,null,0]
[null,6,null,null,null,null,null,0]
[null,7,null,null,null,null,null,0]
[null,8,null,null,null,null,null,0]
[null,9,null,null,null,null,null,0]
[null,10,null,null,null,null,null,0]
[null,11,null,null,null,null,null,0]
[null,12,null,null,null,null,null,0]
[null,13,null,null,null,null,null,0]
[null,14,null,null,null,null,null,0]
[null,15,null,null,null,null,null,0]
[null,16,null,null,null,null,null,0]
[null,17,null,null,null,null,null,0]
[null,18,null,null,null,null,null,0]
[null,19,null,null,null,null,null,0]
[null,20,null,null,null,null,null,0]
[null,21,null,null,null,null,null,0]
[null,22,null,null,null,null,null,0]
[null,23,null,null,null,null,null,0]
[null,24,null,null,null,null,null,0]
[null,25,null,null,null,null,null,0]
[null,26,null,null,null,null,null,0]
[null,27,null,null,null,null,null,0]
[null,28,null,null,null,null,null,0]
[null,29,null,null,null,null,null,0]
[null,30,null,null,null,null,null,0]
[null,"الاجمالي",null,null,{"$f":"SUM(E15:E44)","v":26490},null,{"$f":"SUM(G15:G44)","v":25000}]
[]
[null,"بايو كيميكال ايجيبت للمطهرات و اضافات الاعلاف .",null,null,"Bio chemical  Egypt for antiseptic &  feed additives ."]
[null,"المصنع : دست الاشراف  - كوم حماده – البحيرة  .",null,null,"address : dest el ashraf – kom Hamada – al behara"]
[null,"موبايل : 01009958821 – 01099548642    ",null,null,"                            mob : +2001009958821 - +2001099548642                                            "]

{"sheet":"رمضان سلامة","index":25,"n_rows":49,"n_cols":9,"rows_kept":49,"cut":false,"hidden":false,"merged":[[48,1,48,2],[48,4,48,8],[2,1,3,3],[5,6,5,7],[6,6,6,7],[8,6,8,7],[9,6,9,7],[46,1,46,2],[46,4,46,8],[2,4,3,8],[10,6,10,7],[44,1,44,3],[47,1,47,2],[47,4,47,8]]}
[]
[]
[null,"شركة بايوكيميكال ايجيبت",null,null,"Bio chemical egypt"]
[]
[]
[null,null,null,null,null,null,"كود العميل"]
[null,null,null,"حساب عميل",null,null,73]
[]
[null,"اسم العميل",{"$f":"IFERROR(VLOOKUP(G7,'[1]البيانات '!$A$3:$B$102,2,0),\"\")","v":"رمضان سلامه"},null,"تليفون",null,{"$f":"IFERROR(VLOOKUP(G7,'البيانات '!A3:C78,3,0),\"\")","v":0}]
[null,"اسم المنشاة",null,null,"مدير مسئول"]
[null,"العنوان",{"$f":"IFERROR(VLOOKUP(G7,'البيانات '!A3:D78,4,0),\"\")","v":"00:00:00"},null,"مندوب مبيعات ",null,{"$f":"IFERROR(VLOOKUP(G7,'[1]البيانات '!$A$3:$E$102,5,0),\"\")","v":"احمد خفاجي"}]
[]
[]
[null,"م","التاريخ","رقم الفاتورة","قيمة الفاتورة","رصيد سابق","المدفوع","رصيد متبقي","ملاحظات"]
[null,1,"2018-09-18",null,7557,0,0,{"$f":"E15+F15-G15","v":7557}]
[null,2,null,null,null,null,null,{"$f":"E16+F16-G16","v":0}]
[null,3,null,null,null,null,null,0]
[null,4,null,null,null,null,null,0]
[null,5,null,null,null,null,null,0]
[null,6,null,null,null,null,null,0]
[null,7,null,null,null,null,null,0]
[null,8,null,null,null,null,null,0]
[null,9,null,null,null,null,null,0]
[null,10,null,null,null,null,null,0]
[null,11,null,null,null,null,null,0]
[null,12,null,null,null,null,null,0]
[null,13,null,null,null,null,null,0]
[null,14,null,null,null,null,null,0]
[null,15,null,null,null,null,null,0]
[null,16,null,null,null,null,null,0]
[null,17,null,null,null,null,null,0]
[null,18,null,null,null,null,null,0]
[null,19,null,null,null,null,null,0]
[null,20,null,null,null,null,null,0]
[null,21,null,null,null,null,null,0]
[null,22,null,null,null,null,null,0]
[null,23,null,null,null,null,null,0]
[null,24,null,null,null,null,null,0]
[null,25,null,null,null,null,null,0]
[null,26,null,null,null,null,null,0]
[null,27,null,null,null,null,null,0]
[null,28,null,null,null,null,null,0]
[null,29,null,null,null,null,null,0]
[null,30,null,null,null,null,null,0]
[null,"الاجمالي",null,null,{"$f":"SUM(E15:E44)","v":7557},null,{"$f":"SUM(G15:G44)","v":0}]
[]
[null,"بايو كيميكال ايجيبت للمطهرات و اضافات الاعلاف .",null,null,"Bio chemical  Egypt for antiseptic &  feed additives ."]
[null,"المصنع : دست الاشراف  - كوم حماده – البحيرة  .",null,null,"address : dest el ashraf – kom Hamada – al behara"]
[null,"موبايل : 01009958821 – 01099548642    ",null,null,"                            mob : +2001009958821 - +2001099548642                                            "]

{"sheet":"رمضان السقا","index":26,"n_rows":49,"n_cols":9,"rows_kept":49,"cut":false,"hidden":false,"merged":[[48,1,48,2],[48,4,48,8],[2,1,3,3],[5,6,5,7],[6,6,6,7],[8,6,8,7],[9,6,9,7],[46,1,46,2],[46,4,46,8],[2,4,3,8],[10,6,10,7],[44,1,44,3],[47,1,47,2],[47,4,47,8]]}
[]
[]
[null,"شركة بايوكيميكال ايجيبت",null,null,"Bio chemical egypt"]
[]
[]
[null,null,null,null,null,null,"كود العميل"]
[null,null,null,"حساب عميل",null,null,74]
[]
[null,"اسم العميل",{"$f":"IFERROR(VLOOKUP(G7,'[1]البيانات '!$A$3:$B$102,2,0),\"\")","v":"رمضان السقا"},null,"تليفون",null,{"$f":"IFERROR(VLOOKUP(G7,'البيانات '!A3:C78,3,0),\"\")","v":0}]
[null,"اسم المنشاة",null,null,"مدير مسئول"]
[null,"العنوان",{"$f":"IFERROR(VLOOKUP(G7,'البيانات '!A3:D78,4,0),\"\")","v":"00:00:00"},null,"مندوب مبيعات ",null,{"$f":"IFERROR(VLOOKUP(G7,'[1]البيانات '!$A$3:$E$102,5,0),\"\")","v":"احمد خفاجي"}]
[]
[]
[null,"م","التاريخ","رقم الفاتورة","قيمة الفاتورة","رصيد سابق","المدفوع","رصيد متبقي","ملاحظات"]
[null,1,null,null,3450,0,3450,{"$f":"E15+F15-G15","v":0},"خالص"]
[null,2,null,null,null,null,null,{"$f":"E16+F16-G16","v":0}]
[null,3,null,null,null,null,null,0]
[null,4,null,null,null,null,null,0]
[null,5,null,null,null,null,null,0]
[null,6,null,null,null,null,null,0]
[null,7,null,null,null,null,null,0]
[null,8,null,null,null,null,null,0]
[null,9,null,null,null,null,null,0]
[null,10,null,null,null,null,null,0]
[null,11,null,null,null,null,null,0]
[null,12,null,null,null,null,null,0]
[null,13,null,null,null,null,null,0]
[null,14,null,null,null,null,null,0]
[null,15,null,null,null,null,null,0]
[null,16,null,null,null,null,null,0]
[null,17,null,null,null,null,null,0]
[null,18,null,null,null,null,null,0]
[null,19,null,null,null,null,null,0]
[null,20,null,null,null,null,null,0]
[null,21,null,null,null,null,null,0]
[null,22,null,null,null,null,null,0]
[null,23,null,null,null,null,null,0]
[null,24,null,null,null,null,null,0]
[null,25,null,null,null,null,null,0]
[null,26,null,null,null,null,null,0]
[null,27,null,null,null,null,null,0]
[null,28,null,null,null,null,null,0]
[null,29,null,null,null,null,null,0]
[null,30,null,null,null,null,null,0]
[null,"الاجمالي",null,null,{"$f":"SUM(E15:E44)","v":3450},null,{"$f":"SUM(G15:G44)","v":3450}]
[]
[null,"بايو كيميكال ايجيبت للمطهرات و اضافات الاعلاف .",null,null,"Bio chemical  Egypt for antiseptic &  feed additives ."]
[null,"المصنع : دست الاشراف  - كوم حماده – البحيرة  .",null,null,"address : dest el ashraf – kom Hamada – al behara"]
[null,"موبايل : 01009958821 – 01099548642    ",null,null,"                            mob : +2001009958821 - +2001099548642                                            "]

{"sheet":"محمود الحنيزي","index":27,"n_rows":49,"n_cols":9,"rows_kept":49,"cut":false,"hidden":false,"merged":[[48,1,48,2],[48,4,48,8],[2,1,3,3],[5,6,5,7],[6,6,6,7],[8,6,8,7],[9,6,9,7],[46,1,46,2],[46,4,46,8],[2,4,3,8],[10,6,10,7],[44,1,44,3],[47,1,47,2],[47,4,47,8]]}
[]
[]
[null,"شركة بايوكيميكال ايجيبت",null,null,"Bio chemical egypt"]
[]
[]
[null,null,null,null,null,null,"كود العميل"]
[null,null,null,"حساب عميل",null,null,75]
[]
[null,"اسم العميل",{"$f":"IFERROR(VLOOKUP(G7,'[1]البيانات '!$A$3:$B$102,2,0),\"\")","v":"محمود الخنيزي"},null,"تليفون",null,{"$f":"IFERROR(VLOOKUP(G7,'البيانات '!A3:C78,3,0),\"\")","v":0}]
[null,"اسم المنشاة",null,null,"مدير مسئول"]
[null,"العنوان",{"$f":"IFERROR(VLOOKUP(G7,'البيانات '!A3:D78,4,0),\"\")","v":"طنوب - المنوفية - جامع عبد الواحد"},null,"مندوب مبيعات ",null,{"$f":"IFERROR(VLOOKUP(G7,'[1]البيانات '!$A$3:$E$102,5,0),\"\")","v":"احمد خفاجي"}]
[]
[]
[null,"م","التاريخ","رقم الفاتورة","قيمة الفاتورة","رصيد سابق","المدفوع","رصيد متبقي","ملاحظات"]
[null,1,"تعامل اول",null,3045,-500,1000,{"$f":"E15+F15-G15","v":1545},"خصم خاص 500ج"]
[null,2,"2018-07-28",null,8400,1545,0,{"$f":"E16+F16-G16","v":9945}]
[null,3,"2018-09-12",null,3000,9945,0,12945]
[null,4,null,null,null,null,null,0]
[null,5,null,null,null,null,null,0]
[null,6,null,null,null,null,null,0]
[null,7,null,null,null,null,null,0]
[null,8,null,null,null,null,null,0]
[null,9,null,null,null,null,null,0]
[null,10,null,null,null,null,null,0]
[null,11,null,null,null,null,null,0]
[null,12,null,null,null,null,null,0]
[null,13,null,null,null,null,null,0]
[null,14,null,null,null,null,null,0]
[null,15,null,null,null,null,null,0]
[null,16,null,null,null,null,null,0]
[null,17,null,null,null,null,null,0]
[null,18,null,null,null,null,null,0]
[null,19,null,null,null,null,null,0]
[null,20,null,null,null,null,null,0]
[null,21,null,null,null,null,null,0]
[null,22,null,null,null,null,null,0]
[null,23,null,null,null,null,null,0]
[null,24,null,null,null,null,null,0]
[null,25,null,null,null,null,null,0]
[null,26,null,null,null,null,null,0]
[null,27,null,null,null,null,null,0]
[null,28,null,null,null,null,null,0]
[null,29,null,null,null,null,null,0]
[null,30,null,null,null,null,null,0]
[null,"الاجمالي",null,null,{"$f":"SUM(E15:E44)","v":14445},null,{"$f":"SUM(G15:G44)","v":1000}]
[]
[null,"بايو كيميكال ايجيبت للمطهرات و اضافات الاعلاف .",null,null,"Bio chemical  Egypt for antiseptic &  feed additives ."]
[null,"المصنع : دست الاشراف  - كوم حماده – البحيرة  .",null,null,"address : dest el ashraf – kom Hamada – al behara"]
[null,"موبايل : 01009958821 – 01099548642    ",null,null,"                            mob : +2001009958821 - +2001099548642                                            "]

{"sheet":"درويش خطاب","index":28,"n_rows":49,"n_cols":9,"rows_kept":49,"cut":false,"hidden":false,"merged":[[48,1,48,2],[48,4,48,8],[2,1,3,3],[5,6,5,7],[6,6,6,7],[8,6,8,7],[9,6,9,7],[46,1,46,2],[46,4,46,8],[2,4,3,8],[10,6,10,7],[44,1,44,3],[47,1,47,2],[47,4,47,8]]}
[]
[]
[null,"شركة بايوكيميكال ايجيبت",null,null,"Bio chemical egypt"]
[]
[]
[null,null,null,null,null,null,"كود العميل"]
[null,null,null,"حساب عميل",null,null,76]
[]
[null,"اسم العميل",{"$f":"IFERROR(VLOOKUP(G7,'[1]البيانات '!$A$3:$B$102,2,0),\"\")","v":"درويش خطاب"},null,"تليفون",null,{"$f":"IFERROR(VLOOKUP(G7,'البيانات '!A3:C78,3,0),\"\")","v":0}]
[null,"اسم المنشاة",null,null,"مدير مسئول"]
[null,"العنوان",{"$f":"IFERROR(VLOOKUP(G7,'البيانات '!A3:D78,4,0),\"\")","v":"طنوب - المنوفية"},null,"مندوب مبيعات ",null,{"$f":"IFERROR(VLOOKUP(G7,'[1]البيانات '!$A$3:$E$102,5,0),\"\")","v":"احمد خفاجي"}]
[]
[]
[null,"م","التاريخ","رقم الفاتورة","قيمة الفاتورة","رصيد سابق","المدفوع","رصيد متبقي","ملاحظات"]
[null,1,"اول تعامل",null,16100,0,16100,{"$f":"E15+F15-G15","v":0},"خالص"]
[null,2,"2018-09-21",null,1920,0,0,{"$f":"E16+F16-G16","v":1920},"شكارة صودا"]
[null,3,null,null,null,null,null,0]
[null,4,null,null,null,null,null,0]
[null,5,null,null,null,null,null,0]
[null,6,null,null,null,null,null,0]
[null,7,null,null,null,null,null,0]
[null,8,null,null,null,null,null,0]
[null,9,null,null,null,null,null,0]
[null,10,null,null,null,null,null,0]
[null,11,null,null,null,null,null,0]
[null,12,null,null,null,null,null,0]
[null,13,null,null,null,null,null,0]
[null,14,null,null,null,null,null,0]
[null,15,null,null,null,null,null,0]
[null,16,null,null,null,null,null,0]
[null,17,null,null,null,null,null,0]
[null,18,null,null,null,null,null,0]
[null,19,null,null,null,null,null,0]
[null,20,null,null,null,null,null,0]
[null,21,null,null,null,null,null,0]
[null,22,null,null,null,null,null,0]
[null,23,null,null,null,null,null,0]
[null,24,null,null,null,null,null,0]
[null,25,null,null,null,null,null,0]
[null,26,null,null,null,null,null,0]
[null,27,null,null,null,null,null,0]
[null,28,null,null,null,null,null,0]
[null,29,null,null,null,null,null,0]
[null,30,null,null,null,null,null,0]
[null,"الاجمالي",null,null,{"$f":"SUM(E15:E44)","v":18020},null,{"$f":"SUM(G15:G44)","v":16100}]
[]
[null,"بايو كيميكال ايجيبت للمطهرات و اضافات الاعلاف .",null,null,"Bio chemical  Egypt for antiseptic &  feed additives ."]
[null,"المصنع : دست الاشراف  - كوم حماده – البحيرة  .",null,null,"address : dest el ashraf – kom Hamada – al behara"]
[null,"موبايل : 01009958821 – 01099548642    ",null,null,"                            mob : +2001009958821 - +2001099548642                                            "]

{"sheet":"الحاج عبد الشفيع","index":29,"n_rows":49,"n_cols":9,"rows_kept":49,"cut":false,"hidden":false,"merged":[[48,1,48,2],[48,4,48,8],[2,1,3,3],[5,6,5,7],[6,6,6,7],[8,6,8,7],[9,6,9,7],[46,1,46,2],[46,4,46,8],[2,4,3,8],[10,6,10,7],[44,1,44,3],[47,1,47,2],[47,4,47,8]]}
[]
[]
[null,"شركة بايوكيميكال ايجيبت",null,null,"Bio chemical egypt"]
[]
[]
[null,null,null,null,null,null,"كود العميل"]
[null,null,null,"حساب عميل",null,null,77]
[]
[null,"اسم العميل",{"$f":"IFERROR(VLOOKUP(G7,'[1]البيانات '!$A$3:$B$102,2,0),\"\")","v":"الحاج عبد الشفيع"},null,"تليفون",null,{"$f":"IFERROR(VLOOKUP(G7,'البيانات '!A3:C78,3,0),\"\")","v":0}]
[null,"اسم المنشاة",null,null,"مدير مسئول"]
[null,"العنوان",{"$f":"IFERROR(VLOOKUP(G7,'البيانات '!A3:D78,4,0),\"\")","v":"00:00:00"},null,"مندوب مبيعات ",null,{"$f":"IFERROR(VLOOKUP(G7,'[1]البيانات '!$A$3:$E$102,5,0),\"\")","v":"احمد خفاجي"}]
[]
[]
[null,"م","التاريخ","رقم الفاتورة","قيمة الفاتورة","رصيد سابق","المدفوع","رصيد متبقي","ملاحظات"]
[null,1,"2018-07-29",null,3650,0,null,{"$f":"E15+F15-G15","v":3650},"سداد بعد20 يوم"]
[null,2,null,null,null,3650,3650,{"$f":"E16+F16-G16","v":0},"خالص"]
[null,3,null,null,null,null,null,0]
[null,4,null,null,null,null,null,0]
[null,5,null,null,null,null,null,0]
[null,6,null,null,null,null,null,0]
[null,7,null,null,null,null,null,0]
[null,8,null,null,null,null,null,0]
[null,9,null,null,null,null,null,0]
[null,10,null,null,null,null,null,0]
[null,11,null,null,null,null,null,0]
[null,12,null,null,null,null,null,0]
[null,13,null,null,null,null,null,0]
[null,14,null,null,null,null,null,0]
[null,15,null,null,null,null,null,0]
[null,16,null,null,null,null,null,0]
[null,17,null,null,null,null,null,0]
[null,18,null,null,null,null,null,0]
[null,19,null,null,null,null,null,0]
[null,20,null,null,null,null,null,0]
[null,21,null,null,null,null,null,0]
[null,22,null,null,null,null,null,0]
[null,23,null,null,null,null,null,0]
[null,24,null,null,null,null,null,0]
[null,25,null,null,null,null,null,0]
[null,26,null,null,null,null,null,0]
[null,27,null,null,null,null,null,0]
[null,28,null,null,null,null,null,0]
[null,29,null,null,null,null,null,0]
[null,30,null,null,null,null,null,0]
[null,"الاجمالي",null,null,{"$f":"SUM(E15:E44)","v":3650},null,{"$f":"SUM(G15:G44)","v":3650}]
[]
[null,"بايو كيميكال ايجيبت للمطهرات و اضافات الاعلاف .",null,null,"Bio chemical  Egypt for antiseptic &  feed additives ."]
[null,"المصنع : دست الاشراف  - كوم حماده – البحيرة  .",null,null,"address : dest el ashraf – kom Hamada – al behara"]
[null,"موبايل : 01009958821 – 01099548642    ",null,null,"                            mob : +2001009958821 - +2001099548642                                            "]

{"sheet":"حماده زنفل","index":30,"n_rows":49,"n_cols":9,"rows_kept":49,"cut":false,"hidden":false,"merged":[[48,1,48,2],[48,4,48,8],[2,1,3,3],[5,6,5,7],[6,6,6,7],[8,6,8,7],[9,6,9,7],[46,1,46,2],[46,4,46,8],[2,4,3,8],[10,6,10,7],[44,1,44,3],[47,1,47,2],[47,4,47,8]]}
[]
[]
[null,"شركة بايوكيميكال ايجيبت",null,null,"Bio chemical egypt"]
[]
[]
[null,null,null,null,null,null,"كود العميل"]
[null,null,null,"حساب عميل",null,null,39]
[]
[null,"اسم العميل",{"$f":"IFERROR(VLOOKUP(G7,'[1]البيانات '!$A$3:$B$102,2,0),\"\")","v":"حماده زنفل"},null,"تليفون",null,{"$f":"IFERROR(VLOOKUP(G7,'البيانات '!A3:C78,3,0),\"\")","v":1065464010}]
[null,"اسم المنشاة",null,null,"مدير مسئول"]
[null,"العنوان",{"$f":"IFERROR(VLOOKUP(G7,'البيانات '!A3:D78,4,0),\"\")","v":"كوم امبو - ابو المطامير - القرية الرئيسيه"},null,"مندوب مبيعات ",null,{"$f":"IFERROR(VLOOKUP(G7,'[1]البيانات '!$A$3:$E$102,5,0),\"\")","v":"محمد عبدالشفيع"}]
[]
[]
[null,"م","التاريخ","رقم الفاتورة","قيمة الفاتورة","رصيد سابق","المدفوع","رصيد متبقي","ملاحظات"]
[null,1,"2018-03-27",5204,1975,null,null,{"$f":"E15+F15-G15","v":1975}]
[null,2,"2018-03-28",5152,null,1975,400,{"$f":"E16+F16-G16","v":1575}]
[null,3,"2018-04-11",5159,null,1575,200,1375]
[null,4,"2018-05-08",5403,null,1375,500,875]
[null,5,"2018-05-29",5430,null,875,350,525]
[null,6,"2018-06-13",1003,null,525,300,225]
[null,7,"2018-06-26",1018,null,225,100,125]
[null,8,"2018-07-17",1049,null,125,120,5]
[null,9,null,null,null,null,null,0]
[null,10,null,null,null,null,null,0]
[null,11,null,null,null,null,null,0]
[null,12,null,null,null,null,null,0]
[null,13,null,null,null,null,null,0]
[null,14,null,null,null,null,null,0]
[null,15,null,null,null,null,null,0]
[null,16,null,null,null,null,null,0]
[null,17,null,null,null,null,null,0]
[null,18,null,null,null,null,null,0]
[null,19,null,null,null,null,null,0]
[null,20,null,null,null,null,null,0]
[null,21,null,null,null,null,null,0]
[null,22,null,null,null,null,null,0]
[null,23,null,null,null,null,null,0]
[null,24,null,null,null,null,null,0]
[null,25,null,null,null,null,null,0]
[null,26,null,null,null,null,null,0]
[null,27,null,null,null,null,null,0]
[null,28,null,null,null,null,null,0]
[null,29,null,null,null,null,null,0]
[null,30,null,null,null,null,null,0]
[null,"الاجمالي",null,null,{"$f":"SUM(E15:E44)","v":1975},null,{"$f":"SUM(G15:G44)","v":1970}]
[]
[null,"بايو كيميكال ايجيبت للمطهرات و اضافات الاعلاف .",null,null,"Bio chemical  Egypt for antiseptic &  feed additives ."]
[null,"المصنع : دست الاشراف  - كوم حماده – البحيرة  .",null,null,"address : dest el ashraf – kom Hamada – al behara"]
[null,"موبايل : 01009958821 – 01099548642    ",null,null,"                            mob : +2001009958821 - +2001099548642                                            "]

{"sheet":"هادي داود","index":31,"n_rows":49,"n_cols":9,"rows_kept":49,"cut":false,"hidden":false,"merged":[[48,1,48,2],[48,4,48,8],[2,1,3,3],[5,6,5,7],[6,6,6,7],[8,6,8,7],[9,6,9,7],[46,1,46,2],[46,4,46,8],[2,4,3,8],[10,6,10,7],[44,1,44,3],[47,1,47,2],[47,4,47,8]]}
[]
[]
[null,"شركة بايوكيميكال ايجيبت",null,null,"Bio chemical egypt"]
[]
[]
[null,null,null,null,null,null,"كود العميل"]
[null,null,null,"حساب عميل",null,null,9]
[]
[null,"اسم العميل",{"$f":"IFERROR(VLOOKUP(G7,'[1]البيانات '!$A$3:$B$102,2,0),\"\")","v":"الحاج هادي داود"},null,"تليفون",null,{"$f":"IFERROR(VLOOKUP(G7,'البيانات '!A3:C78,3,0),\"\")","v":1067815645}]
[null,"اسم المنشاة",null,null,"مدير مسئول"]
[null,"العنوان",{"$f":"IFERROR(VLOOKUP(G7,'البيانات '!A3:D78,4,0),\"\")","v":"دمنهور-عزبة داود"},null,"مندوب مبيعات ",null,{"$f":"IFERROR(VLOOKUP(G7,'[1]البيانات '!$A$3:$E$102,5,0),\"\")","v":"محمد عبدالشفيع"}]
[]
[]
[null,"م","التاريخ","رقم الفاتورة","قيمة الفاتورة","رصيد سابق","المدفوع","رصيد متبقي","ملاحظات"]
[null,1,"2018-01-06",5039,4890,null,null,{"$f":"E15+F15-G15","v":4890}]
[null,2,"2018-02-11",5303,null,4890,1000,{"$f":"E16+F16-G16","v":3890}]
[null,3,"2018-03-11",5331,null,3890,1000,2890]
[null,4,"2018-03-21",5342,null,2890,500,2390]
[null,5,"2018-03-27",5349,null,239,1000,-761]
[null,6,"2018-04-10",5157,null,1390,5000,-3610]
[null,7,"2018-04-25",5188,null,890,5000,-4110]
[null,8,"2018-06-09",5460,10910,390,null,11300]
[null,9,"2018-07-04","نقدي",null,11300,1000,10300]
[null,10,"2018-07-18","نقدي",null,10300,500,9800]
[null,11,"2018-08-08","نقدي",null,9800,1000,8800]
[null,12,"2018-08-15","نقدي",null,8800,1000,7800]
[null,13,"2018-09-05","نقدي",null,7800,1000,6800]
[null,14,"2018-09-19","نقدي",null,6800,600,6200]
[null,15,null,null,null,null,null,0]
[null,16,null,null,null,null,null,0]
[null,17,null,null,null,null,null,0]
[null,18,null,null,null,null,null,0]
[null,19,null,null,null,null,null,0]
[null,20,null,null,null,null,null,0]
[null,21,null,null,null,null,null,0]
[null,22,null,null,null,null,null,0]
[null,23,null,null,null,null,null,0]
[null,24,null,null,null,null,null,0]
[null,25,null,null,null,null,null,0]
[null,26,null,null,null,null,null,0]
[null,27,null,null,null,null,null,0]
[null,28,null,null,null,null,null,0]
[null,29,null,null,null,null,null,0]
[null,30,null,null,null,null,null,0]
[null,"الاجمالي",null,null,{"$f":"SUM(E15:E44)","v":15800},null,{"$f":"SUM(G15:G44)","v":18600}]
[]
[null,"بايو كيميكال ايجيبت للمطهرات و اضافات الاعلاف .",null,null,"Bio chemical  Egypt for antiseptic &  feed additives ."]
[null,"المصنع : دست الاشراف  - كوم حماده – البحيرة  .",null,null,"address : dest el ashraf – kom Hamada – al behara"]
[null,"موبايل : 01009958821 – 01099548642    ",null,null,"                            mob : +2001009958821 - +2001099548642                                            "]

{"sheet":"م.مصطفي الكلاف","index":32,"n_rows":49,"n_cols":9,"rows_kept":49,"cut":false,"hidden":false,"merged":[[48,1,48,2],[48,4,48,8],[2,1,3,3],[5,6,5,7],[6,6,6,7],[8,6,8,7],[9,6,9,7],[46,1,46,2],[46,4,46,8],[2,4,3,8],[10,6,10,7],[44,1,44,3],[47,1,47,2],[47,4,47,8]]}
[]
[]
[null,"شركة بايوكيميكال ايجيبت",null,null,"Bio chemical egypt"]
[]
[]
[null,null,null,null,null,null,"كود العميل"]
[null,null,null,"حساب عميل",null,null,11]
[]
[null,"اسم العميل",{"$f":"IFERROR(VLOOKUP(G7,'[1]البيانات '!$A$3:$B$102,2,0),\"\")","v":"م.مصطفي الكلاف"},null,"تليفون",null,{"$f":"IFERROR(VLOOKUP(G7,'البيانات '!A3:C78,3,0),\"\")","v":0}]
[null,"اسم المنشاة",null,null,"مدير مسئول"]
[null,"العنوان",{"$f":"IFERROR(VLOOKUP(G7,'البيانات '!A3:D78,4,0),\"\")","v":"المنشية الابراهمية - دمنهور"},null,"مندوب مبيعات ",null,{"$f":"IFERROR(VLOOKUP(G7,'[1]البيانات '!$A$3:$E$102,5,0),\"\")","v":"محمد عبدالشفيع"}]
[]
[]
[null,"م","التاريخ","رقم الفاتورة","قيمة الفاتورة","رصيد سابق","المدفوع","رصيد متبقي","ملاحظات"]
[null,1,"2018-01-04",5038,4659,0,500,{"$f":"E15+F15-G15","v":4159},"مع الكابتن ومحمد"]
[null,2,"2018-02-04",5110,2425,4159,1000,{"$f":"E16+F16-G16","v":5584}]
[null,3,"2018-02-25",5122,1750,5584,0,7334]
[null,4,"2018-03-01",5325,0,7334,1000,6334]
[null,5,"2018-03-18",5336,0,6334,1000,5334]
[null,6,"2018-03-25",5334,0,5334,1000,4334]
[null,7,"2018-04-15",5165,0,4334,500,3834]
[null,8,"فاتورة",5213,4392,3834,300,7926]
[null,9,"2018-04-22",5182,0,7926,500,7426]
[null,10,"2018-04-29",5194,0,7426,500,6926]
[null,11,"2018-05-06",5402,0,6926,500,6426]
[null,12,"2018-05-13",5410,0,6426,500,5926]
[null,13,"2018-05-27",5427,0,5926,500,5426]
[null,14,"2018-06-03",5441,0,5426,400,5026]
[null,15,"2018-07-05","نقدي",0,5026,500,4526]
[null,16,"2018-08-26","نقدي",0,4526,500,4026]
[null,17,"2018-09-09","نقدي",0,4026,500,3526]
[null,18,"2018-09-16","نقدي",0,3526,500,3026]
[null,19,null,null,null,null,null,0]
[null,20,null,null,null,null,null,0]
[null,21,null,null,null,null,null,0]
[null,22,null,null,null,null,null,0]
[null,23,null,null,null,null,null,0]
[null,24,null,null,null,null,null,0]
[null,25,null,null,null,null,null,0]
[null,26,null,null,null,null,null,0]
[null,27,null,null,null,null,null,0]
[null,28,null,null,null,null,null,0]
[null,29,null,null,null,null,null,0]
[null,30,null,null,null,null,null,0]
[null,"الاجمالي",null,null,{"$f":"SUM(E15:E44)","v":13226},null,{"$f":"SUM(G15:G44)","v":10200}]
[]
[null,"بايو كيميكال ايجيبت للمطهرات و اضافات الاعلاف .",null,null,"Bio chemical  Egypt for antiseptic &  feed additives ."]
[null,"المصنع : دست الاشراف  - كوم حماده – البحيرة  .",null,null,"address : dest el ashraf – kom Hamada – al behara"]
[null,"موبايل : 01009958821 – 01099548642    ",null,null,"                            mob : +2001009958821 - +2001099548642                                            "]

{"sheet":"محمود النجار","index":33,"n_rows":49,"n_cols":9,"rows_kept":49,"cut":false,"hidden":false,"merged":[[48,1,48,2],[48,4,48,8],[2,1,3,3],[5,6,5,7],[6,6,6,7],[8,6,8,7],[9,6,9,7],[46,1,46,2],[46,4,46,8],[2,4,3,8],[10,6,10,7],[44,1,44,3],[47,1,47,2],[47,4,47,8],[29,3,29,6]]}
[]
[]
[null,"شركة بايوكيميكال ايجيبت",null,null,"Bio chemical egypt"]
[]
[]
[null,null,null,null,null,null,"كود العميل"]
[null,null,null,"حساب عميل",null,null,14]
[]
[null,"اسم العميل",{"$f":"IFERROR(VLOOKUP(G7,'[1]البيانات '!$A$3:$B$102,2,0),\"\")","v":"محمود النجار "},null,"تليفون",null,{"$f":"IFERROR(VLOOKUP(G7,'البيانات '!A3:C78,3,0),\"\")","v":0}]
[null,"اسم المنشاة",null,null,"مدير مسئول"]
[null,"العنوان",{"$f":"IFERROR(VLOOKUP(G7,'البيانات '!A3:D78,4,0),\"\")","v":"الوفائيه"},null,"مندوب مبيعات ",null,{"$f":"IFERROR(VLOOKUP(G7,'[1]البيانات '!$A$3:$E$102,5,0),\"\")","v":"محمد عبدالشفيع"}]
[]
[]
[null,"م","التاريخ","رقم الفاتورة","قيمة الفاتورة","رصيد سابق","المدفوع","رصيد متبقي","ملاحظات"]
[null,1,"2018-04-05",5208,18221,-2405,0,{"$f":"E15+F15-G15","v":15816}]
[null,2,"2018-03-27",5151,0,15816,2000,{"$f":"E16+F16-G16","v":13816}]
[null,3,"2018-04-10",5155,0,13816,5000,8816]
[null,4,"2018-04-18",5172,0,8816,2000,6816]
[null,5,"2018-04-25",5184,0,6816,500,6316]
[null,6,"2018-05-02",5200,0,6316,500,5816]
[null,7,"2018-05-09",5404,0,5816,500,5316]
[null,8,"2018-05-16",5416,0,5316,500,4816]
[null,9,"2018-05-30",5433,0,4816,500,4316]
[null,10,"2018-06-06",5444,0,4316,500,3816]
[null,11,"2018-06-20","نقدي",0,3816,500,3316]
[null,12,"2018-06-27","نقدي",0,3316,500,2816]
[null,13,"2018-07-04","نقدي",0,2816,500,2316]
[null,14,"2018-07-11","نقدي",0,2316,1000,1316]
[null,15,"2018-07-25","نقدي",0,1316,500,816]
[null,16,null,"طرف الاستاذ فتحي مقلد",null,null,null,0]
[null,17,"2018-10-15",1368,5720,816,0,6536]
[null,18,null,null,null,null,null,0]
[null,19,null,null,null,null,null,0]
[null,20,null,null,null,null,null,0]
[null,21,null,null,null,null,null,0]
[null,22,null,null,null,null,null,0]
[null,23,null,null,null,null,null,0]
[null,24,null,null,null,null,null,0]
[null,25,null,null,null,null,null,0]
[null,26,null,null,null,null,null,0]
[null,27,null,null,null,null,null,0]
[null,28,null,null,null,null,null,0]
[null,29,null,null,null,null,null,0]
[null,30,null,null,null,null,null,0]
[null,"الاجمالي",null,null,{"$f":"SUM(E15:E44)","v":23941},null,{"$f":"SUM(G15:G44)","v":15000}]
[]
[null,"بايو كيميكال ايجيبت للمطهرات و اضافات الاعلاف .",null,null,"Bio chemical  Egypt for antiseptic &  feed additives ."]
[null,"المصنع : دست الاشراف  - كوم حماده – البحيرة  .",null,null,"address : dest el ashraf – kom Hamada – al behara"]
[null,"موبايل : 01009958821 – 01099548642    ",null,null,"                            mob : +2001009958821 - +2001099548642                                            "]

{"sheet":"د.محمود زبادي","index":34,"n_rows":49,"n_cols":9,"rows_kept":49,"cut":false,"hidden":false,"merged":[[48,1,48,2],[48,4,48,8],[2,1,3,3],[5,6,5,7],[6,6,6,7],[8,6,8,7],[9,6,9,7],[46,1,46,2],[46,4,46,8],[2,4,3,8],[10,6,10,7],[44,1,44,3],[47,1,47,2],[47,4,47,8]]}
[]
[]
[null,"شركة بايوكيميكال ايجيبت",null,null,"Bio chemical egypt"]
[]
[]
[null,null,null,null,null,null,"كود العميل"]
[null,null,null,"حساب عميل",null,null,42]
[]
[null,"اسم العميل",{"$f":"IFERROR(VLOOKUP(G7,'[1]البيانات '!$A$3:$B$102,2,0),\"\")","v":"د.محمود زبادي"},null,"تليفون",null,{"$f":"IFERROR(VLOOKUP(G7,'البيانات '!A3:C78,3,0),\"\")","v":0}]
[null,"اسم المنشاة",null,null,"مدير مسئول"]
[null,"العنوان",{"$f":"IFERROR(VLOOKUP(G7,'البيانات '!A3:D78,4,0),\"\")","v":"شبراخيت - لقانه"},null,"مندوب مبيعات ",null,{"$f":"IFERROR(VLOOKUP(G7,'[1]البيانات '!$A$3:$E$102,5,0),\"\")","v":"محمد عبدالشفيع"}]
[]
[]
[null,"م","التاريخ","رقم الفاتورة","قيمة الفاتورة","رصيد سابق","المدفوع","رصيد متبقي","ملاحظات"]
[null,1,"2018-07-29",52,870,0,0,{"$f":"E15+F15-G15","v":870}]
[null,2,"2018-09-16",86,0,870,500,{"$f":"E16+F16-G16","v":370}]
[null,3,null,null,null,null,null,0]
[null,4,null,null,null,null,null,0]
[null,5,null,null,null,null,null,0]
[null,6,null,null,null,null,null,0]
[null,7,null,null,null,null,null,0]
[null,8,null,null,null,null,null,0]
[null,9,null,null,null,null,null,0]
[null,10,null,null,null,null,null,0]
[null,11,null,null,null,null,null,0]
[null,12,null,null,null,null,null,0]
[null,13,null,null,null,null,null,0]
[null,14,null,null,null,null,null,0]
[null,15,null,null,null,null,null,0]
[null,16,null,null,null,null,null,0]
[null,17,null,null,null,null,null,0]
[null,18,null,null,null,null,null,0]
[null,19,null,null,null,null,null,0]
[null,20,null,null,null,null,null,0]
[null,21,null,null,null,null,null,0]
[null,22,null,null,null,null,null,0]
[null,23,null,null,null,null,null,0]
[null,24,null,null,null,null,null,0]
[null,25,null,null,null,null,null,0]
[null,26,null,null,null,null,null,0]
[null,27,null,null,null,null,null,0]
[null,28,null,null,null,null,null,0]
[null,29,null,null,null,null,null,0]
[null,30,null,null,null,null,null,0]
[null,"الاجمالي",null,null,{"$f":"SUM(E15:E44)","v":870},null,{"$f":"SUM(G15:G44)","v":500}]
[]
[null,"بايو كيميكال ايجيبت للمطهرات و اضافات الاعلاف .",null,null,"Bio chemical  Egypt for antiseptic &  feed additives ."]
[null,"المصنع : دست الاشراف  - كوم حماده – البحيرة  .",null,null,"address : dest el ashraf – kom Hamada – al behara"]
[null,"موبايل : 01009958821 – 01099548642    ",null,null,"                            mob : +2001009958821 - +2001099548642                                            "]

{"sheet":"حامد عكاشه","index":35,"n_rows":49,"n_cols":9,"rows_kept":49,"cut":false,"hidden":false,"merged":[[48,1,48,2],[48,4,48,8],[2,1,3,3],[5,6,5,7],[6,6,6,7],[8,6,8,7],[9,6,9,7],[46,1,46,2],[46,4,46,8],[2,4,3,8],[10,6,10,7],[44,1,44,3],[47,1,47,2],[47,4,47,8]]}
[]
[]
[null,"شركة بايوكيميكال ايجيبت",null,null,"Bio chemical egypt"]
[]
[]
[null,null,null,null,null,null,"كود العميل"]
[null,null,null,"حساب عميل",null,null,8]
[]
[null,"اسم العميل",{"$f":"IFERROR(VLOOKUP(G7,'[1]البيانات '!$A$3:$B$102,2,0),\"\")","v":"الحاج عوض عكاشه"},null,"تليفون",null,{"$f":"IFERROR(VLOOKUP(G7,'البيانات '!A3:C78,3,0),\"\")","v":0}]
[null,"اسم المنشاة",null,null,"مدير مسئول"]
[null,"العنوان",{"$f":"IFERROR(VLOOKUP(G7,'البيانات '!A3:D78,4,0),\"\")","v":"الدلنجات"},null,"مندوب مبيعات ",null,{"$f":"IFERROR(VLOOKUP(G7,'[1]البيانات '!$A$3:$E$102,5,0),\"\")","v":"محمد عبدالشفيع"}]
[]
[]
[null,"م","التاريخ","رقم الفاتورة","قيمة الفاتورة","رصيد سابق","المدفوع","رصيد متبقي","ملاحظات"]
[null,1,"2017-12-04",5057,4840,null,800,{"$f":"E15+F15-G15","v":4040}]
[null,2,"2018-01-13",5101,3390,4040,3000,{"$f":"E16+F16-G16","v":4430}]
[null,3,"2018-01-14","نقدي",null,4430,1500,2930]
[null,4,"2018-01-28","نقدي",null,2930,1000,1930]
[null,5,"2018-01-30",5104,2640,530,null,3170]
[null,6,"2018-02-18",5317,null,3170,500,2670]
[null,7,"2018-03-11",5330,null,2670,500,2170]
[null,8,"2018-03-13",5127,4610,2170,null,6780]
[null,9,"2018-03-21",5341,null,6780,1000,5780]
[null,10,"2018-03-27",5201,1710,5780,null,7490]
[null,11,"2018-04-25",5187,null,7490,1000,6490]
[null,12,"2018-05-09",5407,null,6490,500,5990]
[null,13,"2018-05-30",5436,null,5990,1000,4990]
[null,14,"2018-06-27","نقدي",null,4990,1000,3990]
[null,15,"2018-07-18","نقدي",null,3990,1000,2990]
[null,16,"2018-09-19","نقدي",null,2990,300,2690]
[null,17,"2018-10-03",1353,720,2690,1000,2410]
[null,18,null,null,null,null,null,0]
[null,19,null,null,null,null,null,0]
[null,20,null,null,null,null,null,0]
[null,21,null,null,null,null,null,0]
[null,22,null,null,null,null,null,0]
[null,23,null,null,null,null,null,0]
[null,24,null,null,null,null,null,0]
[null,25,null,null,null,null,null,0]
[null,26,null,null,null,null,null,0]
[null,27,null,null,null,null,null,0]
[null,28,null,null,null,null,null,0]
[null,29,null,null,null,null,null,0]
[null,30,null,null,null,null,null,0]
[null,"الاجمالي",null,null,{"$f":"SUM(E15:E44)","v":17910},null,{"$f":"SUM(G15:G44)","v":14100}]
[]
[null,"بايو كيميكال ايجيبت للمطهرات و اضافات الاعلاف .",null,null,"Bio chemical  Egypt for antiseptic &  feed additives ."]
[null,"المصنع : دست الاشراف  - كوم حماده – البحيرة  .",null,null,"address : dest el ashraf – kom Hamada – al behara"]
[null,"موبايل : 01009958821 – 01099548642    ",null,null,"                            mob : +2001009958821 - +2001099548642                                            "]

{"sheet":"محمد عبداللاه","index":36,"n_rows":49,"n_cols":9,"rows_kept":49,"cut":false,"hidden":false,"merged":[[48,1,48,2],[48,4,48,8],[2,1,3,3],[5,6,5,7],[6,6,6,7],[8,6,8,7],[9,6,9,7],[46,1,46,2],[46,4,46,8],[2,4,3,8],[10,6,10,7],[44,1,44,3],[47,1,47,2],[47,4,47,8]]}
[]
[]
[null,"شركة بايوكيميكال ايجيبت",null,null,"Bio chemical egypt"]
[]
[]
[null,null,null,null,null,null,"كود العميل"]
[null,null,null,"حساب عميل",null,null,22]
[]
[null,"اسم العميل",{"$f":"IFERROR(VLOOKUP(G7,'[1]البيانات '!$A$3:$B$102,2,0),\"\")","v":"د.محمد عبداللاه"},null,"تليفون",null,{"$f":"IFERROR(VLOOKUP(G7,'البيانات '!A3:C78,3,0),\"\")","v":0}]
[null,"اسم المنشاة",null,null,"مدير مسئول"]
[null,"العنوان",{"$f":"IFERROR(VLOOKUP(G7,'البيانات '!A3:D78,4,0),\"\")","v":"الطيريه البلد - كوم حمادة"},null,"مندوب مبيعات ",null,{"$f":"IFERROR(VLOOKUP(G7,'[1]البيانات '!$A$3:$E$102,5,0),\"\")","v":"محمد عبدالشفيع"}]
[]
[]
[null,"م","التاريخ","رقم الفاتورة","قيمة الفاتورة","رصيد سابق","المدفوع","رصيد متبقي","ملاحظات"]
[null,1,"2018-02-10",5114,1720,0,0,{"$f":"E15+F15-G15","v":1720}]
[null,2,"2018-02-15",5315,null,1720,400,{"$f":"E16+F16-G16","v":1320}]
[null,3,"2018-02-27",5322,null,1320,290,1030]
[null,4,"2018-04-16",5171,null,1030,400,630]
[null,5,"2018-05-28",5429,null,630,300,330]
[null,6,"2018-06-11",1001,null,3.3,250,-246.7]
[null,7,"2018-07-09",1039,null,80,75,5]
[null,8,null,null,null,null,null,0]
[null,9,null,null,null,null,null,0]
[null,10,null,null,null,null,null,0]
[null,11,null,null,null,null,null,0]
[null,12,null,null,null,null,null,0]
[null,13,null,null,null,null,null,0]
[null,14,null,null,null,null,null,0]
[null,15,null,null,null,null,null,0]
[null,16,null,null,null,null,null,0]
[null,17,null,null,null,null,null,0]
[null,18,null,null,null,null,null,0]
[null,19,null,null,null,null,null,0]
[null,20,null,null,null,null,null,0]
[null,21,null,null,null,null,null,0]
[null,22,null,null,null,null,null,0]
[null,23,null,null,null,null,null,0]
[null,24,null,null,null,null,null,0]
[null,25,null,null,null,null,null,0]
[null,26,null,null,null,null,null,0]
[null,27,null,null,null,null,null,0]
[null,28,null,null,null,null,null,0]
[null,29,null,null,null,null,null,0]
[null,30,null,null,null,null,null,0]
[null,"الاجمالي",null,null,{"$f":"SUM(E15:E44)","v":1720},null,{"$f":"SUM(G15:G44)","v":1715}]
[]
[null,"بايو كيميكال ايجيبت للمطهرات و اضافات الاعلاف .",null,null,"Bio chemical  Egypt for antiseptic &  feed additives ."]
[null,"المصنع : دست الاشراف  - كوم حماده – البحيرة  .",null,null,"address : dest el ashraf – kom Hamada – al behara"]
[null,"موبايل : 01009958821 – 01099548642    ",null,null,"                            mob : +2001009958821 - +2001099548642                                            "]

{"sheet":"د.خالد الجالي","index":37,"n_rows":49,"n_cols":9,"rows_kept":49,"cut":false,"hidden":false,"merged":[[48,1,48,2],[48,4,48,8],[2,1,3,3],[5,6,5,7],[6,6,6,7],[8,6,8,7],[9,6,9,7],[46,1,46,2],[46,4,46,8],[2,4,3,8],[10,6,10,7],[44,1,44,3],[47,1,47,2],[47,4,47,8]]}
[]
[]
[null,"شركة بايوكيميكال ايجيبت",null,null,"Bio chemical egypt"]
[]
[]
[null,null,null,null,null,null,"كود العميل"]
[null,null,null,"حساب عميل",null,null,18]
[]
[null,"اسم العميل",{"$f":"IFERROR(VLOOKUP(G7,'[1]البيانات '!$A$3:$B$102,2,0),\"\")","v":"م.خالد الجالي"},null,"تليفون",null,{"$f":"IFERROR(VLOOKUP(G7,'البيانات '!A3:C78,3,0),\"\")","v":0}]
[null,"اسم المنشاة","مركز الجالي للخدمات البيطرية",null,"مدير مسئول"]
[null,"العنوان",{"$f":"IFERROR(VLOOKUP(G7,'البيانات '!A3:D78,4,0),\"\")","v":"ابو المطامير"},null,"مندوب مبيعات ",null,{"$f":"IFERROR(VLOOKUP(G7,'[1]البيانات '!$A$3:$E$102,5,0),\"\")","v":"محمد عبدالشفيع"}]
[]
[]
[null,"م","التاريخ","رقم الفاتورة","قيمة الفاتورة","رصيد سابق","المدفوع","رصيد متبقي","ملاحظات"]
[null,1,"2018-01-30",5103,3370,0,0,{"$f":"E15+F15-G15","v":3370}]
[null,2,"2018-04-11",5160,-1500,3370,500,{"$f":"E16+F16-G16","v":1370},"مرتجع"]
[null,3,"2018-04-19",5179,0,1370,500,870]
[null,4,"2018-04-23",5219,850,870,0,1720]
[null,5,"2018-06-04",5249,1200,1720,400,2520,"السائق"]
[null,6,"2018-05-14",5414,0,2520,500,2020]
[null,7,"2018-06-21","نقدي",0,2020,600,1420]
[null,8,"2018-06-27",5473,925,1420,0,2345]
[null,9,"2018-07-05",1033,0,2345,500,1845]
[null,10,"2018-07-19",5,0,1845,500,1345]
[null,11,"2018-08-28",58,0,1345,200,1145]
[null,12,null,null,null,null,null,0]
[null,13,null,null,null,null,null,0]
[null,14,null,null,null,null,null,0]
[null,15,null,null,null,null,null,0]
[null,16,null,null,null,null,null,0]
[null,17,null,null,null,null,null,0]
[null,18,null,null,null,null,null,0]
[null,19,null,null,null,null,null,0]
[null,20,null,null,null,null,null,0]
[null,21,null,null,null,null,null,0]
[null,22,null,null,null,null,null,0]
[null,23,null,null,null,null,null,0]
[null,24,null,null,null,null,null,0]
[null,25,null,null,null,null,null,0]
[null,26,null,null,null,null,null,0]
[null,27,null,null,null,null,null,0]
[null,28,null,null,null,null,null,0]
[null,29,null,null,null,null,null,0]
[null,30,null,null,null,null,null,0]
[null,"الاجمالي",null,null,{"$f":"SUM(E15:E44)","v":4845},null,{"$f":"SUM(G15:G44)","v":3700}]
[]
[null,"بايو كيميكال ايجيبت للمطهرات و اضافات الاعلاف .",null,null,"Bio chemical  Egypt for antiseptic &  feed additives ."]
[null,"المصنع : دست الاشراف  - كوم حماده – البحيرة  .",null,null,"address : dest el ashraf – kom Hamada – al behara"]
[null,"موبايل : 01009958821 – 01099548642    ",null,null,"                            mob : +2001009958821 - +2001099548642                                            "]

{"sheet":"محمد الهنداوي","index":38,"n_rows":49,"n_cols":9,"rows_kept":49,"cut":false,"hidden":false,"merged":[[48,1,48,2],[48,4,48,8],[2,1,3,3],[5,6,5,7],[6,6,6,7],[8,6,8,7],[9,6,9,7],[46,1,46,2],[46,4,46,8],[2,4,3,8],[10,6,10,7],[44,1,44,3],[47,1,47,2],[47,4,47,8]]}
[]
[]
[null,"شركة بايوكيميكال ايجيبت",null,null,"Bio chemical egypt"]
[]
[]
[null,null,null,null,null,null,"كود العميل"]
[null,null,null,"حساب عميل",null,null,10]
[]
[null,"اسم العميل",{"$f":"IFERROR(VLOOKUP(G7,'[1]البيانات '!$A$3:$B$102,2,0),\"\")","v":"محمد هنداوي"},null,"تليفون",null,{"$f":"IFERROR(VLOOKUP(G7,'البيانات '!A3:C78,3,0),\"\")","v":1026603578}]
[null,"اسم المنشاة",null,null,"مدير مسئول",null,"محمد هنداوي"]
[null,"العنوان",{"$f":"IFERROR(VLOOKUP(G7,'البيانات '!A3:D78,4,0),\"\")","v":"المسين - الدلنجات "},null,"مندوب مبيعات ",null,{"$f":"IFERROR(VLOOKUP(G7,'[1]البيانات '!$A$3:$E$102,5,0),\"\")","v":"محمد عبدالشفيع"}]
[]
[]
[null,"م","التاريخ","رقم الفاتورة","قيمة الفاتورة","رصيد سابق","المدفوع","رصيد متبقي","ملاحظات"]
[null,1,"2018-01-11",5040,11160,0,2000,{"$f":"E15+F15-G15","v":9160},"مع السائق عبدالحميد"]
[null,2,"2018-02-11",5310,0,9160,500,{"$f":"E16+F16-G16","v":8660}]
[null,3,"2018-03-11",5129,1120,8660,0,9780]
[null,4,"2018-04-25",5189,0,9780,500,9280]
[null,5,"2018-05-30",5437,0,9280,1000,8280]
[null,6,"2018-06-06",5446,0,8280,500,7780]
[null,7,"2018-06-09",5455,1000,7780,0,8780]
[null,8,"2018-07-04","نقدي",0,8780,500,8280]
[null,9,"2018-08-05","نقدي",0,8280,1000,7280]
[null,10,"2018-08-12","نقدي",0,7280,1500,5780]
[null,11,"2018-08-19","نقدي",0,5780,1000,4780]
[null,12,"2018-09-05","نقدي",0,4780,1000,3780]
[null,13,null,null,null,null,null,0]
[null,14,null,null,null,null,null,0]
[null,15,null,null,null,null,null,0]
[null,16,null,null,null,null,null,0]
[null,17,null,null,null,null,null,0]
[null,18,null,null,null,null,null,0]
[null,19,null,null,null,null,null,0]
[null,20,null,null,null,null,null,0]
[null,21,null,null,null,null,null,0]
[null,22,null,null,null,null,null,0]
[null,23,null,null,null,null,null,0]
[null,24,null,null,null,null,null,0]
[null,25,null,null,null,null,null,0]
[null,26,null,null,null,null,null,0]
[null,27,null,null,null,null,null,0]
[null,28,null,null,null,null,null,0]
[null,29,null,null,null,null,null,0]
[null,30,null,null,null,null,null,0]
[null,"الاجمالي",null,null,{"$f":"SUM(E15:E44)","v":13280},null,{"$f":"SUM(G15:G44)","v":9500}]
[]
[null,"بايو كيميكال ايجيبت للمطهرات و اضافات الاعلاف .",null,null,"Bio chemical  Egypt for antiseptic &  feed additives ."]
[null,"المصنع : دست الاشراف  - كوم حماده – البحيرة  .",null,null,"address : dest el ashraf – kom Hamada – al behara"]
[null,"موبايل : 01009958821 – 01099548642    ",null,null,"                            mob : +2001009958821 - +2001099548642                                            "]

{"sheet":"محمد جوده ابو يوسف","index":39,"n_rows":49,"n_cols":9,"rows_kept":49,"cut":false,"hidden":false,"merged":[[48,1,48,2],[48,4,48,8],[2,1,3,3],[5,6,5,7],[6,6,6,7],[8,6,8,7],[9,6,9,7],[46,1,46,2],[46,4,46,8],[2,4,3,8],[10,6,10,7],[44,1,44,3],[47,1,47,2],[47,4,47,8]]}
[]
[]
[null,"شركة بايوكيميكال ايجيبت",null,null,"Bio chemical egypt"]
[]
[]
[null,null,null,null,null,null,"كود العميل"]
[null,null,null,"حساب عميل",null,null,19]
[]
[null,"اسم العميل",{"$f":"IFERROR(VLOOKUP(G7,'[1]البيانات '!$A$3:$B$102,2,0),\"\")","v":"محمد جوده ابو يوسف"},null,"تليفون",null,{"$f":"IFERROR(VLOOKUP(G7,'البيانات '!A3:C78,3,0),\"\")","v":1001299166}]
[null,"اسم المنشاة",null,null,"مدير مسئول"]
[null,"العنوان",{"$f":"IFERROR(VLOOKUP(G7,'البيانات '!A3:D78,4,0),\"\")","v":"ابو حمص"},null,"مندوب مبيعات ",null,{"$f":"IFERROR(VLOOKUP(G7,'[1]البيانات '!$A$3:$E$102,5,0),\"\")","v":"محمد عبدالشفيع"}]
[]
[]
[null,"م","التاريخ","رقم الفاتورة","قيمة الفاتورة","رصيد سابق","المدفوع","رصيد متبقي","ملاحظات"]
[null,1,"2018-01-30",5106,2930,0,0,{"$f":"E15+F15-G15","v":2930}]
[null,2,"2018-02-13",5312,0,2930,1000,{"$f":"E16+F16-G16","v":1930}]
[null,3,"2018-03-13",5333,0,1930,1000,930]
[null,4,"2018-03-25",5346,0,930,500,430]
[null,5,"2018-04-15",5166,720,430,500,650]
[null,6,"2018-04-15",5167,-570,650,0,80]
[null,7,"2018-05-14",5237,1850,80,0,1930]
[null,8,"2018-05-20",5423,0,1930,500,1430]
[null,9,"2018-05-27",5428,0,1430,500,930]
[null,10,"2018-06-10",5449,0,930,400,530]
[null,11,"2018-06-24",1015,0,530,500,30]
[null,12,"2018-06-27",5471,4350,30,0,4380]
[null,13,"2018-08-05",26,0,4380,500,3880]
[null,14,"2018-08-12",35,0,3880,500,3380]
[null,15,"2018-08-19",47,0,3380,1000,2380]
[null,16,"2018-08-26",52,0,2380,500,1880]
[null,17,"2018-09-16",85,0,1880,500,1380]
[null,18,null,null,null,null,null,0]
[null,19,null,null,null,null,null,0]
[null,20,null,null,null,null,null,0]
[null,21,null,null,null,null,null,0]
[null,22,null,null,null,null,null,0]
[null,23,null,null,null,null,null,0]
[null,24,null,null,null,null,null,0]
[null,25,null,null,null,null,null,0]
[null,26,null,null,null,null,null,0]
[null,27,null,null,null,null,null,0]
[null,28,null,null,null,null,null,0]
[null,29,null,null,null,null,null,0]
[null,30,null,null,null,null,null,0]
[null,"الاجمالي",null,null,{"$f":"SUM(E15:E44)","v":9280},null,{"$f":"SUM(G15:G44)","v":7900}]
[]
[null,"بايو كيميكال ايجيبت للمطهرات و اضافات الاعلاف .",null,null,"Bio chemical  Egypt for antiseptic &  feed additives ."]
[null,"المصنع : دست الاشراف  - كوم حماده – البحيرة  .",null,null,"address : dest el ashraf – kom Hamada – al behara"]
[null,"موبايل : 01009958821 – 01099548642    ",null,null,"                            mob : +2001009958821 - +2001099548642                                            "]

{"sheet":"رشاد رياض","index":40,"n_rows":49,"n_cols":9,"rows_kept":49,"cut":false,"hidden":false,"merged":[[48,1,48,2],[48,4,48,8],[2,1,3,3],[5,6,5,7],[6,6,6,7],[8,6,8,7],[9,6,9,7],[46,1,46,2],[46,4,46,8],[2,4,3,8],[10,6,10,7],[44,1,44,3],[47,1,47,2],[47,4,47,8]]}
[]
[]
[null,"شركة بايوكيميكال ايجيبت",null,null,"Bio chemical egypt"]
[]
[]
[null,null,null,null,null,null,"كود العميل"]
[null,null,null,"حساب عميل",null,null,15]
[]
[null,"اسم العميل",{"$f":"IFERROR(VLOOKUP(G7,'[1]البيانات '!$A$3:$B$102,2,0),\"\")","v":"رشاد رياض "},null,"تليفون",null,{"$f":"IFERROR(VLOOKUP(G7,'البيانات '!A3:C78,3,0),\"\")","v":1004338004}]
[null,"اسم المنشاة",null,null,"مدير مسئول"]
[null,"العنوان",{"$f":"IFERROR(VLOOKUP(G7,'البيانات '!A3:D78,4,0),\"\")","v":"صفط الحرية - مصر اسكندرية الزراعي -دمنهور"},null,"مندوب مبيعات ",null,{"$f":"IFERROR(VLOOKUP(G7,'[1]البيانات '!$A$3:$E$102,5,0),\"\")","v":"محمد عبدالشفيع"}]
[]
[]
[null,"م","التاريخ","رقم الفاتورة","قيمة الفاتورة","رصيد سابق","المدفوع","رصيد متبقي","ملاحظات"]
[null,1,"2018-01-21",5044,4550,0,0,{"$f":"E15+F15-G15","v":4550}]
[null,2,"2018-02-25",5320,0,4550,500,{"$f":"E16+F16-G16","v":4050}]
[null,3,"2018-03-13",5334,0,4050,500,3550]
[null,4,"2018-04-22",5180,0,3550,500,3050]
[null,5,"2018-05-06",5401,0,3050,400,2650]
[null,6,"2018-07-08",1034,0,2650,500,2150]
[null,7,"2018-07-22",8,0,2150,400,1750]
[null,8,"2018-08-05",25,0,1700,400,1300]
[null,9,"2018-08-26",49,0,1300,500,800]
[null,10,"2018-09-16",83,0,850,850,0]
[null,11,null,null,null,null,null,0]
[null,12,null,null,null,null,null,0]
[null,13,null,null,null,null,null,0]
[null,14,null,null,null,null,null,0]
[null,15,null,null,null,null,null,0]
[null,16,null,null,null,null,null,0]
[null,17,null,null,null,null,null,0]
[null,18,null,null,null,null,null,0]
[null,19,null,null,null,null,null,0]
[null,20,null,null,null,null,null,0]
[null,21,null,null,null,null,null,0]
[null,22,null,null,null,null,null,0]
[null,23,null,null,null,null,null,0]
[null,24,null,null,null,null,null,0]
[null,25,null,null,null,null,null,0]
[null,26,null,null,null,null,null,0]
[null,27,null,null,null,null,null,0]
[null,28,null,null,null,null,null,0]
[null,29,null,null,null,null,null,0]
[null,30,null,null,null,null,null,0]
[null,"الاجمالي",null,null,{"$f":"SUM(E15:E44)","v":4550},null,{"$f":"SUM(G15:G44)","v":4550}]
[]
[null,"بايو كيميكال ايجيبت للمطهرات و اضافات الاعلاف .",null,null,"Bio chemical  Egypt for antiseptic &  feed additives ."]
[null,"المصنع : دست الاشراف  - كوم حماده – البحيرة  .",null,null,"address : dest el ashraf – kom Hamada – al behara"]
[null,"موبايل : 01009958821 – 01099548642    ",null,null,"                            mob : +2001009958821 - +2001099548642                                            "]

{"sheet":"د.فايز عويس","index":41,"n_rows":67,"n_cols":9,"rows_kept":67,"cut":false,"hidden":false,"merged":[[66,1,66,2],[66,4,66,8],[2,1,3,3],[5,6,5,7],[6,6,6,7],[8,6,8,7],[9,6,9,7],[64,1,64,2],[64,4,64,8],[2,4,3,8],[10,6,10,7],[62,1,62,3],[65,1,65,2],[65,4,65,8]]}
[]
[]
[null,"شركة بايوكيميكال ايجيبت",null,null,"Bio chemical egypt"]
[]
[]
[null,null,null,null,null,null,"كود العميل"]
[null,null,null,"حساب عميل",null,null,16]
[]
[null,"اسم العميل",{"$f":"IFERROR(VLOOKUP(G7,'[1]البيانات '!$A$3:$B$102,2,0),\"\")","v":"د.فايز عويس"},null,"تليفون",null,{"$f":"IFERROR(VLOOKUP(G7,'البيانات '!A3:C78,3,0),\"\")","v":0}]
[null,"اسم المنشاة",null,null,"مدير مسئول"]
[null,"العنوان",{"$f":"IFERROR(VLOOKUP(G7,'البيانات '!A3:D78,4,0),\"\")","v":"كوبري قمحة - الدلنجات"},null,"مندوب مبيعات ",null,{"$f":"IFERROR(VLOOKUP(G7,'[1]البيانات '!$A$3:$E$102,5,0),\"\")","v":"محمد عبدالشفيع"}]
[]
[]
[null,"م","التاريخ","رقم الفاتورة","قيمة الفاتورة","رصيد سابق","المدفوع","رصيد متبقي","ملاحظات"]
[null,1,"2018-01-21",5046,3716,0,0,{"$f":"E15+F15-G15","v":3716}]
[null,2,"2018-01-25",5302,0,3716,200,{"$f":"E16+F16-G16","v":3516}]
[null,3,"2018-02-04",5307,0,3516,250,3266]
[null,4,"2018-02-11",5308,0,3266,200,3066]
[null,5,"2018-02-28",5324,0,3066,200,2866]
[null,6,"2018-03-20",5340,0,2866,250,2616]
[null,7,"2018-04-10",5156,0,2616,250,2366]
[null,8,"2018-04-18",4175,0,2366,200,2166]
[null,9,"2018-04-25",4186,0,2166,200,1966]
[null,10,"2018-05-09",5406,0,1966,200,1766]
[null,11,"2018-05-14",5235,2275,1766,0,4041]
[null,12,"2018-05-16",5418,0,4041,200,3841]
[null,13,"2018-05-30",5435,0,3841,250,3591]
[null,14,"2018-06-06",5445,0,3591,250,3341]
[null,15,"2018-06-20",1010,0,3341,200,3141]
[null,16,"2018-06-27",1021,0,3141,200,2941]
[null,17,"2018-07-11",1043,0,2941,200,2741]
[null,18,"2018-07-18",2,0,2741,200,2541]
[null,19,"2018-08-01",21,0,2541,200,2341]
[null,20,"2018-08-08",30,0,2341,200,2141]
[null,21,"2018-08-15",41,0,2141,200,1941]
[null,22,"2018-08-29",59,0,1941,200,1741]
[null,23,"2018-09-19",93,0,1741,200,1541]
[null,24,null,null,null,null,null,0]
[null,25,null,null,null,null,null,0]
[null,26,null,null,null,null,null,0]
[null,27,null,null,null,null,null,0]
[null,28,null,null,null,null,null,0]
[null,29,null,null,null,null,null,0]
[null,30,null,null,null,null,null,0]
[null,31,null,null,null,null,null,0]
[null,32,null,null,null,null,null,0]
[null,33,null,null,null,null,null,0]
[null,34,null,null,null,null,null,0]
[null,35,null,null,null,null,null,0]
[null,36,null,null,null,null,null,0]
[null,37,null,null,null,null,null,0]
[null,38,null,null,null,null,null,0]
[null,39,null,null,null,null,null,0]
[null,40,null,null,null,null,null,0]
[null,41,null,null,null,null,null,0]
[null,42,null,null,null,null,null,0]
[null,43,null,null,null,null,null,0]
[null,44,null,null,null,null,null,0]
[null,45,null,null,null,null,null,0]
[null,46,null,null,null,null,null,0]
[null,47,null,null,null,null,null,0]
[null,48,null,null,null,null,null,0]
[null,"الاجمالي",null,null,{"$f":"SUM(E15:E44)","v":5991},null,{"$f":"SUM(G15:G44)","v":4450}]
[]
[null,"بايو كيميكال ايجيبت للمطهرات و اضافات الاعلاف .",null,null,"Bio chemical  Egypt for antiseptic &  feed additives ."]
[null,"المصنع : دست الاشراف  - كوم حماده – البحيرة  .",null,null,"address : dest el ashraf – kom Hamada – al behara"]
[null,"موبايل : 01009958821 – 01099548642    ",null,null,"                            mob : +2001009958821 - +2001099548642                                            "]

{"sheet":"د.هبه فارس","index":42,"n_rows":49,"n_cols":9,"rows_kept":49,"cut":false,"hidden":false,"merged":[[48,1,48,2],[48,4,48,8],[2,1,3,3],[5,6,5,7],[6,6,6,7],[8,6,8,7],[9,6,9,7],[46,1,46,2],[46,4,46,8],[2,4,3,8],[10,6,10,7],[44,1,44,3],[47,1,47,2],[47,4,47,8]]}
[]
[]
[null,"شركة بايوكيميكال ايجيبت",null,null,"Bio chemical egypt"]
[]
[]
[null,null,null,null,null,null,"كود العميل"]
[null,null,null,"حساب عميل",null,null,41]
[]
[null,"اسم العميل",{"$f":"IFERROR(VLOOKUP(G7,'[1]البيانات '!$A$3:$B$102,2,0),\"\")","v":"د.هبه فارس"},null,"تليفون",null,{"$f":"IFERROR(VLOOKUP(G7,'البيانات '!A3:C78,3,0),\"\")","v":0}]
[null,"اسم المنشاة",null,null,"مدير مسئول"]
[null,"العنوان",{"$f":"IFERROR(VLOOKUP(G7,'البيانات '!A3:D78,4,0),\"\")","v":"اشمون - المستشفي العام"},null,"مندوب مبيعات ",null,{"$f":"IFERROR(VLOOKUP(G7,'[1]البيانات '!$A$3:$E$102,5,0),\"\")","v":"محمد عبدالشفيع"}]
[]
[]
[null,"م","التاريخ","رقم الفاتورة","قيمة الفاتورة","رصيد سابق","المدفوع","رصيد متبقي","ملاحظات"]
[null,1,"2018-04-12",5163,360,null,null,{"$f":"E15+F15-G15","v":360}]
[null,2,"2018-05-21",5425,null,360,360,{"$f":"E16+F16-G16","v":0}]
[null,3,null,null,null,null,null,0]
[null,4,null,null,null,null,null,0]
[null,5,null,null,null,null,null,0]
[null,6,null,null,null,null,null,0]
[null,7,null,null,null,null,null,0]
[null,8,null,null,null,null,null,0]
[null,9,null,null,null,null,null,0]
[null,10,null,null,null,null,null,0]
[null,11,null,null,null,null,null,0]
[null,12,null,null,null,null,null,0]
[null,13,null,null,null,null,null,0]
[null,14,null,null,null,null,null,0]
[null,15,null,null,null,null,null,0]
[null,16,null,null,null,null,null,0]
[null,17,null,null,null,null,null,0]
[null,18,null,null,null,null,null,0]
[null,19,null,null,null,null,null,0]
[null,20,null,null,null,null,null,0]
[null,21,null,null,null,null,null,0]
[null,22,null,null,null,null,null,0]
[null,23,null,null,null,null,null,0]
[null,24,null,null,null,null,null,0]
[null,25,null,null,null,null,null,0]
[null,26,null,null,null,null,null,0]
[null,27,null,null,null,null,null,0]
[null,28,null,null,null,null,null,0]
[null,29,null,null,null,null,null,0]
[null,30,null,null,null,null,null,0]
[null,"الاجمالي",null,null,{"$f":"SUM(E15:E44)","v":360},null,{"$f":"SUM(G15:G44)","v":360}]
[]
[null,"بايو كيميكال ايجيبت للمطهرات و اضافات الاعلاف .",null,null,"Bio chemical  Egypt for antiseptic &  feed additives ."]
[null,"المصنع : دست الاشراف  - كوم حماده – البحيرة  .",null,null,"address : dest el ashraf – kom Hamada – al behara"]
[null,"موبايل : 01009958821 – 01099548642    ",null,null,"                            mob : +2001009958821 - +2001099548642                                            "]

{"sheet":"د.محمد عبده ","index":43,"n_rows":49,"n_cols":9,"rows_kept":49,"cut":false,"hidden":false,"merged":[[48,1,48,2],[48,4,48,8],[2,1,3,3],[5,6,5,7],[6,6,6,7],[8,6,8,7],[9,6,9,7],[46,1,46,2],[46,4,46,8],[20,2,20,3],[2,4,3,8],[10,6,10,7],[44,1,44,3],[47,1,47,2],[47,4,47,8]]}
[]
[]
[null,"شركة بايوكيميكال ايجيبت",null,null,"Bio chemical egypt"]
[]
[]
[null,null,null,null,null,null,"كود العميل"]
[null,null,null,"حساب عميل",null,null,20]
[]
[null,"اسم العميل",{"$f":"IFERROR(VLOOKUP(G7,'[1]البيانات '!$A$3:$B$102,2,0),\"\")","v":"د.محمد عبده"},null,"تليفون",null,{"$f":"IFERROR(VLOOKUP(G7,'البيانات '!A3:C78,3,0),\"\")","v":0}]
[null,"اسم المنشاة",null,null,"مدير مسئول"]
[null,"العنوان",{"$f":"IFERROR(VLOOKUP(G7,'البيانات '!A3:D78,4,0),\"\")","v":"دمنهور - كوبري فلاقه"},null,"مندوب مبيعات ",null,{"$f":"IFERROR(VLOOKUP(G7,'[1]البيانات '!$A$3:$E$102,5,0),\"\")","v":"محمد عبدالشفيع"}]
[]
[]
[null,"م","التاريخ","رقم الفاتورة","قيمة الفاتورة","رصيد سابق","المدفوع","رصيد متبقي","ملاحظات"]
[null,1,"2018-02-04",5111,2380,0,2380,{"$f":"E15+F15-G15","v":0},"السائق"]
[null,2,"2018-04-16",5214,2125,null,500,{"$f":"E16+F16-G16","v":1625}]
[null,3,"2018-04-22",5181,null,1625,500,1125]
[null,4,"2018-04-29",5192,null,1125,400,725]
[null,5,"2018-05-13",5409,null,725,500,225]
[null,6,"2018-06-02",5246,1125,225,null,1350]
[null,7,"مرتجع ما قيمته 2000",null,-2000,1350,-25,-625]
[null,8,null,null,null,null,null,0]
[null,9,null,null,null,null,null,0]
[null,10,null,null,null,null,null,0]
[null,11,null,null,null,null,null,0]
[null,12,null,null,null,null,null,0]
[null,13,null,null,null,null,null,0]
[null,14,null,null,null,null,null,0]
[null,15,null,null,null,null,null,0]
[null,16,null,null,null,null,null,0]
[null,17,null,null,null,null,null,0]
[null,18,null,null,null,null,null,0]
[null,19,null,null,null,null,null,0]
[null,20,null,null,null,null,null,0]
[null,21,null,null,null,null,null,0]
[null,22,null,null,null,null,null,0]
[null,23,null,null,null,null,null,0]
[null,24,null,null,null,null,null,0]
[null,25,null,null,null,null,null,0]
[null,26,null,null,null,null,null,0]
[null,27,null,null,null,null,null,0]
[null,28,null,null,null,null,null,0]
[null,29,null,null,null,null,null,0]
[null,30,null,null,null,null,null,0]
[null,"الاجمالي",null,null,{"$f":"SUM(E15:E44)","v":3630},null,{"$f":"SUM(G15:G44)","v":4255}]
[]
[null,"بايو كيميكال ايجيبت للمطهرات و اضافات الاعلاف .",null,null,"Bio chemical  Egypt for antiseptic &  feed additives ."]
[null,"المصنع : دست الاشراف  - كوم حماده – البحيرة  .",null,null,"address : dest el ashraf – kom Hamada – al behara"]
[null,"موبايل : 01009958821 – 01099548642    ",null,null,"                            mob : +2001009958821 - +2001099548642                                            "]

{"sheet":"د.محمد زغلول","index":44,"n_rows":49,"n_cols":9,"rows_kept":49,"cut":false,"hidden":false,"merged":[[48,1,48,2],[48,4,48,8],[2,1,3,3],[5,6,5,7],[6,6,6,7],[8,6,8,7],[9,6,9,7],[46,1,46,2],[46,4,46,8],[2,4,3,8],[10,6,10,7],[44,1,44,3],[47,1,47,2],[47,4,47,8]]}
[]
[]
[null,"شركة بايوكيميكال ايجيبت",null,null,"Bio chemical egypt"]
[]
[]
[null,null,null,null,null,null,"كود العميل"]
[null,null,null,"حساب عميل",null,null,21]
[]
[null,"اسم العميل",{"$f":"IFERROR(VLOOKUP(G7,'[1]البيانات '!$A$3:$B$102,2,0),\"\")","v":"د.محمد زغلول"},null,"تليفون",null,{"$f":"IFERROR(VLOOKUP(G7,'البيانات '!A3:C78,3,0),\"\")","v":1062815211}]
[null,"اسم المنشاة",null,null,"مدير مسئول",null,"مدحت زغلول"]
[null,"العنوان",{"$f":"IFERROR(VLOOKUP(G7,'البيانات '!A3:D78,4,0),\"\")","v":"ايتاي البارود"},null,"مندوب مبيعات ",null,{"$f":"IFERROR(VLOOKUP(G7,'[1]البيانات '!$A$3:$E$102,5,0),\"\")","v":"محمد عبدالشفيع"}]
[]
[]
[null,"م","التاريخ","رقم الفاتورة","قيمة الفاتورة","رصيد سابق","المدفوع","رصيد متبقي","ملاحظات"]
[null,1,"2018-02-04",5112,725,0,null,{"$f":"E15+F15-G15","v":725}]
[null,2,"2018-02-13",5313,null,725,250,{"$f":"E16+F16-G16","v":475}]
[null,3,"2018-03-01",5326,null,475,450," "]
[null,4,null,null,null,null,null,0]
[null,5,null,null,null,null,null,0]
[null,6,null,null,null,null,null,0]
[null,7,null,null,null,null,null,0]
[null,8,null,null,null,null,null,0]
[null,9,null,null,null,null,null,0]
[null,10,null,null,null,null,null,0]
[null,11,null,null,null,null,null,0]
[null,12,null,null,null,null,null,0]
[null,13,null,null,null,null,null,0]
[null,14,null,null,null,null,null,0]
[null,15,null,null,null,null,null,0]
[null,16,null,null,null,null,null,0]
[null,17,null,null,null,null,null,0]
[null,18,null,null,null,null,null,0]
[null,19,null,null,null,null,null,0]
[null,20,null,null,null,null,null,0]
[null,21,null,null,null,null,null,0]
[null,22,null,null,null,null,null,0]
[null,23,null,null,null,null,null,0]
[null,24,null,null,null,null,null,0]
[null,25,null,null,null,null,null,0]
[null,26,null,null,null,null,null,0]
[null,27,null,null,null,null,null,0]
[null,28,null,null,null,null,null,0]
[null,29,null,null,null,null,null,0]
[null,30,null,null,null,null,null,0]
[null,"الاجمالي",null,null,{"$f":"SUM(E15:E44)","v":725},null,{"$f":"SUM(G15:G44)","v":700}]
[]
[null,"بايو كيميكال ايجيبت للمطهرات و اضافات الاعلاف .",null,null,"Bio chemical  Egypt for antiseptic &  feed additives ."]
[null,"المصنع : دست الاشراف  - كوم حماده – البحيرة  .",null,null,"address : dest el ashraf – kom Hamada – al behara"]
[null,"موبايل : 01009958821 – 01099548642    ",null,null,"                            mob : +2001009958821 - +2001099548642                                            "]

{"sheet":"اسامه سالم","index":45,"n_rows":49,"n_cols":9,"rows_kept":49,"cut":false,"hidden":false,"merged":[[48,1,48,2],[48,4,48,8],[2,1,3,3],[5,6,5,7],[6,6,6,7],[8,6,8,7],[9,6,9,7],[46,1,46,2],[46,4,46,8],[19,3,19,6],[2,4,3,8],[10,6,10,7],[44,1,44,3],[47,1,47,2],[47,4,47,8]]}
[]
[]
[null,"شركة بايوكيميكال ايجيبت",null,null,"Bio chemical egypt"]
[]
[]
[null,null,null,null,null,null,"كود العميل"]
[null,null,null,"حساب عميل",null,null,23]
[]
[null,"اسم العميل",{"$f":"IFERROR(VLOOKUP(G7,'[1]البيانات '!$A$3:$B$102,2,0),\"\")","v":"اسامه سالم"},null,"تليفون",null,{"$f":"IFERROR(VLOOKUP(G7,'البيانات '!A3:C78,3,0),\"\")","v":0}]
[null,"اسم المنشاة",null,null,"مدير مسئول"]
[null,"العنوان",{"$f":"IFERROR(VLOOKUP(G7,'البيانات '!A3:D78,4,0),\"\")","v":"كوبري قمحه - دمنهور"},null,"مندوب مبيعات ",null,{"$f":"IFERROR(VLOOKUP(G7,'[1]البيانات '!$A$3:$E$102,5,0),\"\")","v":"محمد عبدالشفيع"}]
[]
[]
[null,"م","التاريخ","رقم الفاتورة","قيمة الفاتورة","رصيد سابق","المدفوع","رصيد متبقي","ملاحظات"]
[null,1,"2018-01-25",5303,750,0,null,{"$f":"E15+F15-G15","v":750}]
[null,2,"2018-04-18",5176,null,750,500,{"$f":"E16+F16-G16","v":250}]
[null,3,"2018-05-16",5419,null,250,250,0]
[null,4,null,null,null,null,null,0]
[null,5,null,null,null,null,null,0]
[null,6,null,"طرف الاستاذ فتحي مقلد",null,null,null,0]
[null,7,null,null,null,null,null,0]
[null,8,"2018-10-14",1362,2850,0,0,2850]
[null,9,null,null,null,null,null,0]
[null,10,null,null,null,null,null,0]
[null,11,null,null,null,null,null,0]
[null,12,null,null,null,null,null,0]
[null,13,null,null,null,null,null,0]
[null,14,null,null,null,null,null,0]
[null,15,null,null,null,null,null,0]
[null,16,null,null,null,null,null,0]
[null,17,null,null,null,null,null,0]
[null,18,null,null,null,null,null,0]
[null,19,null,null,null,null,null,0]
[null,20,null,null,null,null,null,0]
[null,21,null,null,null,null,null,0]
[null,22,null,null,null,null,null,0]
[null,23,null,null,null,null,null,0]
[null,24,null,null,null,null,null,0]
[null,25,null,null,null,null,null,0]
[null,26,null,null,null,null,null,0]
[null,27,null,null,null,null,null,0]
[null,28,null,null,null,null,null,0]
[null,29,null,null,null,null,null,0]
[null,30,null,null,null,null,null,0]
[null,"الاجمالي",null,null,{"$f":"SUM(E15:E44)","v":3600},null,{"$f":"SUM(G15:G44)","v":750}]
[]
[null,"بايو كيميكال ايجيبت للمطهرات و اضافات الاعلاف .",null,null,"Bio chemical  Egypt for antiseptic &  feed additives ."]
[null,"المصنع : دست الاشراف  - كوم حماده – البحيرة  .",null,null,"address : dest el ashraf – kom Hamada – al behara"]
[null,"موبايل : 01009958821 – 01099548642    ",null,null,"                            mob : +2001009958821 - +2001099548642                                            "]

{"sheet":"حسن ابو شوشه","index":46,"n_rows":49,"n_cols":9,"rows_kept":49,"cut":false,"hidden":false,"merged":[[48,1,48,2],[48,4,48,8],[2,1,3,3],[5,6,5,7],[6,6,6,7],[8,6,8,7],[9,6,9,7],[46,1,46,2],[46,4,46,8],[2,4,3,8],[10,6,10,7],[44,1,44,3],[47,1,47,2],[47,4,47,8]]}
[]
[]
[null,"شركة بايوكيميكال ايجيبت",null,null,"Bio chemical egypt"]
[]
[]
[null,null,null,null,null,null,"كود العميل"]
[null,null,null,"حساب عميل",null,null,26]
[]
[null,"اسم العميل",{"$f":"IFERROR(VLOOKUP(G7,'[1]البيانات '!$A$3:$B$102,2,0),\"\")","v":"حسن ابو شوشه"},null,"تليفون",null,{"$f":"IFERROR(VLOOKUP(G7,'البيانات '!A3:C78,3,0),\"\")","v":1000627769}]
[null,"اسم المنشاة",null,null,"مدير مسئول"]
[null,"العنوان",{"$f":"IFERROR(VLOOKUP(G7,'البيانات '!A3:D78,4,0),\"\")","v":"سكران - الدلنجات"},null,"مندوب مبيعات ",null,{"$f":"IFERROR(VLOOKUP(G7,'[1]البيانات '!$A$3:$E$102,5,0),\"\")","v":"محمد عبدالشفيع"}]
[]
[]
[null,"م","التاريخ","رقم الفاتورة","قيمة الفاتورة","رصيد سابق","المدفوع","رصيد متبقي","ملاحظات"]
[null,1,"2018-02-12",5116,2015,0,0,{"$f":"E15+F15-G15","v":2015}]
[null,2,"2018-03-27",5347,0,2015,400,{"$f":"E16+F16-G16","v":1615}]
[null,3,"2018-04-18",5173,0,1615,400,1215]
[null,4,"2018-05-02",5199,0,1215,300,915]
[null,5,"2018-05-16",5421,0,915,400,515]
[null,6,"2018-05-30",5434,0,515,500,15]
[null,7,null,null,null,null,null,0]
[null,8,null,null,null,null,null,0]
[null,9,null,null,null,null,null,0]
[null,10,null,null,null,null,null,0]
[null,11,null,null,null,null,null,0]
[null,12,null,null,null,null,null,0]
[null,13,null,null,null,null,null,0]
[null,14,null,null,null,null,null,0]
[null,15,null,null,null,null,null,0]
[null,16,null,null,null,null,null,0]
[null,17,null,null,null,null,null,0]
[null,18,null,null,null,null,null,0]
[null,19,null,null,null,null,null,0]
[null,20,null,null,null,null,null,0]
[null,21,null,null,null,null,null,0]
[null,22,null,null,null,null,null,0]
[null,23,null,null,null,null,null,0]
[null,24,null,null,null,null,null,0]
[null,25,null,null,null,null,null,0]
[null,26,null,null,null,null,null,0]
[null,27,null,null,null,null,null,0]
[null,28,null,null,null,null,null,0]
[null,29,null,null,null,null,null,0]
[null,30,null,null,null,null,null,0]
[null,"الاجمالي",null,null,{"$f":"SUM(E15:E44)","v":2015},null,{"$f":"SUM(G15:G44)","v":2000}]
[]
[null,"بايو كيميكال ايجيبت للمطهرات و اضافات الاعلاف .",null,null,"Bio chemical  Egypt for antiseptic &  feed additives ."]
[null,"المصنع : دست الاشراف  - كوم حماده – البحيرة  .",null,null,"address : dest el ashraf – kom Hamada – al behara"]
[null,"موبايل : 01009958821 – 01099548642    ",null,null,"                            mob : +2001009958821 - +2001099548642                                            "]

{"sheet":"د.اشرف زهران","index":47,"n_rows":49,"n_cols":9,"rows_kept":49,"cut":false,"hidden":false,"merged":[[48,1,48,2],[48,4,48,8],[2,1,3,3],[5,6,5,7],[6,6,6,7],[8,6,8,7],[9,6,9,7],[46,1,46,2],[46,4,46,8],[2,4,3,8],[10,6,10,7],[44,1,44,3],[47,1,47,2],[47,4,47,8]]}
[]
[]
[null,"شركة بايوكيميكال ايجيبت",null,null,"Bio chemical egypt"]
[]
[]
[null,null,null,null,null,null,"كود العميل"]
[null,null,null,"حساب عميل",null,null,25]
[]
[null,"اسم العميل",{"$f":"IFERROR(VLOOKUP(G7,'[1]البيانات '!$A$3:$B$102,2,0),\"\")","v":"داشرف زهران"},null,"تليفون",null,{"$f":"IFERROR(VLOOKUP(G7,'البيانات '!A3:C78,3,0),\"\")","v":0}]
[null,"اسم المنشاة",null,null,"مدير مسئول"]
[null,"العنوان",{"$f":"IFERROR(VLOOKUP(G7,'البيانات '!A3:D78,4,0),\"\")","v":"دمنهور - ش المعهد الديني "},null,"مندوب مبيعات ",null,{"$f":"IFERROR(VLOOKUP(G7,'[1]البيانات '!$A$3:$E$102,5,0),\"\")","v":"محمد عبدالشفيع"}]
[]
[]
[null,"م","التاريخ","رقم الفاتورة","قيمة الفاتورة","رصيد سابق","المدفوع","رصيد متبقي","ملاحظات"]
[null,1,"2018-02-12",5115,2100,0,0,{"$f":"E15+F15-G15","v":2100}]
[null,2,"2018-02-25",5319,0,2100,800,{"$f":"E16+F16-G16","v":1300}]
[null,3,"2018-03-13",5332,0,1300,1000,300]
[null,4,"2018-03-25",5344,0,300,300,0]
[null,5,"2018-03-27",5148,3160,null,0,3160]
[null,6,"2018-04-15",5164,0,3160,600,2560]
[null,7,"2018-04-29",5193,0,2560,700,1860]
[null,8,"2018-05-27",5426,0,1860,600,1260]
[null,9,"2018-06-02",5244,4000,1260,0,5260]
[null,10,"2018-06-03",5440,0,5260,700,4560]
[null,11,"2018-06-10",5448,0,4560,500,4060]
[null,12,"2018-06-24",1014,0,4060,500,3560]
[null,13,"2018-07-08",10.35,0,3560,500,3060]
[null,14,"2018-07-15",1046,0,3060,500,2560]
[null,15,"2018-07-19",53,1500,2560,0,4060]
[null,16,"2018-07-29",14,0,4060,800,3260]
[null,17,"2018-07-31",50,2400,3260,0,5660]
[null,18,"2018-08-26",40,0,5660,500,5160]
[null,19,"2018-09-09",74,0,5160,800,4360]
[null,20,null,null,null,null,null,0]
[null,21,null,null,null,null,null,0]
[null,22,null,null,null,null,null,0]
[null,23,null,null,null,null,null,0]
[null,24,null,null,null,null,null,0]
[null,25,null,null,null,null,null,0]
[null,26,null,null,null,null,null,0]
[null,27,null,null,null,null,null,0]
[null,28,null,null,null,null,null,0]
[null,29,null,null,null,null,null,0]
[null,30,null,null,null,null,null,0]
[null,"الاجمالي",null,null,{"$f":"SUM(E15:E44)","v":13160},null,{"$f":"SUM(G15:G44)","v":8800}]
[]
[null,"بايو كيميكال ايجيبت للمطهرات و اضافات الاعلاف .",null,null,"Bio chemical  Egypt for antiseptic &  feed additives ."]
[null,"المصنع : دست الاشراف  - كوم حماده – البحيرة  .",null,null,"address : dest el ashraf – kom Hamada – al behara"]
[null,"موبايل : 01009958821 – 01099548642    ",null,null,"                            mob : +2001009958821 - +2001099548642                                            "]

{"sheet":"هاني الصاوي","index":48,"n_rows":49,"n_cols":9,"rows_kept":49,"cut":false,"hidden":false,"merged":[[48,1,48,2],[48,4,48,8],[2,1,3,3],[5,6,5,7],[6,6,6,7],[8,6,8,7],[9,6,9,7],[46,1,46,2],[46,4,46,8],[2,4,3,8],[10,6,10,7],[44,1,44,3],[47,1,47,2],[47,4,47,8]]}
[]
[]
[null,"شركة بايوكيميكال ايجيبت",null,null,"Bio chemical egypt"]
[]
[]
[null,null,null,null,null,null,"كود العميل"]
[null,null,null,"حساب عميل",null,null,24]
[]
[null,"اسم العميل",{"$f":"IFERROR(VLOOKUP(G7,'[1]البيانات '!$A$3:$B$102,2,0),\"\")","v":"هاني الصاوي"},null,"تليفون",null,{"$f":"IFERROR(VLOOKUP(G7,'البيانات '!A3:C78,3,0),\"\")","v":0}]
[null,"اسم المنشاة",null,null,"مدير مسئول"]
[null,"العنوان",{"$f":"IFERROR(VLOOKUP(G7,'البيانات '!A3:D78,4,0),\"\")","v":"مركز بدر"},null,"مندوب مبيعات ",null,{"$f":"IFERROR(VLOOKUP(G7,'[1]البيانات '!$A$3:$E$102,5,0),\"\")","v":"محمد عبدالشفيع"}]
[]
[]
[null,"م","التاريخ","رقم الفاتورة","قيمة الفاتورة","رصيد سابق","المدفوع","رصيد متبقي","ملاحظات"]
[null,1,"2018-02-12",5311,1440,0,0,{"$f":"E15+F15-G15","v":1440}]
[null,2,"2018-02-20",5318,3000,1440,1000,{"$f":"E16+F16-G16","v":3440}]
[null,3,"2018-02-28",5323,0,3440,1000,2440]
[null,4,"2018-03-29",5153,0,2440,1000,1440]
[null,5,"2018-04-26",5191,0,1440,1400,40]
[null,6,"2018-06-03",5245,4075,40,0,4115]
[null,7,"2018-06-12",5462,3400,4115,0,7515]
[null,8,"2018-06-14","نقدي",0,7515,2000,5515]
[null,9,"2018-07-16","نقدي",0,5515,1000,4515]
[null,10,"2018-07-30","نقدي",0,4515,1000,3515]
[null,11,"2018-08-27","نقدي",0,3515,1000,2515]
[null,12,"2018-09-24",42,1950,2515,0,4465]
[null,13,"2018-09-30",47,2400,4465,0,6865]
[null,14,null,null,null,null,null,0]
[null,15,null,null,null,null,null,0]
[null,16,null,null,null,null,null,0]
[null,17,null,null,null,null,null,0]
[null,18,null,null,null,null,null,0]
[null,19,null,null,null,null,null,0]
[null,20,null,null,null,null,null,0]
[null,21,null,null,null,null,null,0]
[null,22,null,null,null,null,null,0]
[null,23,null,null,null,null,null,0]
[null,24,null,null,null,null,null,0]
[null,25,null,null,null,null,null,0]
[null,26,null,null,null,null,null,0]
[null,27,null,null,null,null,null,0]
[null,28,null,null,null,null,null,0]
[null,29,null,null,null,null,null,0]
[null,30,null,null,null,null,null,0]
[null,"الاجمالي",null,null,{"$f":"SUM(E15:E44)","v":16265},null,{"$f":"SUM(G15:G44)","v":9400}]
[]
[null,"بايو كيميكال ايجيبت للمطهرات و اضافات الاعلاف .",null,null,"Bio chemical  Egypt for antiseptic &  feed additives ."]
[null,"المصنع : دست الاشراف  - كوم حماده – البحيرة  .",null,null,"address : dest el ashraf – kom Hamada – al behara"]
[null,"موبايل : 01009958821 – 01099548642    ",null,null,"                            mob : +2001009958821 - +2001099548642                                            "]

{"sheet":"د.رانيا فوده","index":49,"n_rows":49,"n_cols":9,"rows_kept":49,"cut":false,"hidden":false,"merged":[[48,1,48,2],[48,4,48,8],[2,1,3,3],[5,6,5,7],[6,6,6,7],[8,6,8,7],[9,6,9,7],[46,1,46,2],[46,4,46,8],[2,4,3,8],[10,6,10,7],[44,1,44,3],[47,1,47,2],[47,4,47,8]]}
[]
[]
[null,"شركة بايوكيميكال ايجيبت",null,null,"Bio chemical egypt"]
[]
[]
[null,null,null,null,null,null,"كود العميل"]
[null,null,null,"حساب عميل",null,null,27]
[]
[null,"اسم العميل",{"$f":"IFERROR(VLOOKUP(G7,'[1]البيانات '!$A$3:$B$102,2,0),\"\")","v":"د.رانيا فوده"},null,"تليفون",null,{"$f":"IFERROR(VLOOKUP(G7,'البيانات '!A3:C78,3,0),\"\")","v":1003579499}]
[null,"اسم المنشاة",null,null,"مدير مسئول"]
[null,"العنوان",{"$f":"IFERROR(VLOOKUP(G7,'البيانات '!A3:D78,4,0),\"\")","v":"اشمون"},null,"مندوب مبيعات ",null,{"$f":"IFERROR(VLOOKUP(G7,'[1]البيانات '!$A$3:$E$102,5,0),\"\")","v":"محمد عبدالشفيع"}]
[]
[]
[null,"م","التاريخ","رقم الفاتورة","قيمة الفاتورة","رصيد سابق","المدفوع","رصيد متبقي","ملاحظات"]
[null,1,"2018-02-15",5118,2070,0,0,{"$f":"E15+F15-G15","v":2070}]
[null,2,"2018-02-15",5314,0,2070,1070,{"$f":"E16+F16-G16","v":1000}]
[null,3,"2018-03-08",5329,0,1000,1000,0]
[null,4,"2018-04-12",5161,720,0,0,720]
[null,5,"2018-05-10",5408,720,720,700,740]
[null,6,"2018-05-21",5424,720,740,600,860]
[null,7,"2018-07-09",51,720,860,750,830]
[null,8,"2018-08-13",57,360,830,500,690]
[null,9,"2018-09-17",65,720,690,0,1410]
[null,10,null,"نقدي",0,1410,500,910]
[null,11,null,null,null,null,null,0]
[null,12,null,null,null,null,null,0]
[null,13,null,null,null,null,null,0]
[null,14,null,null,null,null,null,0]
[null,15,null,null,null,null,null,0]
[null,16,null,null,null,null,null,0]
[null,17,null,null,null,null,null,0]
[null,18,null,null,null,null,null,0]
[null,19,null,null,null,null,null,0]
[null,20,null,null,null,null,null,0]
[null,21,null,null,null,null,null,0]
[null,22,null,null,null,null,null,0]
[null,23,null,null,null,null,null,0]
[null,24,null,null,null,null,null,0]
[null,25,null,null,null,null,null,0]
[null,26,null,null,null,null,null,0]
[null,27,null,null,null,null,null,0]
[null,28,null,null,null,null,null,0]
[null,29,null,null,null,null,null,0]
[null,30,null,null,null,null,null,0]
[null,"الاجمالي",null,null,{"$f":"SUM(E15:E44)","v":6030},null,{"$f":"SUM(G15:G44)","v":5120}]
[]
[null,"بايو كيميكال ايجيبت للمطهرات و اضافات الاعلاف .",null,null,"Bio chemical  Egypt for antiseptic &  feed additives ."]
[null,"المصنع : دست الاشراف  - كوم حماده – البحيرة  .",null,null,"address : dest el ashraf – kom Hamada – al behara"]
[null,"موبايل : 01009958821 – 01099548642    ",null,null,"                            mob : +2001009958821 - +2001099548642                                            "]

{"sheet":"د.حماده فتحي","index":50,"n_rows":49,"n_cols":9,"rows_kept":49,"cut":false,"hidden":false,"merged":[[48,1,48,2],[48,4,48,8],[2,1,3,3],[5,6,5,7],[6,6,6,7],[8,6,8,7],[9,6,9,7],[46,1,46,2],[46,4,46,8],[2,4,3,8],[10,6,10,7],[44,1,44,3],[47,1,47,2],[47,4,47,8]]}
[]
[]
[null,"شركة بايوكيميكال ايجيبت",null,null,"Bio chemical egypt"]
[]
[]
[null,null,null,null,null,null,"كود العميل"]
[null,null,null,"حساب عميل",null,null,28]
[]
[null,"اسم العميل",{"$f":"IFERROR(VLOOKUP(G7,'[1]البيانات '!$A$3:$B$102,2,0),\"\")","v":"د.حماده فتحي"},null,"تليفون",null,{"$f":"IFERROR(VLOOKUP(G7,'البيانات '!A3:C78,3,0),\"\")","v":1067035255}]
[null,"اسم المنشاة",null,null,"مدير مسئول"]
[null,"العنوان",{"$f":"IFERROR(VLOOKUP(G7,'البيانات '!A3:D78,4,0),\"\")","v":"ابو المطامير"},null,"مندوب مبيعات ",null,{"$f":"IFERROR(VLOOKUP(G7,'[1]البيانات '!$A$3:$E$102,5,0),\"\")","v":"محمد عبدالشفيع"}]
[]
[]
[null,"م","التاريخ","رقم الفاتورة","قيمة الفاتورة","رصيد سابق","المدفوع","رصيد متبقي","ملاحظات"]
[null,1,"2018-02-25",5123,2330,0,0,{"$f":"E15+F15-G15","v":2330}]
[null,2,"2018-02-25",5327,0,2330,500,{"$f":"E16+F16-G16","v":1830},"السائق"]
[null,3,"2018-03-18",53.37,0,1830,1000,830]
[null,4,"2018-04-05",5207,4185,830,1500,3515]
[null,5,"2018-04-19",5178,0,3515,1000,2515]
[null,6,"2018-05-14",5413,0,2515,1000,1515]
[null,7,"2018-06-02",5438,0,1515,1000,515]
[null,8,"2018-06-04",5248,3540,515,2000,2055,"السائق"]
[null,9,"2018-06-09",5456,900,2055,0,2955]
[null,10,"2018-06-21",1012,0,2955,300,2655]
[null,11,"2018-07-05",1032,0,2655,700,1955]
[null,12,"2018-07-19",6,0,1955,500,1455]
[null,13,"2018-08-02",22,0,1455,600,855]
[null,14,"2018-08-06",8,4350,855,0,5205]
[null,15,"2018-08-09",33,0,5205,1000,4205]
[null,16,"2018-08-16",45,0,4205,500,3705]
[null,17,"2018-09-06",72,0,3705,500,3205]
[null,18,"2018-10-04",1351,4350,3205,0,7555]
[null,19,"2018-10-04","نقدي",0,7555,1000,6555]
[null,20,null,null,null,null,null,0]
[null,21,null,null,null,null,null,0]
[null,22,null,null,null,null,null,0]
[null,23,null,null,null,null,null,0]
[null,24,null,null,null,null,null,0]
[null,25,null,null,null,null,null,0]
[null,26,null,null,null,null,null,0]
[null,27,null,null,null,null,null,0]
[null,28,null,null,null,null,null,0]
[null,29,null,null,null,null,null,0]
[null,30,null,null,null,null,null,0]
[null,"الاجمالي",null,null,{"$f":"SUM(E15:E44)","v":19655},null,{"$f":"SUM(G15:G44)","v":13100}]
[]
[null,"بايو كيميكال ايجيبت للمطهرات و اضافات الاعلاف .",null,null,"Bio chemical  Egypt for antiseptic &  feed additives ."]
[null,"المصنع : دست الاشراف  - كوم حماده – البحيرة  .",null,null,"address : dest el ashraf – kom Hamada – al behara"]
[null,"موبايل : 01009958821 – 01099548642    ",null,null,"                            mob : +2001009958821 - +2001099548642                                            "]

{"sheet":"الهادي اسماعيل","index":51,"n_rows":49,"n_cols":9,"rows_kept":49,"cut":false,"hidden":false,"merged":[[48,1,48,2],[48,4,48,8],[2,1,3,3],[5,6,5,7],[6,6,6,7],[8,6,8,7],[9,6,9,7],[46,1,46,2],[46,4,46,8],[2,4,3,8],[10,6,10,7],[44,1,44,3],[47,1,47,2],[47,4,47,8]]}
[]
[]
[null,"شركة بايوكيميكال ايجيبت",null,null,"Bio chemical egypt"]
[]
[]
[null,null,null,null,null,null,"كود العميل"]
[null,null,null,"حساب عميل",null,null,29]
[]
[null,"اسم العميل",{"$f":"IFERROR(VLOOKUP(G7,'[1]البيانات '!$A$3:$B$102,2,0),\"\")","v":"الهادي اسماعيل"},null,"تليفون",null,{"$f":"IFERROR(VLOOKUP(G7,'البيانات '!A3:C78,3,0),\"\")","v":1100281810}]
[null,"اسم المنشاة",null,null,"مدير مسئول"]
[null,"العنوان",{"$f":"IFERROR(VLOOKUP(G7,'البيانات '!A3:D78,4,0),\"\")","v":"اطليميس - الدلنجات - طريق المسين"},null,"مندوب مبيعات ",null,{"$f":"IFERROR(VLOOKUP(G7,'[1]البيانات '!$A$3:$E$102,5,0),\"\")","v":"محمد عبدالشفيع"}]
[]
[]
[null,"م","التاريخ","رقم الفاتورة","قيمة الفاتورة","رصيد سابق","المدفوع","رصيد متبقي","ملاحظات"]
[null,1,"2018-03-11",5128,1440,0,0,{"$f":"E15+F15-G15","v":1440}]
[null,2,"2018-05-02","نقدي",0,1440,1400,{"$f":"E16+F16-G16","v":40}]
[null,3,null,null,null,null,null,0]
[null,4,null,null,null,null,null,0]
[null,5,null,null,null,null,null,0]
[null,6,null,null,null,null,null,0]
[null,7,null,null,null,null,null,0]
[null,8,null,null,null,null,null,0]
[null,9,null,null,null,null,null,0]
[null,10,null,null,null,null,null,0]
[null,11,null,null,null,null,null,0]
[null,12,null,null,null,null,null,0]
[null,13,null,null,null,null,null,0]
[null,14,null,null,null,null,null,0]
[null,15,null,null,null,null,null,0]
[null,16,null,null,null,null,null,0]
[null,17,null,null,null,null,null,0]
[null,18,null,null,null,null,null,0]
[null,19,null,null,null,null,null,0]
[null,20,null,null,null,null,null,0]
[null,21,null,null,null,null,null,0]
[null,22,null,null,null,null,null,0]
[null,23,null,null,null,null,null,0]
[null,24,null,null,null,null,null,0]
[null,25,null,null,null,null,null,0]
[null,26,null,null,null,null,null,0]
[null,27,null,null,null,null,null,0]
[null,28,null,null,null,null,null,0]
[null,29,null,null,null,null,null,0]
[null,30,null,null,null,null,null,0]
[null,"الاجمالي",null,null,{"$f":"SUM(E15:E44)","v":1440},null,{"$f":"SUM(G15:G44)","v":1400}]
[]
[null,"بايو كيميكال ايجيبت للمطهرات و اضافات الاعلاف .",null,null,"Bio chemical  Egypt for antiseptic &  feed additives ."]
[null,"المصنع : دست الاشراف  - كوم حماده – البحيرة  .",null,null,"address : dest el ashraf – kom Hamada – al behara"]
[null,"موبايل : 01009958821 – 01099548642    ",null,null,"                            mob : +2001009958821 - +2001099548642                                            "]

{"sheet":"احمد تركي","index":52,"n_rows":49,"n_cols":9,"rows_kept":49,"cut":false,"hidden":false,"merged":[[48,1,48,2],[48,4,48,8],[2,1,3,3],[5,6,5,7],[6,6,6,7],[8,6,8,7],[9,6,9,7],[46,1,46,2],[46,4,46,8],[2,4,3,8],[10,6,10,7],[44,1,44,3],[47,1,47,2],[47,4,47,8]]}
[]
[]
[null,"شركة بايوكيميكال ايجيبت",null,null,"Bio chemical egypt"]
[]
[]
[null,null,null,null,null,null,"كود العميل"]
[null,null,null,"حساب عميل",null,null,30]
[]
[null,"اسم العميل",{"$f":"IFERROR(VLOOKUP(G7,'[1]البيانات '!$A$3:$B$102,2,0),\"\")","v":"احمد تركي "},null,"تليفون",null,{"$f":"IFERROR(VLOOKUP(G7,'البيانات '!A3:C78,3,0),\"\")","v":1003221948}]
[null,"اسم المنشاة",null,null,"مدير مسئول"]
[null,"العنوان",{"$f":"IFERROR(VLOOKUP(G7,'البيانات '!A3:D78,4,0),\"\")","v":"الدلنجات - بعد البوابه طريق المسين"},null,"مندوب مبيعات ",null,{"$f":"IFERROR(VLOOKUP(G7,'[1]البيانات '!$A$3:$E$102,5,0),\"\")","v":"محمد عبدالشفيع"}]
[]
[]
[null,"م","التاريخ","رقم الفاتورة","قيمة الفاتورة","رصيد سابق","المدفوع","رصيد متبقي","ملاحظات"]
[null,1,"2018-03-11",5130,5090,0,0,{"$f":"E15+F15-G15","v":5090}]
[null,2,"2018-03-13",5335,null,5090,1500,{"$f":"E16+F16-G16","v":3590}]
[null,3,"2018-03-27",5350,null,3590,1000,2590]
[null,4,"2018-04-23",5217,2100,2590,null,4690]
[null,5,"2018-05-16",5420,null,4690,500,4190]
[null,6,"2018-06-27",1023,null,4190,1000,3190]
[null,7,"2018-06-28",5476,3850,3190,null,7040]
[null,8,"2018-07-11",1044,null,7040,500,6540]
[null,9,"2018-07-25",12,null,7040,500,6540]
[null,10,"2018-08-08",32,null,6540,500,6040]
[null,11,"2018-08-29",60,null,6040,500,5540]
[null,12,"2018-09-02",24,2950,5040,null,7990]
[null,13,"2018-09-05",69,null,7990,500,7490]
[null,14,"2018-09-19",98,null,7490,500,6990]
[null,15,null,null,null,null,null,0]
[null,16,null,null,null,null,null,0]
[null,17,null,null,null,null,null,0]
[null,18,null,null,null,null,null,0]
[null,19,null,null,null,null,null,0]
[null,20,null,null,null,null,null,0]
[null,21,null,null,null,null,null,0]
[null,22,null,null,null,null,null,0]
[null,23,null,null,null,null,null,0]
[null,24,null,null,null,null,null,0]
[null,25,null,null,null,null,null,0]
[null,26,null,null,null,null,null,0]
[null,27,null,null,null,null,null,0]
[null,28,null,null,null,null,null,0]
[null,29,null,null,null,null,null,0]
[null,30,null,null,null,null,null,0]
[null,"الاجمالي",null,null,{"$f":"SUM(E15:E44)","v":13990},null,{"$f":"SUM(G15:G44)","v":7000}]
[]
[null,"بايو كيميكال ايجيبت للمطهرات و اضافات الاعلاف .",null,null,"Bio chemical  Egypt for antiseptic &  feed additives ."]
[null,"المصنع : دست الاشراف  - كوم حماده – البحيرة  .",null,null,"address : dest el ashraf – kom Hamada – al behara"]
[null,"موبايل : 01009958821 – 01099548642    ",null,null,"                            mob : +2001009958821 - +2001099548642                                            "]

{"sheet":"د.محمد فوزي المشد","index":53,"n_rows":49,"n_cols":9,"rows_kept":49,"cut":false,"hidden":false,"merged":[[48,1,48,2],[48,4,48,8],[2,1,3,3],[5,6,5,7],[6,6,6,7],[8,6,8,7],[9,6,9,7],[46,1,46,2],[46,4,46,8],[2,4,3,8],[10,6,10,7],[44,1,44,3],[47,1,47,2],[47,4,47,8]]}
[]
[]
[null,"شركة بايوكيميكال ايجيبت",null,null,"Bio chemical egypt"]
[]
[]
[null,null,null,null,null,null,"كود العميل"]
[null,null,null,"حساب عميل",null,null,33]
[]
[null,"اسم العميل",{"$f":"IFERROR(VLOOKUP(G7,'[1]البيانات '!$A$3:$B$102,2,0),\"\")","v":"محمد فوزي المشد"},null,"تليفون",null,{"$f":"IFERROR(VLOOKUP(G7,'البيانات '!A3:C78,3,0),\"\")","v":1006880848}]
[null,"اسم المنشاة",null,null,"مدير مسئول"]
[null,"العنوان",{"$f":"IFERROR(VLOOKUP(G7,'البيانات '!A3:D78,4,0),\"\")","v":"طريق كفر داود الاقليمي"},null,"مندوب مبيعات ",null,{"$f":"IFERROR(VLOOKUP(G7,'[1]البيانات '!$A$3:$E$102,5,0),\"\")","v":"محمد عبدالشفيع"}]
[]
[]
[null,"م","التاريخ","رقم الفاتورة","قيمة الفاتورة","رصيد سابق","المدفوع","رصيد متبقي","ملاحظات"]
[null,1,"2018-03-16",5338,1400,null,1000,{"$f":"E15+F15-G15","v":400}]
[null,2,"2018-04-16",5170,null,400,400,{"$f":"E16+F16-G16","v":0}]
[null,3,"2018-08-13",59,1220,null,700,520]
[null,4,"2018-09-03",63,375,520,500,395]
[null,5,null,null,null,null,null,0]
[null,6,null,null,null,null,null,0]
[null,7,null,null,null,null,null,0]
[null,8,null,null,null,null,null,0]
[null,9,null,null,null,null,null,0]
[null,10,null,null,null,null,null,0]
[null,11,null,null,null,null,null,0]
[null,12,null,null,null,null,null,0]
[null,13,null,null,null,null,null,0]
[null,14,null,null,null,null,null,0]
[null,15,null,null,null,null,null,0]
[null,16,null,null,null,null,null,0]
[null,17,null,null,null,null,null,0]
[null,18,null,null,null,null,null,0]
[null,19,null,null,null,null,null,0]
[null,20,null,null,null,null,null,0]
[null,21,null,null,null,null,null,0]
[null,22,null,null,null,null,null,0]
[null,23,null,null,null,null,null,0]
[null,24,null,null,null,null,null,0]
[null,25,null,null,null,null,null,0]
[null,26,null,null,null,null,null,0]
[null,27,null,null,null,null,null,0]
[null,28,null,null,null,null,null,0]
[null,29,null,null,null,null,null,0]
[null,30,null,null,null,null,null,0]
[null,"الاجمالي",null,null,{"$f":"SUM(E15:E44)","v":2995},null,{"$f":"SUM(G15:G44)","v":2600}]
[]
[null,"بايو كيميكال ايجيبت للمطهرات و اضافات الاعلاف .",null,null,"Bio chemical  Egypt for antiseptic &  feed additives ."]
[null,"المصنع : دست الاشراف  - كوم حماده – البحيرة  .",null,null,"address : dest el ashraf – kom Hamada – al behara"]
[null,"موبايل : 01009958821 – 01099548642    ",null,null,"                            mob : +2001009958821 - +2001099548642                                            "]

{"sheet":"رشا عيسي","index":54,"n_rows":49,"n_cols":9,"rows_kept":49,"cut":false,"hidden":false,"merged":[[48,1,48,2],[48,4,48,8],[2,1,3,3],[5,6,5,7],[6,6,6,7],[8,6,8,7],[9,6,9,7],[46,1,46,2],[46,4,46,8],[2,4,3,8],[10,6,10,7],[44,1,44,3],[47,1,47,2],[47,4,47,8]]}
[]
[]
[null,"شركة بايوكيميكال ايجيبت",null,null,"Bio chemical egypt"]
[]
[]
[null,null,null,null,null,null,"كود العميل"]
[null,null,null,"حساب عميل",null,null,32]
[]
[null,"اسم العميل",{"$f":"IFERROR(VLOOKUP(G7,'[1]البيانات '!$A$3:$B$102,2,0),\"\")","v":"د.رشاد عيسي"},null,"تليفون",null,{"$f":"IFERROR(VLOOKUP(G7,'البيانات '!A3:C78,3,0),\"\")","v":1115829062}]
[null,"اسم المنشاة",null,null,"مدير مسئول"]
[null,"العنوان",{"$f":"IFERROR(VLOOKUP(G7,'البيانات '!A3:D78,4,0),\"\")","v":"خمارة"},null,"مندوب مبيعات ",null,{"$f":"IFERROR(VLOOKUP(G7,'[1]البيانات '!$A$3:$E$102,5,0),\"\")","v":"محمد عبدالشفيع"}]
[]
[]
[null,"م","التاريخ","رقم الفاتورة","قيمة الفاتورة","رصيد سابق","المدفوع","رصيد متبقي","ملاحظات"]
[null,1,"2018-03-20",5135,1200,null,400,{"$f":"E15+F15-G15","v":800}]
[null,2,"2018-04-15",5169,null,800,500,{"$f":"E16+F16-G16","v":300}]
[null,3,"2018-04-22",5183,null,300,300,0]
[null,4,null,null,null,null,null,0]
[null,5,null,null,null,null,null,0]
[null,6,null,null,null,null,null,0]
[null,7,null,null,null,null,null,0]
[null,8,null,null,null,null,null,0]
[null,9,null,null,null,null,null,0]
[null,10,null,null,null,null,null,0]
[null,11,null,null,null,null,null,0]
[null,12,null,null,null,null,null,0]
[null,13,null,null,null,null,null,0]
[null,14,null,null,null,null,null,0]
[null,15,null,null,null,null,null,0]
[null,16,null,null,null,null,null,0]
[null,17,null,null,null,null,null,0]
[null,18,null,null,null,null,null,0]
[null,19,null,null,null,null,null,0]
[null,20,null,null,null,null,null,0]
[null,21,null,null,null,null,null,0]
[null,22,null,null,null,null,null,0]
[null,23,null,null,null,null,null,0]
[null,24,null,null,null,null,null,0]
[null,25,null,null,null,null,null,0]
[null,26,null,null,null,null,null,0]
[null,27,null,null,null,null,null,0]
[null,28,null,null,null,null,null,0]
[null,29,null,null,null,null,null,0]
[null,30,null,null,null,null,null,0]
[null,"الاجمالي",null,null,{"$f":"SUM(E15:E44)","v":1200},null,{"$f":"SUM(G15:G44)","v":1200}]
[]
[null,"بايو كيميكال ايجيبت للمطهرات و اضافات الاعلاف .",null,null,"Bio chemical  Egypt for antiseptic &  feed additives ."]
[null,"المصنع : دست الاشراف  - كوم حماده – البحيرة  .",null,null,"address : dest el ashraf – kom Hamada – al behara"]
[null,"موبايل : 01009958821 – 01099548642    ",null,null,"                            mob : +2001009958821 - +2001099548642                                            "]

{"sheet":"علي الويزي","index":55,"n_rows":49,"n_cols":9,"rows_kept":49,"cut":false,"hidden":false,"merged":[[48,1,48,2],[48,4,48,8],[2,1,3,3],[5,6,5,7],[6,6,6,7],[8,6,8,7],[9,6,9,7],[46,1,46,2],[46,4,46,8],[2,4,3,8],[10,6,10,7],[44,1,44,3],[47,1,47,2],[47,4,47,8]]}
[]
[]
[null,"شركة بايوكيميكال ايجيبت",null,null,"Bio chemical egypt"]
[]
[]
[null,null,null,null,null,null,"كود العميل"]
[null,null,null,"حساب عميل",null,null,31]
[]
[null,"اسم العميل",{"$f":"IFERROR(VLOOKUP(G7,'[1]البيانات '!$A$3:$B$102,2,0),\"\")","v":"علي لويزي"},null,"تليفون",null,{"$f":"IFERROR(VLOOKUP(G7,'البيانات '!A3:C78,3,0),\"\")","v":1007401318}]
[null,"اسم المنشاة",null,null,"مدير مسئول"]
[null,"العنوان",{"$f":"IFERROR(VLOOKUP(G7,'البيانات '!A3:D78,4,0),\"\")","v":"زاوية ابوشوشه - الدلنجات "},null,"مندوب مبيعات ",null,{"$f":"IFERROR(VLOOKUP(G7,'[1]البيانات '!$A$3:$E$102,5,0),\"\")","v":"محمد عبدالشفيع"}]
[]
[]
[null,"م","التاريخ","رقم الفاتورة","قيمة الفاتورة","رصيد سابق","المدفوع","رصيد متبقي","ملاحظات"]
[null,1,"2018-03-11",5131,4450,null,null,{"$f":"E15+F15-G15","v":4450}]
[null,2,"2018-03-27",5348,null,4450,1000,{"$f":"E16+F16-G16","v":3450}]
[null,3,"2018-04-10",5158,null,3450,1000,2450]
[null,4,"2018-04-11",5210,3350,2450,null,5800]
[null,5,"2018-04-18",5174,null,5800,1500,4300]
[null,6,"2018-04-25",5185,null,4300,1000,3300]
[null,7,"2018-05-02",5198,null,3300,1000,2300]
[null,8,"2018-05-09",5405,null,2300,600,1700]
[null,9,"2018-05-14",5236,2125,1700,null,3825]
[null,10,"2018-05-16",5417,null,3825,1500,2325]
[null,11,"2018-06-20",1009,null,2325,1000,1325]
[null,12,"2018-06-27",1020,null,1325,1300,25]
[null,13,"2018-07-01",5481,8100,25,null,8125]
[null,14,"2018-07-04",1028,null,8125,1500,6625]
[null,15,"2018-07-11",1042,null,6625,1500,5125]
[null,16,"2018-07-18",1,null,5125,1500,3625]
[null,17,"2018-08-01",20,null,0.36249999999999999,1500,-1499.6375]
[null,18,"2018-08-08",29,null,2125,1500,625]
[null,19,"2018-09-05",66,null,625,500,125]
[null,20,"2018-09-05",30,3650,125,null,3775]
[null,21,"2018-09-19",92,null,3775,1000,2775]
[null,22,null,null,null,null,null,0]
[null,23,null,null,null,null,null,0]
[null,24,null,null,null,null,null,0]
[null,25,null,null,null,null,null,0]
[null,26,null,null,null,null,null,0]
[null,27,null,null,null,null,null,0]
[null,28,null,null,null,null,null,0]
[null,29,null,null,null,null,null,0]
[null,30,null,null,null,null,null,0]
[null,"الاجمالي",null,null,{"$f":"SUM(E15:E44)","v":21675},null,{"$f":"SUM(G15:G44)","v":18900}]
[]
[null,"بايو كيميكال ايجيبت للمطهرات و اضافات الاعلاف .",null,null,"Bio chemical  Egypt for antiseptic &  feed additives ."]
[null,"المصنع : دست الاشراف  - كوم حماده – البحيرة  .",null,null,"address : dest el ashraf – kom Hamada – al behara"]
[null,"موبايل : 01009958821 – 01099548642    ",null,null,"                            mob : +2001009958821 - +2001099548642                                            "]

{"sheet":"هاني صقر","index":56,"n_rows":49,"n_cols":9,"rows_kept":49,"cut":false,"hidden":false,"merged":[[48,1,48,2],[48,4,48,8],[2,1,3,3],[5,6,5,7],[6,6,6,7],[8,6,8,7],[9,6,9,7],[46,1,46,2],[46,4,46,8],[2,4,3,8],[10,6,10,7],[44,1,44,3],[47,1,47,2],[47,4,47,8]]}
[]
[]
[null,"شركة بايوكيميكال ايجيبت",null,null,"Bio chemical egypt"]
[]
[]
[null,null,null,null,null,null,"كود العميل"]
[null,null,null,"حساب عميل",null,null,34]
[]
[null,"اسم العميل",{"$f":"IFERROR(VLOOKUP(G7,'[1]البيانات '!$A$3:$B$102,2,0),\"\")","v":"د.هاني صقر"},null,"تليفون",null,{"$f":"IFERROR(VLOOKUP(G7,'البيانات '!A3:C78,3,0),\"\")","v":1021758129}]
[null,"اسم المنشاة",null,null,"مدير مسئول"]
[null,"العنوان",{"$f":"IFERROR(VLOOKUP(G7,'البيانات '!A3:D78,4,0),\"\")","v":"اشمون"},null,"مندوب مبيعات ",null,{"$f":"IFERROR(VLOOKUP(G7,'[1]البيانات '!$A$3:$E$102,5,0),\"\")","v":"محمد عبدالشفيع"}]
[]
[]
[null,"م","التاريخ","رقم الفاتورة","قيمة الفاتورة","رصيد سابق","المدفوع","رصيد متبقي","ملاحظات"]
[null,1,"2018-03-19",5.3390000000000004,370,null,220,{"$f":"E15+F15-G15","v":150}]
[null,2,"2018-03-29",5154,370,150,150,{"$f":"E16+F16-G16","v":370}]
[null,3,"2018-04-12",5162,null,370,120,250]
[null,4,"2018-04-26",5190,null,250,250,0]
[null,5,"2018-08-13",58,760,null,760,0]
[null,6,null,null,null,null,null,0]
[null,7,null,null,null,null,null,0]
[null,8,null,null,null,null,null,0]
[null,9,null,null,null,null,null,0]
[null,10,null,null,null,null,null,0]
[null,11,null,null,null,null,null,0]
[null,12,null,null,null,null,null,0]
[null,13,null,null,null,null,null,0]
[null,14,null,null,null,null,null,0]
[null,15,null,null,null,null,null,0]
[null,16,null,null,null,null,null,0]
[null,17,null,null,null,null,null,0]
[null,18,null,null,null,null,null,0]
[null,19,null,null,null,null,null,0]
[null,20,null,null,null,null,null,0]
[null,21,null,null,null,null,null,0]
[null,22,null,null,null,null,null,0]
[null,23,null,null,null,null,null,0]
[null,24,null,null,null,null,null,0]
[null,25,null,null,null,null,null,0]
[null,26,null,null,null,null,null,0]
[null,27,null,null,null,null,null,0]
[null,28,null,null,null,null,null,0]
[null,29,null,null,null,null,null,0]
[null,30,null,null,null,null,null,0]
[null,"الاجمالي",null,null,{"$f":"SUM(E15:E44)","v":1500},null,{"$f":"SUM(G15:G44)","v":1500}]
[]
[null,"بايو كيميكال ايجيبت للمطهرات و اضافات الاعلاف .",null,null,"Bio chemical  Egypt for antiseptic &  feed additives ."]
[null,"المصنع : دست الاشراف  - كوم حماده – البحيرة  .",null,null,"address : dest el ashraf – kom Hamada – al behara"]
[null,"موبايل : 01009958821 – 01099548642    ",null,null,"                            mob : +2001009958821 - +2001099548642                                            "]

{"sheet":"د.هاشم ماضي","index":57,"n_rows":49,"n_cols":9,"rows_kept":49,"cut":false,"hidden":false,"merged":[[48,1,48,2],[48,4,48,8],[2,1,3,3],[5,6,5,7],[6,6,6,7],[8,6,8,7],[9,6,9,7],[46,1,46,2],[46,4,46,8],[2,4,3,8],[10,6,10,7],[44,1,44,3],[47,1,47,2],[47,4,47,8]]}
[]
[]
[null,"شركة بايوكيميكال ايجيبت",null,null,"Bio chemical egypt"]
[]
[]
[null,null,null,null,null,null,"كود العميل"]
[null,null,null,"حساب عميل",null,null,37]
[]
[null,"اسم العميل",{"$f":"IFERROR(VLOOKUP(G7,'[1]البيانات '!$A$3:$B$102,2,0),\"\")","v":"د.هاشم ماضي"},null,"تليفون",null,{"$f":"IFERROR(VLOOKUP(G7,'البيانات '!A3:C78,3,0),\"\")","v":100814340}]
[null,"اسم المنشاة",null,null,"مدير مسئول"]
[null,"العنوان",{"$f":"IFERROR(VLOOKUP(G7,'البيانات '!A3:D78,4,0),\"\")","v":"ابو حمص - الزراعي مباشرة - منزلة الكوبري"},null,"مندوب مبيعات ",null,{"$f":"IFERROR(VLOOKUP(G7,'[1]البيانات '!$A$3:$E$102,5,0),\"\")","v":"محمد عبدالشفيع"}]
[]
[]
[null,"م","التاريخ","رقم الفاتورة","قيمة الفاتورة","رصيد سابق","المدفوع","رصيد متبقي","ملاحظات"]
[null,1,"2018-03-20",5136,1920,null,500,{"$f":"E15+F15-G15","v":1420}]
[null,2,"2018-04-19",5177,null,1420,400,{"$f":"E16+F16-G16","v":1020}]
[null,3,"2018-09-02",61,-890,1020,130,0]
[null,4,null,null,null,null,null,0]
[null,5,null,null,null,null,null,0]
[null,6,null,null,null,null,null,0]
[null,7,null,null,null,null,null,0]
[null,8,null,null,null,null,null,0]
[null,9,null,null,null,null,null,0]
[null,10,null,null,null,null,null,0]
[null,11,null,null,null,null,null,0]
[null,12,null,null,null,null,null,0]
[null,13,null,null,null,null,null,0]
[null,14,null,null,null,null,null,0]
[null,15,null,null,null,null,null,0]
[null,16,null,null,null,null,null,0]
[null,17,null,null,null,null,null,0]
[null,18,null,null,null,null,null,0]
[null,19,null,null,null,null,null,0]
[null,20,null,null,null,null,null,0]
[null,21,null,null,null,null,null,0]
[null,22,null,null,null,null,null,0]
[null,23,null,null,null,null,null,0]
[null,24,null,null,null,null,null,0]
[null,25,null,null,null,null,null,0]
[null,26,null,null,null,null,null,0]
[null,27,null,null,null,null,null,0]
[null,28,null,null,null,null,null,0]
[null,29,null,null,null,null,null,0]
[null,30,null,null,null,null,null,0]
[null,"الاجمالي",null,null,{"$f":"SUM(E15:E44)","v":1030},null,{"$f":"SUM(G15:G44)","v":1030}]
[]
[null,"بايو كيميكال ايجيبت للمطهرات و اضافات الاعلاف .",null,null,"Bio chemical  Egypt for antiseptic &  feed additives ."]
[null,"المصنع : دست الاشراف  - كوم حماده – البحيرة  .",null,null,"address : dest el ashraf – kom Hamada – al behara"]
[null,"موبايل : 01009958821 – 01099548642    ",null,null,"                            mob : +2001009958821 - +2001099548642                                            "]

{"sheet":"ربيع الوريني","index":58,"n_rows":49,"n_cols":9,"rows_kept":49,"cut":false,"hidden":false,"merged":[[48,1,48,2],[48,4,48,8],[2,1,3,3],[5,6,5,7],[6,6,6,7],[8,6,8,7],[9,6,9,7],[46,1,46,2],[46,4,46,8],[2,4,3,8],[10,6,10,7],[44,1,44,3],[47,1,47,2],[47,4,47,8]]}
[]
[]
[null,"شركة بايوكيميكال ايجيبت",null,null,"Bio chemical egypt"]
[]
[]
[null,null,null,null,null,null,"كود العميل"]
[null,null,null,"حساب عميل",null,null,38]
[]
[null,"اسم العميل",{"$f":"IFERROR(VLOOKUP(G7,'[1]البيانات '!$A$3:$B$102,2,0),\"\")","v":"ربيع الورديني"},null,"تليفون",null,{"$f":"IFERROR(VLOOKUP(G7,'البيانات '!A3:C78,3,0),\"\")","v":0}]
[null,"اسم المنشاة",null,null,"مدير مسئول"]
[null,"العنوان",{"$f":"IFERROR(VLOOKUP(G7,'البيانات '!A3:D78,4,0),\"\")","v":"ايتاي البارود"},null,"مندوب مبيعات ",null,{"$f":"IFERROR(VLOOKUP(G7,'[1]البيانات '!$A$3:$E$102,5,0),\"\")","v":"محمد عبدالشفيع"}]
[]
[]
[null,"م","التاريخ","رقم الفاتورة","قيمة الفاتورة","رصيد سابق","المدفوع","رصيد متبقي","ملاحظات"]
[null,1,"2018-03-27",5150,3625,null,2000,{"$f":"E15+F15-G15","v":1625}]
[null,2,"2018-04-15",5168,null,1625,1000,{"$f":"E16+F16-G16","v":625}]
[null,3,"2018-04-24","نقدي",null,1625,630,995]
[null,4,"2018-04-15","نقدي",null,995,1000,-5]
[null,5,"2018-04-26",5224,1050,5,null,1055]
[null,6,"2018-05-13",5412,null,1045,500,545]
[null,7,"2018-07-08",1036,null,545,500,45]
[null,8,"2018-07-11",5485,2400,45,null,2445]
[null,9,"2018-07-11","نقدي",null,2445,1000,1445]
[null,10,"2018-07-22",9,null,1445,500,945]
[null,11,"2018-09-09",77,null,945,500,445]
[null,12,null,null,null,null,null,0]
[null,13,null,null,null,null,null,0]
[null,14,null,null,null,null,null,0]
[null,15,null,null,null,null,null,0]
[null,16,null,null,null,null,null,0]
[null,17,null,null,null,null,null,0]
[null,18,null,null,null,null,null,0]
[null,19,null,null,null,null,null,0]
[null,20,null,null,null,null,null,0]
[null,21,null,null,null,null,null,0]
[null,22,null,null,null,null,null,0]
[null,23,null,null,null,null,null,0]
[null,24,null,null,null,null,null,0]
[null,25,null,null,null,null,null,0]
[null,26,null,null,null,null,null,0]
[null,27,null,null,null,null,null,0]
[null,28,null,null,null,null,null,0]
[null,29,null,null,null,null,null,0]
[null,30,null,null,null,null,null,0]
[null,"الاجمالي",null,null,{"$f":"SUM(E15:E44)","v":7075},null,{"$f":"SUM(G15:G44)","v":7630}]
[]
[null,"بايو كيميكال ايجيبت للمطهرات و اضافات الاعلاف .",null,null,"Bio chemical  Egypt for antiseptic &  feed additives ."]
[null,"المصنع : دست الاشراف  - كوم حماده – البحيرة  .",null,null,"address : dest el ashraf – kom Hamada – al behara"]
[null,"موبايل : 01009958821 – 01099548642    ",null,null,"                            mob : +2001009958821 - +2001099548642                                            "]

{"sheet":"أحمد السيد دسوقي","index":59,"n_rows":49,"n_cols":9,"rows_kept":49,"cut":false,"hidden":false,"merged":[[48,1,48,2],[48,4,48,8],[2,1,3,3],[5,6,5,7],[6,6,6,7],[8,6,8,7],[9,6,9,7],[46,1,46,2],[46,4,46,8],[2,4,3,8],[10,6,10,7],[44,1,44,3],[47,1,47,2],[47,4,47,8]]}
[]
[]
[null,"شركة بايوكيميكال ايجيبت",null,null,"Bio chemical egypt"]
[]
[]
[null,null,null,null,null,null,"كود العميل"]
[null,null,null,"حساب عميل",null,null,40]
[]
[null,"اسم العميل",{"$f":"IFERROR(VLOOKUP(G7,'[1]البيانات '!$A$3:$B$102,2,0),\"\")","v":"م.احمد السيد الدسوقي"},null,"تليفون",null,{"$f":"IFERROR(VLOOKUP(G7,'البيانات '!A3:C78,3,0),\"\")","v":0}]
[null,"اسم المنشاة",null,null,"مدير مسئول"]
[null,"العنوان",{"$f":"IFERROR(VLOOKUP(G7,'البيانات '!A3:D78,4,0),\"\")","v":"كوبري المدير - ابو المطامير"},null,"مندوب مبيعات ",null,{"$f":"IFERROR(VLOOKUP(G7,'[1]البيانات '!$A$3:$E$102,5,0),\"\")","v":"محمد عبدالشفيع"}]
[]
[]
[null,"م","التاريخ","رقم الفاتورة","قيمة الفاتورة","رصيد سابق","المدفوع","رصيد متبقي","ملاحظات"]
[null,1,"2018-04-11",5209,2100,null,1100,{"$f":"E15+F15-G15","v":1000}]
[null,2,"2018-05-01",5796,null,1000,1000,{"$f":"E16+F16-G16","v":0}]
[null,3,"2018-05-02",5226,6300,null,null,6300]
[null,4,"2018-05-09",5230,4200,6300,null,10500]
[null,5,"2018-05-29",5432,500,10500,5000,6000]
[null,6,"2018-06-13",1006,null,6000,6000,0]
[null,7,null,null,null,null,null,0]
[null,8,null,null,null,null,null,0]
[null,9,null,null,null,null,null,0]
[null,10,null,null,null,null,null,0]
[null,11,null,null,null,null,null,0]
[null,12,null,null,null,null,null,0]
[null,13,null,null,null,null,null,0]
[null,14,null,null,null,null,null,0]
[null,15,null,null,null,null,null,0]
[null,16,null,null,null,null,null,0]
[null,17,null,null,null,null,null,0]
[null,18,null,null,null,null,null,0]
[null,19,null,null,null,null,null,0]
[null,20,null,null,null,null,null,0]
[null,21,null,null,null,null,null,0]
[null,22,null,null,null,null,null,0]
[null,23,null,null,null,null,null,0]
[null,24,null,null,null,null,null,0]
[null,25,null,null,null,null,null,0]
[null,26,null,null,null,null,null,0]
[null,27,null,null,null,null,null,0]
[null,28,null,null,null,null,null,0]
[null,29,null,null,null,null,null,0]
[null,30,null,null,null,null,null,0]
[null,"الاجمالي",null,null,{"$f":"SUM(E15:E44)","v":13100},null,{"$f":"SUM(G15:G44)","v":13100}]
[]
[null,"بايو كيميكال ايجيبت للمطهرات و اضافات الاعلاف .",null,null,"Bio chemical  Egypt for antiseptic &  feed additives ."]
[null,"المصنع : دست الاشراف  - كوم حماده – البحيرة  .",null,null,"address : dest el ashraf – kom Hamada – al behara"]
[null,"موبايل : 01009958821 – 01099548642    ",null,null,"                            mob : +2001009958821 - +2001099548642                                            "]

{"sheet":"ش- الشحات عيد مصطفي","index":60,"n_rows":49,"n_cols":9,"rows_kept":49,"cut":false,"hidden":false,"merged":[[48,1,48,2],[48,4,48,8],[2,1,3,3],[5,6,5,7],[6,6,6,7],[8,6,8,7],[9,6,9,7],[46,1,46,2],[46,4,46,8],[14,3,14,8],[2,4,3,8],[10,6,10,7],[44,1,44,3],[47,1,47,2],[47,4,47,8]]}
[]
[]
[null,"شركة بايوكيميكال ايجيبت",null,null,"Bio chemical egypt"]
[]
[]
[null,null,null,null,null,null,"كود العميل"]
[null,null,null,"حساب عميل",null,null,67]
[]
[null,"اسم العميل",{"$f":"IFERROR(VLOOKUP(G7,'[1]البيانات '!$A$3:$B$102,2,0),\"\")","v":"الشيخ -الشحات عيد مصطفي"},null,"تليفون",null,{"$f":"IFERROR(VLOOKUP(G7,'البيانات '!A3:C78,3,0),\"\")","v":0}]
[null,"اسم المنشاة",null,null,"مدير مسئول"]
[null,"العنوان",{"$f":"IFERROR(VLOOKUP(G7,'البيانات '!A3:D78,4,0),\"\")","v":"ايتاي البارود"},null,"مندوب مبيعات ",null,{"$f":"IFERROR(VLOOKUP(G7,'[1]البيانات '!$A$3:$E$102,5,0),\"\")","v":"محمد عبدالشفيع"}]
[]
[]
[null,"م","التاريخ","رقم الفاتورة","قيمة الفاتورة","رصيد سابق","المدفوع","رصيد متبقي","ملاحظات"]
[null,1,null,"طرف الاستاذ فتحي مقلد"]
[null,2,"2018-10-14",1358,1750,0,0,{"$f":"E16+F16-G16","v":1750}]
[null,3,null,null,null,null,null,0]
[null,4,null,null,null,null,null,0]
[null,5,null,null,null,null,null,0]
[null,6,null,null,null,null,null,0]
[null,7,null,null,null,null,null,0]
[null,8,null,null,null,null,null,0]
[null,9,null,null,null,null,null,0]
[null,10,null,null,null,null,null,0]
[null,11,null,null,null,null,null,0]
[null,12,null,null,null,null,null,0]
[null,13,null,null,null,null,null,0]
[null,14,null,null,null,null,null,0]
[null,15,null,null,null,null,null,0]
[null,16,null,null,null,null,null,0]
[null,17,null,null,null,null,null,0]
[null,18,null,null,null,null,null,0]
[null,19,null,null,null,null,null,0]
[null,20,null,null,null,null,null,0]
[null,21,null,null,null,null,null,0]
[null,22,null,null,null,null,null,0]
[null,23,null,null,null,null,null,0]
[null,24,null,null,null,null,null,0]
[null,25,null,null,null,null,null,0]
[null,26,null,null,null,null,null,0]
[null,27,null,null,null,null,null,0]
[null,28,null,null,null,null,null,0]
[null,29,null,null,null,null,null,0]
[null,30,null,null,null,null,null,0]
[null,"الاجمالي",null,null,{"$f":"SUM(E15:E44)","v":1750},null,{"$f":"SUM(G15:G44)","v":0}]
[]
[null,"بايو كيميكال ايجيبت للمطهرات و اضافات الاعلاف .",null,null,"Bio chemical  Egypt for antiseptic &  feed additives ."]
[null,"المصنع : دست الاشراف  - كوم حماده – البحيرة  .",null,null,"address : dest el ashraf – kom Hamada – al behara"]
[null,"موبايل : 01009958821 – 01099548642    ",null,null,"                            mob : +2001009958821 - +2001099548642                                            "]

{"sheet":"أحمد سلامه","index":61,"n_rows":49,"n_cols":9,"rows_kept":49,"cut":false,"hidden":false,"merged":[[48,1,48,2],[48,4,48,8],[2,1,3,3],[5,6,5,7],[6,6,6,7],[8,6,8,7],[9,6,9,7],[46,1,46,2],[46,4,46,8],[14,3,14,5],[2,4,3,8],[10,6,10,7],[44,1,44,3],[47,1,47,2],[47,4,47,8]]}
[]
[]
[null,"شركة بايوكيميكال ايجيبت",null,null,"Bio chemical egypt"]
[]
[]
[null,null,null,null,null,null,"كود العميل"]
[null,null,null,"حساب عميل",null,null,50]
[]
[null,"اسم العميل",{"$f":"IFERROR(VLOOKUP(G7,'[1]البيانات '!$A$3:$B$102,2,0),\"\")","v":"احمد سلامه"},null,"تليفون",null,{"$f":"IFERROR(VLOOKUP(G7,'البيانات '!A3:C78,3,0),\"\")","v":0}]
[null,"اسم المنشاة",null,null,"مدير مسئول"]
[null,"العنوان",{"$f":"IFERROR(VLOOKUP(G7,'البيانات '!A3:D78,4,0),\"\")","v":"العشرة مدرسة"},null,"مندوب مبيعات ",null,{"$f":"IFERROR(VLOOKUP(G7,'[1]البيانات '!$A$3:$E$102,5,0),\"\")","v":"محمد عبدالشفيع"}]
[]
[]
[null,"م","التاريخ","رقم الفاتورة","قيمة الفاتورة","رصيد سابق","المدفوع","رصيد متبقي","ملاحظات"]
[null,1,"2018-04-29","رصيد حتي هذا التاريخ",null,null,null,3175]
[null,2,"2018-05-15",5415,null,3175,500,{"$f":"E16+F16-G16","v":2675}]
[null,3,"2018-05-29",5431,null,2675,500,2175]
[null,4,"2018-06-13",1005,null,2175,500,1675]
[null,5,"2018-07-08",5491,6555,1675,0,8230]
[null,6,"2018-07-08","نقدي",null,8230,1000,7230]
[null,7,"2018-07-17",1050,null,7230,2000,5230]
[null,8,"2018-07-31",19,null,5230,1000,4230]
[null,9,"2018-08-01",3,3925,4230,0,8155]
[null,10,"2018-09-04",64,null,8155,1000,7155]
[null,11,"2018-09-11",79,null,7155,1000,6155]
[null,12,"2018-09-13",81,null,6155,1000,5155]
[null,13,"2018-09-16",36,5550,5155,0,10705]
[null,14,null,null,null,null,null,0]
[null,15,null,null,null,null,null,0]
[null,16,null,null,null,null,null,0]
[null,17,null,null,null,null,null,0]
[null,18,null,null,null,null,null,0]
[null,19,null,null,null,null,null,0]
[null,20,null,null,null,null,null,0]
[null,21,null,null,null,null,null,0]
[null,22,null,null,null,null,null,0]
[null,23,null,null,null,null,null,0]
[null,24,null,null,null,null,null,0]
[null,25,null,null,null,null,null,0]
[null,26,null,null,null,null,null,0]
[null,27,null,null,null,null,null,0]
[null,28,null,null,null,null,null,0]
[null,29,null,null,null,null,null,0]
[null,30,null,null,null,null,null,0]
[null,"الاجمالي",null,null,{"$f":"SUM(E15:E44)","v":16030},null,{"$f":"SUM(G15:G44)","v":8500}]
[]
[null,"بايو كيميكال ايجيبت للمطهرات و اضافات الاعلاف .",null,null,"Bio chemical  Egypt for antiseptic &  feed additives ."]
[null,"المصنع : دست الاشراف  - كوم حماده – البحيرة  .",null,null,"address : dest el ashraf – kom Hamada – al behara"]
[null,"موبايل : 01009958821 – 01099548642    ",null,null,"                            mob : +2001009958821 - +2001099548642                                            "]

{"sheet":"أحمد داود","index":62,"n_rows":49,"n_cols":9,"rows_kept":49,"cut":false,"hidden":false,"merged":[[48,1,48,2],[48,4,48,8],[2,1,3,3],[5,6,5,7],[6,6,6,7],[8,6,8,7],[9,6,9,7],[46,1,46,2],[46,4,46,8],[14,3,14,6],[26,3,26,7],[2,4,3,8],[10,6,10,7],[44,1,44,3],[47,1,47,2],[47,4,47,8]]}
[]
[]
[null,"شركة بايوكيميكال ايجيبت",null,null,"Bio chemical egypt"]
[]
[]
[null,null,null,null,null,null,"كود العميل"]
[null,null,null,"حساب عميل",null,null,51]
[]
[null,"اسم العميل",{"$f":"IFERROR(VLOOKUP(G7,'[1]البيانات '!$A$3:$B$102,2,0),\"\")","v":"احمد داود"},null,"تليفون",null,{"$f":"IFERROR(VLOOKUP(G7,'البيانات '!A3:C78,3,0),\"\")","v":0}]
[null,"اسم المنشاة",null,null,"مدير مسئول"]
[null,"العنوان",{"$f":"IFERROR(VLOOKUP(G7,'البيانات '!A3:D78,4,0),\"\")","v":"شبراخيت - مستناد"},null,"مندوب مبيعات ",null,{"$f":"IFERROR(VLOOKUP(G7,'[1]البيانات '!$A$3:$E$102,5,0),\"\")","v":"محمد عبدالشفيع"}]
[]
[]
[null,"م","التاريخ","رقم الفاتورة","قيمة الفاتورة","رصيد سابق","المدفوع","رصيد متبقي","ملاحظات"]
[null,1,"2018-04-29","رصيد حتي هذا التاريخ",null,null,null,3110]
[null,2,"2018-05-20",5422,0,3110,1000,{"$f":"E16+F16-G16","v":2110}]
[null,3,"2018-06-07",5447,0,2110,1000,1110]
[null,4,"2018-06-09",5459,3275,1110,0,4385]
[null,5,"2018-06-20",5466,1710,4385,1000,5095,"مع السائق"]
[null,6,"2018-06-24",1013,0,5095,1000,4095]
[null,7,"2018-07-01",1025,0,4095,1000,3095]
[null,8,"2018-07-30",16,0,3095,1000,2095]
[null,9,"2018-08-12",37,0,2095,1000,1095]
[null,10,"2018-08-14",11,5025,1095,0,6120]
[null,11,"2018-09-02",61,0,6120,2000,4120]
[null,12]
[null,13,null,"طرف الاستاذ فتحي مقلد"]
[null,14,"2018-10-04",1361,6640,4120,0,10760]
[null,15,null,null,null,null,null,0]
[null,16,null,null,null,null,null,0]
[null,17,null,null,null,null,null,0]
[null,18,null,null,null,null,null,0]
[null,19,null,null,null,null,null,0]
[null,20,null,null,null,null,null,0]
[null,21,null,null,null,null,null,0]
[null,22,null,null,null,null,null,0]
[null,23,null,null,null,null,null,0]
[null,24,null,null,null,null,null,0]
[null,25,null,null,null,null,null,0]
[null,26,null,null,null,null,null,0]
[null,27,null,null,null,null,null,0]
[null,28,null,null,null,null,null,0]
[null,29,null,null,null,null,null,0]
[null,30,null,null,null,null,null,0]
[null,"الاجمالي",null,null,{"$f":"SUM(E15:E44)","v":16650},null,{"$f":"SUM(G15:G44)","v":9000}]
[]
[null,"بايو كيميكال ايجيبت للمطهرات و اضافات الاعلاف .",null,null,"Bio chemical  Egypt for antiseptic &  feed additives ."]
[null,"المصنع : دست الاشراف  - كوم حماده – البحيرة  .",null,null,"address : dest el ashraf – kom Hamada – al behara"]
[null,"موبايل : 01009958821 – 01099548642    ",null,null,"                            mob : +2001009958821 - +2001099548642                                            "]

{"sheet":"حمدي عبد الصانع","index":63,"n_rows":49,"n_cols":9,"rows_kept":49,"cut":false,"hidden":false,"merged":[[48,1,48,2],[48,4,48,8],[2,1,3,3],[5,6,5,7],[6,6,6,7],[8,6,8,7],[9,6,9,7],[46,1,46,2],[46,4,46,8],[2,4,3,8],[10,6,10,7],[44,1,44,3],[47,1,47,2],[47,4,47,8],[14,3,14,6]]}
[]
[]
[null,"شركة بايوكيميكال ايجيبت",null,null,"Bio chemical egypt"]
[]
[]
[null,null,null,null,null,null,"كود العميل"]
[null,null,null,"حساب عميل",null,null,52]
[]
[null,"اسم العميل",{"$f":"IFERROR(VLOOKUP(G7,'[1]البيانات '!$A$3:$B$102,2,0),\"\")","v":"ا.حمدي عبد الصانع"},null,"تليفون",null,{"$f":"IFERROR(VLOOKUP(G7,'البيانات '!A3:C78,3,0),\"\")","v":0}]
[null,"اسم المنشاة",null,null,"مدير مسئول"]
[null,"العنوان",{"$f":"IFERROR(VLOOKUP(G7,'البيانات '!A3:D78,4,0),\"\")","v":"ايتاي البارود"},null,"مندوب مبيعات ",null,{"$f":"IFERROR(VLOOKUP(G7,'[1]البيانات '!$A$3:$E$102,5,0),\"\")","v":"محمد عبدالشفيع"}]
[]
[]
[null,"م","التاريخ","رقم الفاتورة","قيمة الفاتورة","رصيد سابق","المدفوع","رصيد متبقي","ملاحظات"]
[null,1,"2018-04-29","رصيد حتي هذا التاريخ",null,null,null,2935]
[null,2,"2018-04-29",5195,0,2935,500,{"$f":"E16+F16-G16","v":2435}]
[null,3,"2018-05-13",5411,0,2435,1000,1435]
[null,4,"2018-06-03",5442,0,1435,500,935]
[null,5,"2018-06-24",1016,0,935,500,435]
[null,6,"2018-07-29",15,0,435,400,35]
[null,7,"2018-08-29",19,6370,35,0,6405]
[null,8,null,null,null,null,null,0]
[null,9,null,null,null,null,null,0]
[null,10,null,null,null,null,null,0]
[null,11,null,null,null,null,null,0]
[null,12,null,null,null,null,null,0]
[null,13,null,null,null,null,null,0]
[null,14,null,null,null,null,null,0]
[null,15,null,null,null,null,null,0]
[null,16,null,null,null,null,null,0]
[null,17,null,null,null,null,null,0]
[null,18,null,null,null,null,null,0]
[null,19,null,null,null,null,null,0]
[null,20,null,null,null,null,null,0]
[null,21,null,null,null,null,null,0]
[null,22,null,null,null,null,null,0]
[null,23,null,null,null,null,null,0]
[null,24,null,null,null,null,null,0]
[null,25,null,null,null,null,null,0]
[null,26,null,null,null,null,null,0]
[null,27,null,null,null,null,null,0]
[null,28,null,null,null,null,null,0]
[null,29,null,null,null,null,null,0]
[null,30,null,null,null,null,null,0]
[null,"الاجمالي",null,null,{"$f":"SUM(E15:E44)","v":6370},null,{"$f":"SUM(G15:G44)","v":2900}]
[]
[null,"بايو كيميكال ايجيبت للمطهرات و اضافات الاعلاف .",null,null,"Bio chemical  Egypt for antiseptic &  feed additives ."]
[null,"المصنع : دست الاشراف  - كوم حماده – البحيرة  .",null,null,"address : dest el ashraf – kom Hamada – al behara"]
[null,"موبايل : 01009958821 – 01099548642    ",null,null,"                            mob : +2001009958821 - +2001099548642                                            "]

{"sheet":"السيد مسلم","index":64,"n_rows":49,"n_cols":9,"rows_kept":49,"cut":false,"hidden":false,"merged":[[48,1,48,2],[48,4,48,8],[2,1,3,3],[5,6,5,7],[6,6,6,7],[8,6,8,7],[9,6,9,7],[46,1,46,2],[46,4,46,8],[2,4,3,8],[10,6,10,7],[44,1,44,3],[47,1,47,2],[47,4,47,8]]}
[]
[]
[null,"شركة بايوكيميكال ايجيبت",null,null,"Bio chemical egypt"]
[]
[]
[null,null,null,null,null,null,"كود العميل"]
[null,null,null,"حساب عميل",null,null,53]
[]
[null,"اسم العميل",{"$f":"IFERROR(VLOOKUP(G7,'[1]البيانات '!$A$3:$B$102,2,0),\"\")","v":"السيد مسلم"},null,"تليفون",null,{"$f":"IFERROR(VLOOKUP(G7,'البيانات '!A3:C78,3,0),\"\")","v":0}]
[null,"اسم المنشاة",null,null,"مدير مسئول"]
[null,"العنوان",{"$f":"IFERROR(VLOOKUP(G7,'البيانات '!A3:D78,4,0),\"\")","v":"العشرة الاف - ابو المطامير"},null,"مندوب مبيعات ",null,{"$f":"IFERROR(VLOOKUP(G7,'[1]البيانات '!$A$3:$E$102,5,0),\"\")","v":"محمد عبدالشفيع"}]
[]
[]
[null,"م","التاريخ","رقم الفاتورة","قيمة الفاتورة","رصيد سابق","المدفوع","رصيد متبقي","ملاحظات"]
[null,1,"2018-05-09",5231,4500,0,null,{"$f":"E15+F15-G15","v":4500}]
[null,2,"2018-06-02",5439,0,4500,1950,{"$f":"E16+F16-G16","v":2550}]
[null,3,"2018-06-13",1004,0,2550,2550,0]
[null,4,"2018-06-27",5474,6300,0,2000,4300,"مع السائق"]
[null,5,"2018-08-02",23,0,4300,1000,3300]
[null,6,"2018-08-14",40,0,3300,1500,1800]
[null,7,"2018-08-29",21,4350,1800,0,6150]
[null,8,"2018-09-04",65,0,6150,1500,4650]
[null,9,"2018-09-13",82,0,4650,1000,3650]
[null,10,"2018-09-16",35,6150,3650,0,9800]
[null,11,"2018-09-18",91,0,9800,2000,7800]
[null,12,null,null,null,null,null,0]
[null,13,null,null,null,null,null,0]
[null,14,null,null,null,null,null,0]
[null,15,null,null,null,null,null,0]
[null,16,null,null,null,null,null,0]
[null,17,null,null,null,null,null,0]
[null,18,null,null,null,null,null,0]
[null,19,null,null,null,null,null,0]
[null,20,null,null,null,null,null,0]
[null,21,null,null,null,null,null,0]
[null,22,null,null,null,null,null,0]
[null,23,null,null,null,null,null,0]
[null,24,null,null,null,null,null,0]
[null,25,null,null,null,null,null,0]
[null,26,null,null,null,null,null,0]
[null,27,null,null,null,null,null,0]
[null,28,null,null,null,null,null,0]
[null,29,null,null,null,null,null,0]
[null,30,null,null,null,null,null,0]
[null,"الاجمالي",null,null,{"$f":"SUM(E15:E44)","v":21300},null,{"$f":"SUM(G15:G44)","v":13500}]
[]
[null,"بايو كيميكال ايجيبت للمطهرات و اضافات الاعلاف .",null,null,"Bio chemical  Egypt for antiseptic &  feed additives ."]
[null,"المصنع : دست الاشراف  - كوم حماده – البحيرة  .",null,null,"address : dest el ashraf – kom Hamada – al behara"]
[null,"موبايل : 01009958821 – 01099548642    ",null,null,"                            mob : +2001009958821 - +2001099548642                                            "]

{"sheet":"رفعت الحوفي","index":65,"n_rows":49,"n_cols":9,"rows_kept":49,"cut":false,"hidden":false,"merged":[[48,1,48,2],[48,4,48,8],[2,1,3,3],[5,6,5,7],[6,6,6,7],[8,6,8,7],[9,6,9,7],[46,1,46,2],[46,4,46,8],[2,4,3,8],[10,6,10,7],[44,1,44,3],[47,1,47,2],[47,4,47,8]]}
[]
[]
[null,"شركة بايوكيميكال ايجيبت",null,null,"Bio chemical egypt"]
[]
[]
[null,null,null,null,null,null,"كود العميل"]
[null,null,null,"حساب عميل",null,null,54]
[]
[null,"اسم العميل",{"$f":"IFERROR(VLOOKUP(G7,'[1]البيانات '!$A$3:$B$102,2,0),\"\")","v":"رفعت الحوفي"},null,"تليفون",null,{"$f":"IFERROR(VLOOKUP(G7,'البيانات '!A3:C78,3,0),\"\")","v":0}]
[null,"اسم المنشاة",null,null,"مدير مسئول"]
[null,"العنوان",{"$f":"IFERROR(VLOOKUP(G7,'البيانات '!A3:D78,4,0),\"\")","v":"كوم امبو - ابو المطامير - القرية الرئيسيه"},null,"مندوب مبيعات ",null,{"$f":"IFERROR(VLOOKUP(G7,'[1]البيانات '!$A$3:$E$102,5,0),\"\")","v":"محمد عبدالشفيع"}]
[]
[]
[null,"م","التاريخ","رقم الفاتورة","قيمة الفاتورة","رصيد سابق","المدفوع","رصيد متبقي","ملاحظات"]
[null,1,"2018-08-01",4,5650,0,0,{"$f":"E15+F15-G15","v":5650}]
[null,2,"2018-08-07",28,0,5650,500,{"$f":"E16+F16-G16","v":5150}]
[null,3,"2018-08-28",57,0,5150,500,4650]
[null,4,"2018-09-04",63,0,4650,500,4150]
[null,5,"2018-09-01",78,0,4150,1000,3150]
[null,6,"2018-09-18",90,0,3150,1000,2150]
[null,7,null,null,null,null,null,0]
[null,8,null,null,null,null,null,0]
[null,9,null,null,null,null,null,0]
[null,10,null,null,null,null,null,0]
[null,11,null,null,null,null,null,0]
[null,12,null,null,null,null,null,0]
[null,13,null,null,null,null,null,0]
[null,14,null,null,null,null,null,0]
[null,15,null,null,null,null,null,0]
[null,16,null,null,null,null,null,0]
[null,17,null,null,null,null,null,0]
[null,18,null,null,null,null,null,0]
[null,19,null,null,null,null,null,0]
[null,20,null,null,null,null,null,0]
[null,21,null,null,null,null,null,0]
[null,22,null,null,null,null,null,0]
[null,23,null,null,null,null,null,0]
[null,24,null,null,null,null,null,0]
[null,25,null,null,null,null,null,0]
[null,26,null,null,null,null,null,0]
[null,27,null,null,null,null,null,0]
[null,28,null,null,null,null,null,0]
[null,29,null,null,null,null,null,0]
[null,30,null,null,null,null,null,0]
[null,"الاجمالي",null,null,{"$f":"SUM(E15:E44)","v":5650},null,{"$f":"SUM(G15:G44)","v":3500}]
[]
[null,"بايو كيميكال ايجيبت للمطهرات و اضافات الاعلاف .",null,null,"Bio chemical  Egypt for antiseptic &  feed additives ."]
[null,"المصنع : دست الاشراف  - كوم حماده – البحيرة  .",null,null,"address : dest el ashraf – kom Hamada – al behara"]
[null,"موبايل : 01009958821 – 01099548642    ",null,null,"                            mob : +2001009958821 - +2001099548642                                            "]

{"sheet":"مصطفي الفخراني ","index":66,"n_rows":49,"n_cols":9,"rows_kept":49,"cut":false,"hidden":false,"merged":[[48,1,48,2],[48,4,48,8],[2,1,3,3],[5,6,5,7],[6,6,6,7],[8,6,8,7],[9,6,9,7],[46,1,46,2],[46,4,46,8],[2,4,3,8],[10,6,10,7],[44,1,44,3],[47,1,47,2],[47,4,47,8]]}
[]
[]
[null,"شركة بايوكيميكال ايجيبت",null,null,"Bio chemical egypt"]
[]
[]
[null,null,null,null,null,null,"كود العميل"]
[null,null,null,"حساب عميل",null,null,55]
[]
[null,"اسم العميل",{"$f":"IFERROR(VLOOKUP(G7,'[1]البيانات '!$A$3:$B$102,2,0),\"\")","v":"مصطفي الفخراني"},null,"تليفون",null,{"$f":"IFERROR(VLOOKUP(G7,'البيانات '!A3:C78,3,0),\"\")","v":0}]
[null,"اسم المنشاة",null,null,"مدير مسئول"]
[null,"العنوان",{"$f":"IFERROR(VLOOKUP(G7,'البيانات '!A3:D78,4,0),\"\")","v":"مركز بدر"},null,"مندوب مبيعات ",null,{"$f":"IFERROR(VLOOKUP(G7,'[1]البيانات '!$A$3:$E$102,5,0),\"\")","v":"محمد عبدالشفيع"}]
[]
[]
[null,"م","التاريخ","رقم الفاتورة","قيمة الفاتورة","رصيد سابق","المدفوع","رصيد متبقي","ملاحظات"]
[null,1,"2018-06-04",5443,1500,2695,500,{"$f":"E15+F15-G15","v":3695}]
[null,2,"2018-07-09",1040,0,3695,500,{"$f":"E16+F16-G16","v":3195}]
[null,3,"2018-07-30",18,0,3195,500,2695]
[null,4,"2018-08-13",38,0,2695,500,2195]
[null,5,"2018-09-15",88,0,2195,500,1695]
[null,6,"2018-09-26",45,6250,1695,0,7945]
[null,7,null,null,null,null,null,0]
[null,8,null,null,null,null,null,0]
[null,9,null,null,null,null,null,0]
[null,10,null,null,null,null,null,0]
[null,11,null,null,null,null,null,0]
[null,12,null,null,null,null,null,0]
[null,13,null,null,null,null,null,0]
[null,14,null,null,null,null,null,0]
[null,15,null,null,null,null,null,0]
[null,16,null,null,null,null,null,0]
[null,17,null,null,null,null,null,0]
[null,18,null,null,null,null,null,0]
[null,19,null,null,null,null,null,0]
[null,20,null,null,null,null,null,0]
[null,21,null,null,null,null,null,0]
[null,22,null,null,null,null,null,0]
[null,23,null,null,null,null,null,0]
[null,24,null,null,null,null,null,0]
[null,25,null,null,null,null,null,0]
[null,26,null,null,null,null,null,0]
[null,27,null,null,null,null,null,0]
[null,28,null,null,null,null,null,0]
[null,29,null,null,null,null,null,0]
[null,30,null,null,null,null,null,0]
[null,"الاجمالي",null,null,{"$f":"SUM(E15:E44)","v":7750},null,{"$f":"SUM(G15:G44)","v":2500}]
[]
[null,"بايو كيميكال ايجيبت للمطهرات و اضافات الاعلاف .",null,null,"Bio chemical  Egypt for antiseptic &  feed additives ."]
[null,"المصنع : دست الاشراف  - كوم حماده – البحيرة  .",null,null,"address : dest el ashraf – kom Hamada – al behara"]
[null,"موبايل : 01009958821 – 01099548642    ",null,null,"                            mob : +2001009958821 - +2001099548642                                            "]

{"sheet":"د.وليد شعت","index":67,"n_rows":49,"n_cols":9,"rows_kept":49,"cut":false,"hidden":false,"merged":[[48,1,48,2],[48,4,48,8],[2,1,3,3],[5,6,5,7],[6,6,6,7],[8,6,8,7],[9,6,9,7],[46,1,46,2],[46,4,46,8],[2,4,3,8],[10,6,10,7],[44,1,44,3],[47,1,47,2],[47,4,47,8]]}
[]
[]
[null,"شركة بايوكيميكال ايجيبت",null,null,"Bio chemical egypt"]
[]
[]
[null,null,null,null,null,null,"كود العميل"]
[null,null,null,"حساب عميل",null,null,56]
[]
[null,"اسم العميل",{"$f":"IFERROR(VLOOKUP(G7,'[1]البيانات '!$A$3:$B$102,2,0),\"\")","v":"د.وليد شعت"},null,"تليفون",null,{"$f":"IFERROR(VLOOKUP(G7,'البيانات '!A3:C78,3,0),\"\")","v":0}]
[null,"اسم المنشاة",null,null,"مدير مسئول"]
[null,"العنوان",{"$f":"IFERROR(VLOOKUP(G7,'البيانات '!A3:D78,4,0),\"\")","v":"كوم حمادة"},null,"مندوب مبيعات ",null,{"$f":"IFERROR(VLOOKUP(G7,'[1]البيانات '!$A$3:$E$102,5,0),\"\")","v":"محمد عبدالشفيع"}]
[]
[]
[null,"م","التاريخ","رقم الفاتورة","قيمة الفاتورة","رصيد سابق","المدفوع","رصيد متبقي","ملاحظات"]
[null,1,"2018-06-05",5451,1400,0,0,{"$f":"E15+F15-G15","v":1400}]
[null,2,"2018-07-03",1026,0,1400,1000,{"$f":"E16+F16-G16","v":400}]
[null,3,"2018-10-13",1364,2300,400,null,2700]
[null,4,"2018-10-13","نقدي",0,2700,2300,400]
[null,5,null,null,null,null,null,0]
[null,6,null,null,null,null,null,0]
[null,7,null,null,null,null,null,0]
[null,8,null,null,null,null,null,0]
[null,9,null,null,null,null,null,0]
[null,10,null,null,null,null,null,0]
[null,11,null,null,null,null,null,0]
[null,12,null,null,null,null,null,0]
[null,13,null,null,null,null,null,0]
[null,14,null,null,null,null,null,0]
[null,15,null,null,null,null,null,0]
[null,16,null,null,null,null,null,0]
[null,17,null,null,null,null,null,0]
[null,18,null,null,null,null,null,0]
[null,19,null,null,null,null,null,0]
[null,20,null,null,null,null,null,0]
[null,21,null,null,null,null,null,0]
[null,22,null,null,null,null,null,0]
[null,23,null,null,null,null,null,0]
[null,24,null,null,null,null,null,0]
[null,25,null,null,null,null,null,0]
[null,26,null,null,null,null,null,0]
[null,27,null,null,null,null,null,0]
[null,28,null,null,null,null,null,0]
[null,29,null,null,null,null,null,0]
[null,30,null,null,null,null,null,0]
[null,"الاجمالي",null,null,{"$f":"SUM(E15:E44)","v":3700},null,{"$f":"SUM(G15:G44)","v":3300}]
[]
[null,"بايو كيميكال ايجيبت للمطهرات و اضافات الاعلاف .",null,null,"Bio chemical  Egypt for antiseptic &  feed additives ."]
[null,"المصنع : دست الاشراف  - كوم حماده – البحيرة  .",null,null,"address : dest el ashraf – kom Hamada – al behara"]
[null,"موبايل : 01009958821 – 01099548642    ",null,null,"                            mob : +2001009958821 - +2001099548642                                            "]

{"sheet":"د.محمد سعيد دياب","index":68,"n_rows":49,"n_cols":9,"rows_kept":49,"cut":false,"hidden":false,"merged":[[48,1,48,2],[48,4,48,8],[2,1,3,3],[5,6,5,7],[6,6,6,7],[8,6,8,7],[9,6,9,7],[46,1,46,2],[46,4,46,8],[2,4,3,8],[10,6,10,7],[44,1,44,3],[47,1,47,2],[47,4,47,8],[14,3,14,6]]}
[]
[]
[null,"شركة بايوكيميكال ايجيبت",null,null,"Bio chemical egypt"]
[]
[]
[null,null,null,null,null,null,"كود العميل"]
[null,null,null,"حساب عميل",null,null,57]
[]
[null,"اسم العميل",{"$f":"IFERROR(VLOOKUP(G7,'[1]البيانات '!$A$3:$B$102,2,0),\"\")","v":"د.محمد سعيد دياب"},null,"تليفون",null,{"$f":"IFERROR(VLOOKUP(G7,'البيانات '!A3:C78,3,0),\"\")","v":0}]
[null,"اسم المنشاة",null,null,"مدير مسئول"]
[null,"العنوان",{"$f":"IFERROR(VLOOKUP(G7,'البيانات '!A3:D78,4,0),\"\")","v":"كوبري عبد المجيد صالح"},null,"مندوب مبيعات ",null,{"$f":"IFERROR(VLOOKUP(G7,'[1]البيانات '!$A$3:$E$102,5,0),\"\")","v":"محمد عبدالشفيع"}]
[]
[]
[null,"م","التاريخ","رقم الفاتورة","قيمة الفاتورة","رصيد سابق","المدفوع","رصيد متبقي","ملاحظات"]
[null,1,null,"رصيد اخر",null,null,null,1975,"فنيك925-فورمالين1050"]
[null,2,"2018-06-13",1002,0,1975,1500,{"$f":"E16+F16-G16","v":475}]
[null,3,"2018-07-18",5489,2615,405,2000,{"$f":"E17+F17-G17","v":1020},"مع السائق وخصم 70ج"]
[null,4,"2018-07-25",11,0,1020,1000,20]
[null,5,"2018-07-31",54,220,20,0,240]
[null,6,"2018-08-08",9,4475,240,0,4715]
[null,7,"2018-08-14",39,0,4715,2000,2715]
[null,8,"2018-08-28",56,0,2715,1000,1715]
[null,9,"2018-09-12",80,0,1715,1000,715]
[null,10,"2018-09-26",46,2400,715,2000,1115,"مع السائق "]
[null,11,null,null,null,null,null,0]
[null,12,null,null,null,null,null,0]
[null,13,null,null,null,null,null,0]
[null,14,null,null,null,null,null,0]
[null,15,null,null,null,null,null,0]
[null,16,null,null,null,null,null,0]
[null,17,null,null,null,null,null,0]
[null,18,null,null,null,null,null,0]
[null,19,null,null,null,null,null,0]
[null,20,null,null,null,null,null,0]
[null,21,null,null,null,null,null,0]
[null,22,null,null,null,null,null,0]
[null,23,null,null,null,null,null,0]
[null,24,null,null,null,null,null,0]
[null,25,null,null,null,null,null,0]
[null,26,null,null,null,null,null,0]
[null,27,null,null,null,null,null,0]
[null,28,null,null,null,null,null,0]
[null,29,null,null,null,null,null,0]
[null,30,null,null,null,null,null,0]
[null,"الاجمالي",null,null,{"$f":"SUM(E15:E44)","v":9710},null,{"$f":"SUM(G15:G44)","v":10500}]
[]
[null,"بايو كيميكال ايجيبت للمطهرات و اضافات الاعلاف .",null,null,"Bio chemical  Egypt for antiseptic &  feed additives ."]
[null,"المصنع : دست الاشراف  - كوم حماده – البحيرة  .",null,null,"address : dest el ashraf – kom Hamada – al behara"]
[null,"موبايل : 01009958821 – 01099548642    ",null,null,"                            mob : +2001009958821 - +2001099548642                                            "]

{"sheet":"ناصر صلاح","index":69,"n_rows":49,"n_cols":9,"rows_kept":49,"cut":false,"hidden":false,"merged":[[48,1,48,2],[48,4,48,8],[2,1,3,3],[5,6,5,7],[6,6,6,7],[8,6,8,7],[9,6,9,7],[46,1,46,2],[46,4,46,8],[2,4,3,8],[10,6,10,7],[44,1,44,3],[47,1,47,2],[47,4,47,8]]}
[]
[]
[null,"شركة بايوكيميكال ايجيبت",null,null,"Bio chemical egypt"]
[]
[]
[null,null,null,null,null,null,"كود العميل"]
[null,null,null,"حساب عميل",null,null,62]
[]
[null,"اسم العميل",{"$f":"IFERROR(VLOOKUP(G7,'[1]البيانات '!$A$3:$B$102,2,0),\"\")","v":"ناصر صلاح"},null,"تليفون",null,{"$f":"IFERROR(VLOOKUP(G7,'البيانات '!A3:C78,3,0),\"\")","v":0}]
[null,"اسم المنشاة",null,null,"مدير مسئول"]
[null,"العنوان",{"$f":"IFERROR(VLOOKUP(G7,'البيانات '!A3:D78,4,0),\"\")","v":"ابو حمص"},null,"مندوب مبيعات ",null,{"$f":"IFERROR(VLOOKUP(G7,'[1]البيانات '!$A$3:$E$102,5,0),\"\")","v":"محمد عبدالشفيع"}]
[]
[]
[null,"م","التاريخ","رقم الفاتورة","قيمة الفاتورة","رصيد سابق","المدفوع","رصيد متبقي","ملاحظات"]
[null,1,"2018-08-18",16,3545,0,0,{"$f":"E15+F15-G15","v":3545}]
[null,2,"2018-09-03",27,5000,3545,3000,{"$f":"E16+F16-G16","v":5545}]
[null,3,"2018-09-09",76,0,5545,1000,{"$f":"E17+F17-G17","v":4545}]
[null,4,"2018-09-18",38,5000,4545,0,{"$f":"E18+F18-G18","v":9545}]
[null,5,"2018-09-19",96,0,9545,2000,{"$f":"E19+F19-G19","v":7545}]
[null,6,"2018-10-13",1357,6650,7545,0,{"$f":"E20+F20-G20","v":14195}]
[null,7]
[null,8,null,null,null,null,null,0]
[null,9,null,null,null,null,null,0]
[null,10,null,null,null,null,null,0]
[null,11,null,null,null,null,null,0]
[null,12,null,null,null,null,null,0]
[null,13,null,null,null,null,null,0]
[null,14,null,null,null,null,null,0]
[null,15,null,null,null,null,null,0]
[null,16,null,null,null,null,null,0]
[null,17,null,null,null,null,null,0]
[null,18,null,null,null,null,null,0]
[null,19,null,null,null,null,null,0]
[null,20,null,null,null,null,null,0]
[null,21,null,null,null,null,null,0]
[null,22,null,null,null,null,null,0]
[null,23,null,null,null,null,null,0]
[null,24,null,null,null,null,null,0]
[null,25,null,null,null,null,null,0]
[null,26,null,null,null,null,null,0]
[null,27,null,null,null,null,null,0]
[null,28,null,null,null,null,null,0]
[null,29,null,null,null,null,null,0]
[null,30,null,null,null,null,null,0]
[null,"الاجمالي",null,null,{"$f":"SUM(E15:E44)","v":20195},null,{"$f":"SUM(G15:G44)","v":6000}]
[]
[null,"بايو كيميكال ايجيبت للمطهرات و اضافات الاعلاف .",null,null,"Bio chemical  Egypt for antiseptic &  feed additives ."]
[null,"المصنع : دست الاشراف  - كوم حماده – البحيرة  .",null,null,"address : dest el ashraf – kom Hamada – al behara"]
[null,"موبايل : 01009958821 – 01099548642    ",null,null,"                            mob : +2001009958821 - +2001099548642                                            "]

{"sheet":"باسم ضيا","index":70,"n_rows":49,"n_cols":9,"rows_kept":49,"cut":false,"hidden":false,"merged":[[48,1,48,2],[48,4,48,8],[2,1,3,3],[5,6,5,7],[6,6,6,7],[8,6,8,7],[9,6,9,7],[46,1,46,2],[46,4,46,8],[2,4,3,8],[10,6,10,7],[44,1,44,3],[47,1,47,2],[47,4,47,8]]}
[]
[]
[null,"شركة بايوكيميكال ايجيبت",null,null,"Bio chemical egypt"]
[]
[]
[null,null,null,null,null,null,"كود العميل"]
[null,null,null,"حساب عميل",null,null,66]
[]
[null,"اسم العميل",{"$f":"IFERROR(VLOOKUP(G7,'[1]البيانات '!$A$3:$B$102,2,0),\"\")","v":"باسم ضيا"},null,"تليفون",null,{"$f":"IFERROR(VLOOKUP(G7,'البيانات '!A3:C78,3,0),\"\")","v":0}]
[null,"اسم المنشاة",null,null,"مدير مسئول"]
[null,"العنوان",{"$f":"IFERROR(VLOOKUP(G7,'البيانات '!A3:D78,4,0),\"\")","v":"قرية 19 لحوم - النوبارية - مجزر"},null,"مندوب مبيعات ",null,{"$f":"IFERROR(VLOOKUP(G7,'[1]البيانات '!$A$3:$E$102,5,0),\"\")","v":"محمد عبدالشفيع"}]
[]
[]
[null,"م","التاريخ","رقم الفاتورة","قيمة الفاتورة","رصيد سابق","المدفوع","رصيد متبقي","ملاحظات"]
[null,1,"2018-08-28",null,1320,0,0,{"$f":"E15+F15-G15","v":1320}]
[null,2,"2018-09-18",null,375,1320,400,{"$f":"E16+F16-G16","v":1295}]
[null,3,null,null,null,null,null,0]
[null,4,null,null,null,null,null,0]
[null,5,null,null,null,null,null,0]
[null,6,null,null,null,null,null,0]
[null,7,null,null,null,null,null,0]
[null,8,null,null,null,null,null,0]
[null,9,null,null,null,null,null,0]
[null,10,null,null,null,null,null,0]
[null,11,null,null,null,null,null,0]
[null,12,null,null,null,null,null,0]
[null,13,null,null,null,null,null,0]
[null,14,null,null,null,null,null,0]
[null,15,null,null,null,null,null,0]
[null,16,null,null,null,null,null,0]
[null,17,null,null,null,null,null,0]
[null,18,null,null,null,null,null,0]
[null,19,null,null,null,null,null,0]
[null,20,null,null,null,null,null,0]
[null,21,null,null,null,null,null,0]
[null,22,null,null,null,null,null,0]
[null,23,null,null,null,null,null,0]
[null,24,null,null,null,null,null,0]
[null,25,null,null,null,null,null,0]
[null,26,null,null,null,null,null,0]
[null,27,null,null,null,null,null,0]
[null,28,null,null,null,null,null,0]
[null,29,null,null,null,null,null,0]
[null,30,null,null,null,null,null,0]
[null,"الاجمالي",null,null,{"$f":"SUM(E15:E44)","v":1695},null,{"$f":"SUM(G15:G44)","v":400}]
[]
[null,"بايو كيميكال ايجيبت للمطهرات و اضافات الاعلاف .",null,null,"Bio chemical  Egypt for antiseptic &  feed additives ."]
[null,"المصنع : دست الاشراف  - كوم حماده – البحيرة  .",null,null,"address : dest el ashraf – kom Hamada – al behara"]
[null,"موبايل : 01009958821 – 01099548642    ",null,null,"                            mob : +2001009958821 - +2001099548642                                            "]

{"sheet":"علي القياد","index":71,"n_rows":49,"n_cols":9,"rows_kept":49,"cut":false,"hidden":false,"merged":[[48,1,48,2],[48,4,48,8],[2,1,3,3],[5,6,5,7],[6,6,6,7],[8,6,8,7],[9,6,9,7],[46,1,46,2],[46,4,46,8],[2,4,3,8],[10,6,10,7],[44,1,44,3],[47,1,47,2],[47,4,47,8]]}
[]
[]
[null,"شركة بايوكيميكال ايجيبت",null,null,"Bio chemical egypt"]
[]
[]
[null,null,null,null,null,null,"كود العميل"]
[null,null,null,"حساب عميل",null,null,65]
[]
[null,"اسم العميل",{"$f":"IFERROR(VLOOKUP(G7,'[1]البيانات '!$A$3:$B$102,2,0),\"\")","v":"م.علي القياد"},null,"تليفون",null,{"$f":"IFERROR(VLOOKUP(G7,'البيانات '!A3:C78,3,0),\"\")","v":0}]
[null,"اسم المنشاة",null,null,"مدير مسئول"]
[null,"العنوان",{"$f":"IFERROR(VLOOKUP(G7,'البيانات '!A3:D78,4,0),\"\")","v":"ابو المطامير"},null,"مندوب مبيعات ",null,{"$f":"IFERROR(VLOOKUP(G7,'[1]البيانات '!$A$3:$E$102,5,0),\"\")","v":"محمد عبدالشفيع"}]
[]
[]
[null,"م","التاريخ","رقم الفاتورة","قيمة الفاتورة","رصيد سابق","المدفوع","رصيد متبقي","ملاحظات"]
[null,1,"2018-06-27",null,275,0,275,{"$f":"E15+F15-G15","v":0},"خالص"]
[null,2,null,null,null,null,null,{"$f":"E16+F16-G16","v":0}]
[null,3,null,null,null,null,null,0]
[null,4,null,null,null,null,null,0]
[null,5,null,null,null,null,null,0]
[null,6,null,null,null,null,null,0]
[null,7,null,null,null,null,null,0]
[null,8,null,null,null,null,null,0]
[null,9,null,null,null,null,null,0]
[null,10,null,null,null,null,null,0]
[null,11,null,null,null,null,null,0]
[null,12,null,null,null,null,null,0]
[null,13,null,null,null,null,null,0]
[null,14,null,null,null,null,null,0]
[null,15,null,null,null,null,null,0]
[null,16,null,null,null,null,null,0]
[null,17,null,null,null,null,null,0]
[null,18,null,null,null,null,null,0]
[null,19,null,null,null,null,null,0]
[null,20,null,null,null,null,null,0]
[null,21,null,null,null,null,null,0]
[null,22,null,null,null,null,null,0]
[null,23,null,null,null,null,null,0]
[null,24,null,null,null,null,null,0]
[null,25,null,null,null,null,null,0]
[null,26,null,null,null,null,null,0]
[null,27,null,null,null,null,null,0]
[null,28,null,null,null,null,null,0]
[null,29,null,null,null,null,null,0]
[null,30,null,null,null,null,null,0]
[null,"الاجمالي",null,null,{"$f":"SUM(E15:E44)","v":275},null,{"$f":"SUM(G15:G44)","v":275}]
[]
[null,"بايو كيميكال ايجيبت للمطهرات و اضافات الاعلاف .",null,null,"Bio chemical  Egypt for antiseptic &  feed additives ."]
[null,"المصنع : دست الاشراف  - كوم حماده – البحيرة  .",null,null,"address : dest el ashraf – kom Hamada – al behara"]
[null,"موبايل : 01009958821 – 01099548642    ",null,null,"                            mob : +2001009958821 - +2001099548642                                            "]

{"sheet":"رمضان زينه","index":72,"n_rows":49,"n_cols":9,"rows_kept":49,"cut":false,"hidden":false,"merged":[[48,1,48,2],[48,4,48,8],[2,1,3,3],[5,6,5,7],[6,6,6,7],[8,6,8,7],[9,6,9,7],[46,1,46,2],[46,4,46,8],[2,4,3,8],[10,6,10,7],[44,1,44,3],[47,1,47,2],[47,4,47,8]]}
[]
[]
[null,"شركة بايوكيميكال ايجيبت",null,null,"Bio chemical egypt"]
[]
[]
[null,null,null,null,null,null,"كود العميل"]
[null,null,null,"حساب عميل",null,null,58]
[]
[null,"اسم العميل",{"$f":"IFERROR(VLOOKUP(G7,'[1]البيانات '!$A$3:$B$102,2,0),\"\")","v":"رمضان زينه"},null,"تليفون",null,{"$f":"IFERROR(VLOOKUP(G7,'البيانات '!A3:C78,3,0),\"\")","v":0}]
[null,"اسم المنشاة",null,null,"مدير مسئول"]
[null,"العنوان",{"$f":"IFERROR(VLOOKUP(G7,'البيانات '!A3:D78,4,0),\"\")","v":"تلبقه"},null,"مندوب مبيعات ",null,{"$f":"IFERROR(VLOOKUP(G7,'[1]البيانات '!$A$3:$E$102,5,0),\"\")","v":"محمد عبدالشفيع"}]
[]
[]
[null,"م","التاريخ","رقم الفاتورة","قيمة الفاتورة","رصيد سابق","المدفوع","رصيد متبقي","ملاحظات"]
[null,1,"2018-09-01",26,5875,0,2000,{"$f":"E15+F15-G15","v":3875},"مع السائق"]
[null,2,"2018-09-10",32,4575,3875,2500,{"$f":"E16+F16-G16","v":5950}]
[null,3,"2018-09-20",99,0,5950,1500,4450]
[null,4,null,null,null,null,null,0]
[null,5,null,null,null,null,null,0]
[null,6,null,null,null,null,null,0]
[null,7,null,null,null,null,null,0]
[null,8,null,null,null,null,null,0]
[null,9,null,null,null,null,null,0]
[null,10,null,null,null,null,null,0]
[null,11,null,null,null,null,null,0]
[null,12,null,null,null,null,null,0]
[null,13,null,null,null,null,null,0]
[null,14,null,null,null,null,null,0]
[null,15,null,null,null,null,null,0]
[null,16,null,null,null,null,null,0]
[null,17,null,null,null,null,null,0]
[null,18,null,null,null,null,null,0]
[null,19,null,null,null,null,null,0]
[null,20,null,null,null,null,null,0]
[null,21,null,null,null,null,null,0]
[null,22,null,null,null,null,null,0]
[null,23,null,null,null,null,null,0]
[null,24,null,null,null,null,null,0]
[null,25,null,null,null,null,null,0]
[null,26,null,null,null,null,null,0]
[null,27,null,null,null,null,null,0]
[null,28,null,null,null,null,null,0]
[null,29,null,null,null,null,null,0]
[null,30,null,null,null,null,null,0]
[null,"الاجمالي",null,null,{"$f":"SUM(E15:E44)","v":10450},null,{"$f":"SUM(G15:G44)","v":6000}]
[]
[null,"بايو كيميكال ايجيبت للمطهرات و اضافات الاعلاف .",null,null,"Bio chemical  Egypt for antiseptic &  feed additives ."]
[null,"المصنع : دست الاشراف  - كوم حماده – البحيرة  .",null,null,"address : dest el ashraf – kom Hamada – al behara"]
[null,"موبايل : 01009958821 – 01099548642    ",null,null,"                            mob : +2001009958821 - +2001099548642                                            "]

{"sheet":"عبد الرحمن كشك","index":73,"n_rows":49,"n_cols":9,"rows_kept":49,"cut":false,"hidden":false,"merged":[[48,1,48,2],[48,4,48,8],[2,1,3,3],[5,6,5,7],[6,6,6,7],[8,6,8,7],[9,6,9,7],[46,1,46,2],[46,4,46,8],[2,4,3,8],[10,6,10,7],[44,1,44,3],[47,1,47,2],[47,4,47,8]]}
[]
[]
[null,"شركة بايوكيميكال ايجيبت",null,null,"Bio chemical egypt"]
[]
[]
[null,null,null,null,null,null,"كود العميل"]
[null,null,null,"حساب عميل",null,null,64]
[]
[null,"اسم العميل",{"$f":"IFERROR(VLOOKUP(G7,'[1]البيانات '!$A$3:$B$102,2,0),\"\")","v":"عبد الرحمن كشك"},null,"تليفون",null,{"$f":"IFERROR(VLOOKUP(G7,'البيانات '!A3:C78,3,0),\"\")","v":0}]
[null,"اسم المنشاة",null,null,"مدير مسئول"]
[null,"العنوان",{"$f":"IFERROR(VLOOKUP(G7,'البيانات '!A3:D78,4,0),\"\")","v":"النجاح"},null,"مندوب مبيعات ",null,{"$f":"IFERROR(VLOOKUP(G7,'[1]البيانات '!$A$3:$E$102,5,0),\"\")","v":"محمد عبدالشفيع"}]
[]
[]
[null,"م","التاريخ","رقم الفاتورة","قيمة الفاتورة","رصيد سابق","المدفوع","رصيد متبقي","ملاحظات"]
[null,1,"2018-08-06",null,3350,0,0,{"$f":"E15+F15-G15","v":3350}]
[null,2,"2018-08-27","نقدي",0,3350,500,{"$f":"E16+F16-G16","v":2850}]
[null,3,"2018-09-03","نقدي",0,2850,500,2350]
[null,4,null,"فاتورة",910,2350,0,3260,"ك يود 305"]
[null,5,"2018-09-10","نقدي",0,3260,700,2560]
[null,6,"2018-09-17","نقدي",0,2560,500,2060]
[null,7,null,null,null,null,null,0]
[null,8,null,null,null,null,null,0]
[null,9,null,null,null,null,null,0]
[null,10,null,null,null,null,null,0]
[null,11,null,null,null,null,null,0]
[null,12,null,null,null,null,null,0]
[null,13,null,null,null,null,null,0]
[null,14,null,null,null,null,null,0]
[null,15,null,null,null,null,null,0]
[null,16,null,null,null,null,null,0]
[null,17,null,null,null,null,null,0]
[null,18,null,null,null,null,null,0]
[null,19,null,null,null,null,null,0]
[null,20,null,null,null,null,null,0]
[null,21,null,null,null,null,null,0]
[null,22,null,null,null,null,null,0]
[null,23,null,null,null,null,null,0]
[null,24,null,null,null,null,null,0]
[null,25,null,null,null,null,null,0]
[null,26,null,null,null,null,null,0]
[null,27,null,null,null,null,null,0]
[null,28,null,null,null,null,null,0]
[null,29,null,null,null,null,null,0]
[null,30,null,null,null,null,null,0]
[null,"الاجمالي",null,null,{"$f":"SUM(E15:E44)","v":4260},null,{"$f":"SUM(G15:G44)","v":2200}]
[]
[null,"بايو كيميكال ايجيبت للمطهرات و اضافات الاعلاف .",null,null,"Bio chemical  Egypt for antiseptic &  feed additives ."]
[null,"المصنع : دست الاشراف  - كوم حماده – البحيرة  .",null,null,"address : dest el ashraf – kom Hamada – al behara"]
[null,"موبايل : 01009958821 – 01099548642    ",null,null,"                            mob : +2001009958821 - +2001099548642                                            "]

{"sheet":"اشرف عبدالله","index":74,"n_rows":49,"n_cols":9,"rows_kept":49,"cut":false,"hidden":false,"merged":[[48,1,48,2],[48,4,48,8],[2,1,3,3],[5,6,5,7],[6,6,6,7],[8,6,8,7],[9,6,9,7],[46,1,46,2],[46,4,46,8],[2,4,3,8],[10,6,10,7],[44,1,44,3],[47,1,47,2],[47,4,47,8]]}
[]
[]
[null,"شركة بايوكيميكال ايجيبت",null,null,"Bio chemical egypt"]
[]
[]
[null,null,null,null,null,null,"كود العميل"]
[null,null,null,"حساب عميل",null,null,59]
[]
[null,"اسم العميل",{"$f":"IFERROR(VLOOKUP(G7,'[1]البيانات '!$A$3:$B$102,2,0),\"\")","v":"م.اشرف عبدالله"},null,"تليفون",null,{"$f":"IFERROR(VLOOKUP(G7,'البيانات '!A3:C78,3,0),\"\")","v":0}]
[null,"اسم المنشاة",null,null,"مدير مسئول"]
[null,"العنوان",{"$f":"IFERROR(VLOOKUP(G7,'البيانات '!A3:D78,4,0),\"\")","v":"النهضة - العامرية"},null,"مندوب مبيعات ",null,{"$f":"IFERROR(VLOOKUP(G7,'[1]البيانات '!$A$3:$E$102,5,0),\"\")","v":"محمد عبدالشفيع"}]
[]
[]
[null,"م","التاريخ","رقم الفاتورة","قيمة الفاتورة","رصيد سابق","المدفوع","رصيد متبقي","ملاحظات"]
[null,1,"2018-07-01",5479,3570,null,0,{"$f":"E15+F15-G15","v":3570}]
[null,2,"2018-07-05",1031,0,3570,1500,{"$f":"E16+F16-G16","v":2070}]
[null,3,"2018-07-08",5483,4600,2070,1000,5670]
[null,4,"2018-07-12",1045,0,5670,1000,4670]
[null,5,"2018-07-19",7,0,4670,1500,3170]
[null,6,"2018-08-02",null,1575,3170,0,4745,"3بايوسيف*525"]
[null,7,"2018-08-16",44,0,4745,500,4245]
[null,8,null,null,null,null,null,0]
[null,9,null,null,null,null,null,0]
[null,10,null,null,null,null,null,0]
[null,11,null,null,null,null,null,0]
[null,12,null,null,null,null,null,0]
[null,13,null,null,null,null,null,0]
[null,14,null,null,null,null,null,0]
[null,15,null,null,null,null,null,0]
[null,16,null,null,null,null,null,0]
[null,17,null,null,null,null,null,0]
[null,18,null,null,null,null,null,0]
[null,19,null,null,null,null,null,0]
[null,20,null,null,null,null,null,0]
[null,21,null,null,null,null,null,0]
[null,22,null,null,null,null,null,0]
[null,23,null,null,null,null,null,0]
[null,24,null,null,null,null,null,0]
[null,25,null,null,null,null,null,0]
[null,26,null,null,null,null,null,0]
[null,27,null,null,null,null,null,0]
[null,28,null,null,null,null,null,0]
[null,29,null,null,null,null,null,0]
[null,30,null,null,null,null,null,0]
[null,"الاجمالي",null,null,{"$f":"SUM(E15:E44)","v":9745},null,{"$f":"SUM(G15:G44)","v":5500}]
[]
[null,"بايو كيميكال ايجيبت للمطهرات و اضافات الاعلاف .",null,null,"Bio chemical  Egypt for antiseptic &  feed additives ."]
[null,"المصنع : دست الاشراف  - كوم حماده – البحيرة  .",null,null,"address : dest el ashraf – kom Hamada – al behara"]
[null,"موبايل : 01009958821 – 01099548642    ",null,null,"                            mob : +2001009958821 - +2001099548642                                            "]

{"sheet":"د.محمود شكر","index":75,"n_rows":49,"n_cols":9,"rows_kept":49,"cut":false,"hidden":false,"merged":[[48,1,48,2],[48,4,48,8],[2,1,3,3],[5,6,5,7],[6,6,6,7],[8,6,8,7],[9,6,9,7],[46,1,46,2],[46,4,46,8],[2,4,3,8],[10,6,10,7],[44,1,44,3],[47,1,47,2],[47,4,47,8]]}
[]
[]
[null,"شركة بايوكيميكال ايجيبت",null,null,"Bio chemical egypt"]
[]
[]
[null,null,null,null,null,null,"كود العميل"]
[null,null,null,"حساب عميل",null,null,63]
[]
[null,"اسم العميل",{"$f":"IFERROR(VLOOKUP(G7,'[1]البيانات '!$A$3:$B$102,2,0),\"\")","v":"د.محمود شكر"},null,"تليفون",null,{"$f":"IFERROR(VLOOKUP(G7,'البيانات '!A3:C78,3,0),\"\")","v":0}]
[null,"اسم المنشاة",null,null,"مدير مسئول"]
[null,"العنوان",{"$f":"IFERROR(VLOOKUP(G7,'البيانات '!A3:D78,4,0),\"\")","v":"النجاح"},null,"مندوب مبيعات ",null,{"$f":"IFERROR(VLOOKUP(G7,'[1]البيانات '!$A$3:$E$102,5,0),\"\")","v":"محمد عبدالشفيع"}]
[]
[]
[null,"م","التاريخ","رقم الفاتورة","قيمة الفاتورة","رصيد سابق","المدفوع","رصيد متبقي","ملاحظات"]
[null,1,"2018-09-03",null,480,0,0,{"$f":"E15+F15-G15","v":480}]
[null,2,null,null,null,null,null,{"$f":"E16+F16-G16","v":0}]
[null,3,null,null,null,null,null,0]
[null,4,null,null,null,null,null,0]
[null,5,null,null,null,null,null,0]
[null,6,null,null,null,null,null,0]
[null,7,null,null,null,null,null,0]
[null,8,null,null,null,null,null,0]
[null,9,null,null,null,null,null,0]
[null,10,null,null,null,null,null,0]
[null,11,null,null,null,null,null,0]
[null,12,null,null,null,null,null,0]
[null,13,null,null,null,null,null,0]
[null,14,null,null,null,null,null,0]
[null,15,null,null,null,null,null,0]
[null,16,null,null,null,null,null,0]
[null,17,null,null,null,null,null,0]
[null,18,null,null,null,null,null,0]
[null,19,null,null,null,null,null,0]
[null,20,null,null,null,null,null,0]
[null,21,null,null,null,null,null,0]
[null,22,null,null,null,null,null,0]
[null,23,null,null,null,null,null,0]
[null,24,null,null,null,null,null,0]
[null,25,null,null,null,null,null,0]
[null,26,null,null,null,null,null,0]
[null,27,null,null,null,null,null,0]
[null,28,null,null,null,null,null,0]
[null,29,null,null,null,null,null,0]
[null,30,null,null,null,null,null,0]
[null,"الاجمالي",null,null,{"$f":"SUM(E15:E44)","v":480},null,{"$f":"SUM(G15:G44)","v":0}]
[]
[null,"بايو كيميكال ايجيبت للمطهرات و اضافات الاعلاف .",null,null,"Bio chemical  Egypt for antiseptic &  feed additives ."]
[null,"المصنع : دست الاشراف  - كوم حماده – البحيرة  .",null,null,"address : dest el ashraf – kom Hamada – al behara"]
[null,"موبايل : 01009958821 – 01099548642    ",null,null,"                            mob : +2001009958821 - +2001099548642                                            "]

{"sheet":"علي الشريف","index":76,"n_rows":49,"n_cols":9,"rows_kept":49,"cut":false,"hidden":false,"merged":[[48,1,48,2],[48,4,48,8],[2,1,3,3],[5,6,5,7],[6,6,6,7],[8,6,8,7],[9,6,9,7],[46,1,46,2],[46,4,46,8],[2,4,3,8],[10,6,10,7],[44,1,44,3],[47,1,47,2],[47,4,47,8],[14,3,14,6]]}
[]
[]
[null,"شركة بايوكيميكال ايجيبت",null,null,"Bio chemical egypt"]
[]
[]
[null,null,null,null,null,null,"كود العميل"]
[null,null,null,"حساب عميل",null,null,60]
[]
[null,"اسم العميل",{"$f":"IFERROR(VLOOKUP(G7,'[1]البيانات '!$A$3:$B$102,2,0),\"\")","v":"علي الشريف"},null,"تليفون",null,{"$f":"IFERROR(VLOOKUP(G7,'البيانات '!A3:C78,3,0),\"\")","v":0}]
[null,"اسم المنشاة",null,null,"مدير مسئول"]
[null,"العنوان",{"$f":"IFERROR(VLOOKUP(G7,'البيانات '!A3:D78,4,0),\"\")","v":"سيدي غازي"},null,"مندوب مبيعات ",null,{"$f":"IFERROR(VLOOKUP(G7,'[1]البيانات '!$A$3:$E$102,5,0),\"\")","v":"محمد عبدالشفيع"}]
[]
[]
[null,"م","التاريخ","رقم الفاتورة","قيمة الفاتورة","رصيد سابق","المدفوع","رصيد متبقي","ملاحظات"]
[null,1,null,"رصيد اول ( صابون-كلور-فنيك-يود-فورمالين)",null,null,null,3810]
[null,2,"2018-09-06",73,0,3810,500,{"$f":"E16+F16-G16","v":3310}]
[null,3,null,null,null,null,null,0]
[null,4,null,null,null,null,null,0]
[null,5,null,null,null,null,null,0]
[null,6,null,null,null,null,null,0]
[null,7,null,null,null,null,null,0]
[null,8,null,null,null,null,null,0]
[null,9,null,null,null,null,null,0]
[null,10,null,null,null,null,null,0]
[null,11,null,null,null,null,null,0]
[null,12,null,null,null,null,null,0]
[null,13,null,null,null,null,null,0]
[null,14,null,null,null,null,null,0]
[null,15,null,null,null,null,null,0]
[null,16,null,null,null,null,null,0]
[null,17,null,null,null,null,null,0]
[null,18,null,null,null,null,null,0]
[null,19,null,null,null,null,null,0]
[null,20,null,null,null,null,null,0]
[null,21,null,null,null,null,null,0]
[null,22,null,null,null,null,null,0]
[null,23,null,null,null,null,null,0]
[null,24,null,null,null,null,null,0]
[null,25,null,null,null,null,null,0]
[null,26,null,null,null,null,null,0]
[null,27,null,null,null,null,null,0]
[null,28,null,null,null,null,null,0]
[null,29,null,null,null,null,null,0]
[null,30,null,null,null,null,null,0]
[null,"الاجمالي",null,null,{"$f":"SUM(E15:E44)","v":0},null,{"$f":"SUM(G15:G44)","v":500}]
[]
[null,"بايو كيميكال ايجيبت للمطهرات و اضافات الاعلاف .",null,null,"Bio chemical  Egypt for antiseptic &  feed additives ."]
[null,"المصنع : دست الاشراف  - كوم حماده – البحيرة  .",null,null,"address : dest el ashraf – kom Hamada – al behara"]
[null,"موبايل : 01009958821 – 01099548642    ",null,null,"                            mob : +2001009958821 - +2001099548642                                            "]

{"sheet":"د.علاء النجار","index":77,"n_rows":49,"n_cols":9,"rows_kept":49,"cut":false,"hidden":false,"merged":[[48,1,48,2],[48,4,48,8],[2,1,3,3],[5,6,5,7],[6,6,6,7],[8,6,8,7],[9,6,9,7],[46,1,46,2],[46,4,46,8],[2,4,3,8],[10,6,10,7],[44,1,44,3],[47,1,47,2],[47,4,47,8]]}
[]
[]
[null,"شركة بايوكيميكال ايجيبت",null,null,"Bio chemical egypt"]
[]
[]
[null,null,null,null,null,null,"كود العميل"]
[null,null,null,"حساب عميل",null,null,61]
[]
[null,"اسم العميل",{"$f":"IFERROR(VLOOKUP(G7,'[1]البيانات '!$A$3:$B$102,2,0),\"\")","v":"علاء النجار"},null,"تليفون",null,{"$f":"IFERROR(VLOOKUP(G7,'البيانات '!A3:C78,3,0),\"\")","v":0}]
[null,"اسم المنشاة",null,null,"مدير مسئول"]
[null,"العنوان",{"$f":"IFERROR(VLOOKUP(G7,'البيانات '!A3:D78,4,0),\"\")","v":"ايتاي البارود"},null,"مندوب مبيعات ",null,{"$f":"IFERROR(VLOOKUP(G7,'[1]البيانات '!$A$3:$E$102,5,0),\"\")","v":"محمد عبدالشفيع"}]
[]
[]
[null,"م","التاريخ","رقم الفاتورة","قيمة الفاتورة","رصيد سابق","المدفوع","رصيد متبقي","ملاحظات"]
[null,1,"2018-06-20",5467,5300,0,0,{"$f":"E15+F15-G15","v":5300}]
[null,2,"2018-06-24",1017,0,5300,2000,{"$f":"E16+F16-G16","v":3300}]
[null,3,"2018-07-08",1038,0,3300,1000,2300]
[null,4,"2018-07-11",5486,3200,2300,0,5500]
[null,5,"2018-07-22",10,0,5500,1000,4500]
[null,6,"2018-07-31",2,3600,4500,0,8100]
[null,7,"2018-08-05",24,0,8100,2000,6100]
[null,8,"2018-08-16",43,0,6100,1000,5100]
[null,9,"2018-08-26",5,0,5100,1000,4100]
[null,10,"2018-09-03",29,5225,4100,0,9325]
[null,11,"2018-09-05",70,0,9325,1000,8325]
[null,12,"2018-09-19",97,0,8325,1000,7325]
[null,13,null,null,null,null,null,0]
[null,14,null,null,null,null,null,0]
[null,15,null,null,null,null,null,0]
[null,16,null,null,null,null,null,0]
[null,17,null,null,null,null,null,0]
[null,18,null,null,null,null,null,0]
[null,19,null,null,null,null,null,0]
[null,20,null,null,null,null,null,0]
[null,21,null,null,null,null,null,0]
[null,22,null,null,null,null,null,0]
[null,23,null,null,null,null,null,0]
[null,24,null,null,null,null,null,0]
[null,25,null,null,null,null,null,0]
[null,26,null,null,null,null,null,0]
[null,27,null,null,null,null,null,0]
[null,28,null,null,null,null,null,0]
[null,29,null,null,null,null,null,0]
[null,30,null,null,null,null,null,0]
[null,"الاجمالي",null,null,{"$f":"SUM(E15:E44)","v":17325},null,{"$f":"SUM(G15:G44)","v":10000}]
[]
[null,"بايو كيميكال ايجيبت للمطهرات و اضافات الاعلاف .",null,null,"Bio chemical  Egypt for antiseptic &  feed additives ."]
[null,"المصنع : دست الاشراف  - كوم حماده – البحيرة  .",null,null,"address : dest el ashraf – kom Hamada – al behara"]
[null,"موبايل : 01009958821 – 01099548642    ",null,null,"                            mob : +2001009958821 - +2001099548642                                            "]

{"sheet":"محمدعبد الجواد","index":78,"n_rows":49,"n_cols":9,"rows_kept":49,"cut":false,"hidden":false,"merged":[[48,1,48,2],[48,4,48,8],[2,1,3,3],[5,6,5,7],[6,6,6,7],[8,6,8,7],[9,6,9,7],[46,1,46,2],[46,4,46,8],[2,4,3,8],[10,6,10,7],[44,1,44,3],[47,1,47,2],[47,4,47,8]]}
[]
[]
[null,"شركة بايوكيميكال ايجيبت",null,null,"Bio chemical egypt"]
[]
[]
[null,null,null,null,null,null,"كود العميل"]
[null,null,null,"حساب عميل",null,null,78]
[]
[null,"اسم العميل",{"$f":"IFERROR(VLOOKUP(G7,'البيانات '!$A$3:$B$102,2,0),\"\")","v":"محمد عبد الجواد"},null,"تليفون",null,{"$f":"IFERROR(VLOOKUP(G7,'البيانات '!A3:C78,3,0),\"\")","v":""}]
[null,"اسم المنشاة",null,null,"مدير مسئول"]
[null,"العنوان",{"$f":"IFERROR(VLOOKUP(G7,'البيانات '!A3:D90,4,0),\"\")","v":"دمنهور"},null,"مندوب مبيعات ",null,{"$f":"IFERROR(VLOOKUP(G7,'البيانات '!$A$3:$E$102,5,0),\"\")","v":"ا/فتحي مقلد"}]
[]
[]
[null,"م","التاريخ","رقم الفاتورة","قيمة الفاتورة","رصيد سابق","المدفوع","رصيد متبقي","ملاحظات"]
[null,1,"2018-10-14",1360,2800,0,0,{"$f":"E15+F15-G15","v":2800}]
[null,2,null,null,null,null,null,{"$f":"E16+F16-G16","v":0}]
[null,3,null,null,null,null,null,0]
[null,4,null,null,null,null,null,0]
[null,5,null,null,null,null,null,0]
[null,6,null,null,null,null,null,0]
[null,7,null,null,null,null,null,0]
[null,8,null,null,null,null,null,0]
[null,9,null,null,null,null,null,0]
[null,10,null,null,null,null,null,0]
[null,11,null,null,null,null,null,0]
[null,12,null,null,null,null,null,0]
[null,13,null,null,null,null,null,0]
[null,14,null,null,null,null,null,0]
[null,15,null,null,null,null,null,0]
[null,16,null,null,null,null,null,0]
[null,17,null,null,null,null,null,0]
[null,18,null,null,null,null,null,0]
[null,19,null,null,null,null,null,0]
[null,20,null,null,null,null,null,0]
[null,21,null,null,null,null,null,0]
[null,22,null,null,null,null,null,0]
[null,23,null,null,null,null,null,0]
[null,24,null,null,null,null,null,0]
[null,25,null,null,null,null,null,0]
[null,26,null,null,null,null,null,0]
[null,27,null,null,null,null,null,0]
[null,28,null,null,null,null,null,0]
[null,29,null,null,null,null,null,0]
[null,30,null,null,null,null,null,0]
[null,"الاجمالي",null,null,{"$f":"SUM(E15:E44)","v":2800},null,{"$f":"SUM(G15:G44)","v":0}]
[]
[null,"بايو كيميكال ايجيبت للمطهرات و اضافات الاعلاف .",null,null,"Bio chemical  Egypt for antiseptic &  feed additives ."]
[null,"المصنع : دست الاشراف  - كوم حماده – البحيرة  .",null,null,"address : dest el ashraf – kom Hamada – al behara"]
[null,"موبايل : 01009958821 – 01099548642    ",null,null,"                            mob : +2001009958821 - +2001099548642                                            "]

{"sheet":"رمضان مكي","index":79,"n_rows":49,"n_cols":9,"rows_kept":49,"cut":false,"hidden":false,"merged":[[48,1,48,2],[48,4,48,8],[10,6,10,7],[44,1,44,3],[46,1,46,2],[46,4,46,8],[47,1,47,2],[47,4,47,8],[9,6,9,7],[2,1,3,3],[2,4,3,8],[5,6,5,7],[6,6,6,7],[8,6,8,7]]}
[]
[]
[null,"شركة بايوكيميكال ايجيبت",null,null,"Bio chemical egypt"]
[]
[]
[null,null,null,null,null,null,"كود العميل"]
[null,null,null,"حساب عميل",null,null,79]
[]
[null,"اسم العميل",{"$f":"IFERROR(VLOOKUP(G7,'البيانات '!$A$3:$B$102,2,0),\"\")","v":"رمضان مكي"},null,"تليفون",null,{"$f":"IFERROR(VLOOKUP(G7,'البيانات '!A3:C78,3,0),\"\")","v":""}]
[null,"اسم المنشاة",null,null,"مدير مسئول"]
[null,"العنوان",{"$f":"IFERROR(VLOOKUP(G7,'البيانات '!A3:D90,4,0),\"\")","v":"ايتاي البارود"},null,"مندوب مبيعات ",null,{"$f":"IFERROR(VLOOKUP(G7,'البيانات '!$A$3:$E$102,5,0),\"\")","v":"ا/فتحي مقلد"}]
[]
[]
[null,"م","التاريخ","رقم الفاتورة","قيمة الفاتورة","رصيد سابق","المدفوع","رصيد متبقي","ملاحظات"]
[null,1,"2018-10-14",1363,1470,0,0,{"$f":"E15+F15-G15","v":1470}]
[null,2,null,null,null,null,null,{"$f":"E16+F16-G16","v":0}]
[null,3,null,null,null,null,null,0]
[null,4,null,null,null,null,null,0]
[null,5,null,null,null,null,null,0]
[null,6,null,null,null,null,null,0]
[null,7,null,null,null,null,null,0]
[null,8,null,null,null,null,null,0]
[null,9,null,null,null,null,null,0]
[null,10,null,null,null,null,null,0]
[null,11,null,null,null,null,null,0]
[null,12,null,null,null,null,null,0]
[null,13,null,null,null,null,null,0]
[null,14,null,null,null,null,null,0]
[null,15,null,null,null,null,null,0]
[null,16,null,null,null,null,null,0]
[null,17,null,null,null,null,null,0]
[null,18,null,null,null,null,null,0]
[null,19,null,null,null,null,null,0]
[null,20,null,null,null,null,null,0]
[null,21,null,null,null,null,null,0]
[null,22,null,null,null,null,null,0]
[null,23,null,null,null,null,null,0]
[null,24,null,null,null,null,null,0]
[null,25,null,null,null,null,null,0]
[null,26,null,null,null,null,null,0]
[null,27,null,null,null,null,null,0]
[null,28,null,null,null,null,null,0]
[null,29,null,null,null,null,null,0]
[null,30,null,null,null,null,null,0]
[null,"الاجمالي",null,null,{"$f":"SUM(E15:E44)","v":1470},null,{"$f":"SUM(G15:G44)","v":0}]
[]
[null,"بايو كيميكال ايجيبت للمطهرات و اضافات الاعلاف .",null,null,"Bio chemical  Egypt for antiseptic &  feed additives ."]
[null,"المصنع : دست الاشراف  - كوم حماده – البحيرة  .",null,null,"address : dest el ashraf – kom Hamada – al behara"]
[null,"موبايل : 01009958821 – 01099548642    ",null,null,"                            mob : +2001009958821 - +2001099548642                                            "]

{"sheet":"خالد الرمالي","index":80,"n_rows":49,"n_cols":9,"rows_kept":49,"cut":false,"hidden":false,"merged":[[48,1,48,2],[48,4,48,8],[10,6,10,7],[44,1,44,3],[46,1,46,2],[46,4,46,8],[47,1,47,2],[47,4,47,8],[9,6,9,7],[2,1,3,3],[2,4,3,8],[5,6,5,7],[6,6,6,7],[8,6,8,7]]}
[]
[]
[null,"شركة بايوكيميكال ايجيبت",null,null,"Bio chemical egypt"]
[]
[]
[null,null,null,null,null,null,"كود العميل"]
[null,null,null,"حساب عميل",null,null,81]
[]
[null,"اسم العميل",{"$f":"IFERROR(VLOOKUP(G7,'البيانات '!$A$3:$B$102,2,0),\"\")","v":"خالد الرمالي"},"كاش","تليفون",null,{"$f":"IFERROR(VLOOKUP(G7,'البيانات '!A3:C78,3,0),\"\")","v":""}]
[null,"اسم المنشاة",null,null,"مدير مسئول"]
[null,"العنوان",{"$f":"IFERROR(VLOOKUP(G7,'البيانات '!A3:D90,4,0),\"\")","v":"خربتا"},null,"مندوب مبيعات ",null,{"$f":"IFERROR(VLOOKUP(G7,'البيانات '!$A$3:$E$102,5,0),\"\")","v":"الكابتن - كامل"}]
[]
[]
[null,"م","التاريخ","رقم الفاتورة","قيمة الفاتورة","رصيد سابق","المدفوع","رصيد متبقي","ملاحظات"]
[null,1,"2018-10-14",1367,1140,0,1140,{"$f":"E15+F15-G15","v":0},"كاش"]
[null,2,null,null,null,null,null,{"$f":"E16+F16-G16","v":0}]
[null,3,null,null,null,null,null,0]
[null,4,null,null,null,null,null,0]
[null,5,null,null,null,null,null,0]
[null,6,null,null,null,null,null,0]
[null,7,null,null,null,null,null,0]
[null,8,null,null,null,null,null,0]
[null,9,null,null,null,null,null,0]
[null,10,null,null,null,null,null,0]
[null,11,null,null,null,null,null,0]
[null,12,null,null,null,null,null,0]
[null,13,null,null,null,null,null,0]
[null,14,null,null,null,null,null,0]
[null,15,null,null,null,null,null,0]
[null,16,null,null,null,null,null,0]
[null,17,null,null,null,null,null,0]
[null,18,null,null,null,null,null,0]
[null,19,null,null,null,null,null,0]
[null,20,null,null,null,null,null,0]
[null,21,null,null,null,null,null,0]
[null,22,null,null,null,null,null,0]
[null,23,null,null,null,null,null,0]
[null,24,null,null,null,null,null,0]
[null,25,null,null,null,null,null,0]
[null,26,null,null,null,null,null,0]
[null,27,null,null,null,null,null,0]
[null,28,null,null,null,null,null,0]
[null,29,null,null,null,null,null,0]
[null,30,null,null,null,null,null,0]
[null,"الاجمالي",null,null,{"$f":"SUM(E15:E44)","v":1140},null,{"$f":"SUM(G15:G44)","v":1140}]
[]
[null,"بايو كيميكال ايجيبت للمطهرات و اضافات الاعلاف .",null,null,"Bio chemical  Egypt for antiseptic &  feed additives ."]
[null,"المصنع : دست الاشراف  - كوم حماده – البحيرة  .",null,null,"address : dest el ashraf – kom Hamada – al behara"]
[null,"موبايل : 01009958821 – 01099548642    ",null,null,"                            mob : +2001009958821 - +2001099548642                                            "]

{"sheet":"ا-فتحي مقلد","index":81,"n_rows":49,"n_cols":9,"rows_kept":49,"cut":false,"hidden":false,"merged":[[48,1,48,2],[48,4,48,8],[10,6,10,7],[44,1,44,3],[46,1,46,2],[46,4,46,8],[47,1,47,2],[47,4,47,8],[9,6,9,7],[2,1,3,3],[2,4,3,8],[5,6,5,7],[6,6,6,7],[8,6,8,7]]}
[]
[]
[null,"شركة بايوكيميكال ايجيبت",null,null,"Bio chemical egypt"]
[]
[]
[null,null,null,null,null,null,"كود العميل"]
[null,null,null,"حساب عميل",null,null,80]
[]
[null,"اسم العميل",{"$f":"IFERROR(VLOOKUP(G7,'البيانات '!$A$3:$B$102,2,0),\"\")","v":"ا/فتحي مقلد"},null,"تليفون",null,{"$f":"IFERROR(VLOOKUP(G7,'البيانات '!A3:C78,3,0),\"\")","v":""}]
[null,"اسم المنشاة","موزع",null,"مدير مسئول"]
[null,"العنوان",{"$f":"IFERROR(VLOOKUP(G7,'البيانات '!A3:D90,4,0),\"\")","v":"00:00:00"},null,"مندوب مبيعات ",null,{"$f":"IFERROR(VLOOKUP(G7,'البيانات '!$A$3:$E$102,5,0),\"\")","v":"الكابتن - كامل"}]
[]
[]
[null,"م","التاريخ","رقم الفاتورة","قيمة الفاتورة","رصيد سابق","المدفوع","رصيد متبقي","ملاحظات"]
[null,1,"2018-10-14",1366,6000,0,0,{"$f":"E15+F15-G15","v":6000}]
[null,2,null,null,null,null,null,{"$f":"E16+F16-G16","v":0}]
[null,3,null,null,null,null,null,0]
[null,4,null,null,null,null,null,0]
[null,5,null,null,null,null,null,0]
[null,6,null,null,null,null,null,0]
[null,7,null,null,null,null,null,0]
[null,8,null,null,null,null,null,0]
[null,9,null,null,null,null,null,0]
[null,10,null,null,null,null,null,0]
[null,11,null,null,null,null,null,0]
[null,12,null,null,null,null,null,0]
[null,13,null,null,null,null,null,0]
[null,14,null,null,null,null,null,0]
[null,15,null,null,null,null,null,0]
[null,16,null,null,null,null,null,0]
[null,17,null,null,null,null,null,0]
[null,18,null,null,null,null,null,0]
[null,19,null,null,null,null,null,0]
[null,20,null,null,null,null,null,0]
[null,21,null,null,null,null,null,0]
[null,22,null,null,null,null,null,0]
[null,23,null,null,null,null,null,0]
[null,24,null,null,null,null,null,0]
[null,25,null,null,null,null,null,0]
[null,26,null,null,null,null,null,0]
[null,27,null,null,null,null,null,0]
[null,28,null,null,null,null,null,0]
[null,29,null,null,null,null,null,0]
[null,30,null,null,null,null,null,0]
[null,"الاجمالي",null,null,{"$f":"SUM(E15:E44)","v":6000},null,{"$f":"SUM(G15:G44)","v":0}]
[]
[null,"بايو كيميكال ايجيبت للمطهرات و اضافات الاعلاف .",null,null,"Bio chemical  Egypt for antiseptic &  feed additives ."]
[null,"المصنع : دست الاشراف  - كوم حماده – البحيرة  .",null,null,"address : dest el ashraf – kom Hamada – al behara"]
[null,"موبايل : 01009958821 – 01099548642    ",null,null,"                            mob : +2001009958821 - +2001099548642                                            "]

{"sheet":"محمود السماوي","index":82,"n_rows":49,"n_cols":9,"rows_kept":49,"cut":false,"hidden":false,"merged":[[9,6,9,7],[2,1,3,3],[2,4,3,8],[5,6,5,7],[6,6,6,7],[8,6,8,7],[48,1,48,2],[48,4,48,8],[10,6,10,7],[44,1,44,3],[46,1,46,2],[46,4,46,8],[47,1,47,2],[47,4,47,8]]}
[]
[]
[null,"شركة بايوكيميكال ايجيبت",null,null,"Bio chemical egypt"]
[]
[]
[null,null,null,null,null,null,"كود العميل"]
[null,null,null,"حساب عميل",null,null,82]
[]
[null,"اسم العميل",{"$f":"IFERROR(VLOOKUP(G7,'البيانات '!$A$3:$B$102,2,0),\"\")","v":"محمود السماوي"},null,"تليفون",null,{"$f":"IFERROR(VLOOKUP(G7,'البيانات '!A3:C78,3,0),\"\")","v":""}]
[null,"اسم المنشاة",null,null,"مدير مسئول"]
[null,"العنوان",{"$f":"IFERROR(VLOOKUP(G7,'البيانات '!A3:D90,4,0),\"\")","v":"طنوب 0 المنوفية"},null,"مندوب مبيعات ",null,{"$f":"IFERROR(VLOOKUP(G7,'البيانات '!$A$3:$E$102,5,0),\"\")","v":"احمد خفاجي"}]
[]
[]
[null,"م","التاريخ","رقم الفاتورة","قيمة الفاتورة","رصيد سابق","المدفوع","رصيد متبقي","ملاحظات"]
[null,1,"2018-10-03",null,7150,0,4000,{"$f":"E15+F15-G15","v":3150},"مع السيارة"]
[null,2,null,null,null,null,null,{"$f":"E16+F16-G16","v":0}]
[null,3,null,null,null,null,null,0]
[null,4,null,null,null,null,null,0]
[null,5,null,null,null,null,null,0]
[null,6,null,null,null,null,null,0]
[null,7,null,null,null,null,null,0]
[null,8,null,null,null,null,null,0]
[null,9,null,null,null,null,null,0]
[null,10,null,null,null,null,null,0]
[null,11,null,null,null,null,null,0]
[null,12,null,null,null,null,null,0]
[null,13,null,null,null,null,null,0]
[null,14,null,null,null,null,null,0]
[null,15,null,null,null,null,null,0]
[null,16,null,null,null,null,null,0]
[null,17,null,null,null,null,null,0]
[null,18,null,null,null,null,null,0]
[null,19,null,null,null,null,null,0]
[null,20,null,null,null,null,null,0]
[null,21,null,null,null,null,null,0]
[null,22,null,null,null,null,null,0]
[null,23,null,null,null,null,null,0]
[null,24,null,null,null,null,null,0]
[null,25,null,null,null,null,null,0]
[null,26,null,null,null,null,null,0]
[null,27,null,null,null,null,null,0]
[null,28,null,null,null,null,null,0]
[null,29,null,null,null,null,null,0]
[null,30,null,null,null,null,null,0]
[null,"الاجمالي",null,null,{"$f":"SUM(E15:E44)","v":7150},null,{"$f":"SUM(G15:G44)","v":4000}]
[]
[null,"بايو كيميكال ايجيبت للمطهرات و اضافات الاعلاف .",null,null,"Bio chemical  Egypt for antiseptic &  feed additives ."]
[null,"المصنع : دست الاشراف  - كوم حماده – البحيرة  .",null,null,"address : dest el ashraf – kom Hamada – al behara"]
[null,"موبايل : 01009958821 – 01099548642    ",null,null,"                            mob : +2001009958821 - +2001099548642                                            "]

{"sheet":"أحمد سعيد","index":83,"n_rows":49,"n_cols":9,"rows_kept":49,"cut":false,"hidden":false,"merged":[[48,1,48,2],[48,4,48,8],[10,6,10,7],[44,1,44,3],[46,1,46,2],[46,4,46,8],[47,1,47,2],[47,4,47,8],[2,1,3,3],[2,4,3,8],[5,6,5,7],[6,6,6,7],[8,6,8,7],[9,6,9,7]]}
[]
[]
[null,"شركة بايوكيميكال ايجيبت",null,null,"Bio chemical egypt"]
[]
[]
[null,null,null,null,null,null,"كود العميل"]
[null,null,null,"حساب عميل",null,null,{"$f":"IFERROR(INDEX('البيانات '!$A$3:$A$1000,MATCH($C$9,'البيانات '!$B$3:$B$1000,0)),\"\")","v":83}]
[]
[null,"اسم العميل","أحمد سعيد",null,"تليفون",null,{"$f":"IFERROR(VLOOKUP(G7,'البيانات '!A3:C78,3,0),\"\")","v":""}]
[null,"اسم المنشاة",null,null,"مدير مسئول"]
[null,"العنوان",{"$f":"IF(VLOOKUP(G7,'البيانات '!A3:D90,4,0)=\"\",\"\",VLOOKUP(G7,'البيانات '!A3:D90,4,0))","v":""},null,"مندوب مبيعات ",null,{"$f":"IFERROR(VLOOKUP(G7,'البيانات '!$A$3:$E$102,5,0),\"\")","v":0}]
[]
[]
[null,"م","التاريخ","رقم الفاتورة","قيمة الفاتورة","رصيد سابق","المدفوع","رصيد متبقي","ملاحظات"]
[null,1]
[null,2]
[null,3]
[null,4]
[null,5]
[null,6]
[null,7]
[null,8]
[null,9]
[null,10]
[null,11]
[null,12]
[null,13]
[null,14]
[null,15]
[null,16]
[null,17]
[null,18]
[null,19]
[null,20]
[null,21]
[null,22]
[null,23]
[null,24]
[null,25]
[null,26]
[null,27]
[null,28]
[null,29]
[null,30]
[null,"الاجمالي",null,null,{"$f":"SUM(E15:E44)","v":0},null,{"$f":"SUM(G15:G44)","v":0}]
[]
[null,"بايو كيميكال ايجيبت للمطهرات و اضافات الاعلاف .",null,null,"Bio chemical  Egypt for antiseptic &  feed additives ."]
[null,"المصنع : دست الاشراف  - كوم حماده – البحيرة  .",null,null,"address : dest el ashraf – kom Hamada – al behara"]
[null,"موبايل : 01009958821 – 01099548642    ",null,null,"                            mob : +2001009958821 - +2001099548642                                            "]